Workbook

Sheet Main
B10: 2020-01-02
B12: Sheet No. | C12: Template Name | D12: Summary
B13: 1 | C13: Future Intra | D13: For Intraday trading in F&O segment
B14: 2 | C14: Cash Intra | D14: For Intraday trading in cash market segment
B15: 3 | C15: Mid-cap Intra | D15: For Intraday trading in Mid-cap stocks
B16: 4 | C16: Bulk Deals | D16: Reveals Bulk Deals carried on NSE & BSE
B17: 5 | C17: Call Tracker
K27: `

Sheet Future Intra
M5: Back to Main Page
A6: FOR INTRA DAY TRADING | L6: =Main!B10 -> 2020-01-02
A9: Sr.no | B9: Sector | C9: Scrip | D9: CLOSE RATE | E9: Pivot Point | F9: Supports | I9: Resistances
B10: Sector | D10: Point | E10: Point | F10: S1 | G10: S2 | H10: S3 | I10: R1 | J10: R2 | K10: R3 | L10: HIGH | M10: LOW | N10: OI | O10: % Change in OI
A11: 1 | B11: Index | C11: BANKNIFTY | D11: 32285.20 | E11: 32335.32 | F11: 32174.88 | G11: 32064.57 | H11: 31904.13 | I11: 32445.63 | J11: 32606.07 | K11: 32716.38 | L11: 32495.75 | M11: 32225 | N11: 1338300 | O11: -0.38%
A12: 2 | B12: Index | C12: NIFTY | D12: 12243.80 | E12: 12246.48 | F12: 12223.37 | G12: 12202.93 | H12: 12179.82 | I12: 12266.92 | J12: 12290.03 | K12: 12310.47 | L12: 12269.6 | M12: 12226.05 | N12: 13055700 | O12: -1.80%
A13: 3 | B13: Index | C13: NIFTYIT | D13: 15750.00 | E13: 15729.33 | F13: 15685.67 | G13: 15621.33 | H13: 15577.67 | I13: 15793.67 | J13: 15837.33 | K13: 15901.67 | L13: 15773 | M13: 15665 | N13: 5100 | O13: 0.99%
A14: 4 | B14: Cement | C14: ACC | D14: 1449.40 | E14: 1453.53 | F14: 1442.27 | G14: 1435.13 | H14: 1423.87 | I14: 1460.67 | J14: 1471.93 | K14: 1479.07 | L14: 1464.8 | M14: 1446.4 | N14: 3333600 | O14: 1.31%
A15: 5 | B15: Others | C15: ADANIENT | D15: 208.75 | E15: 209.18 | F15: 206.87 | G15: 204.98 | H15: 202.67 | I15: 211.07 | J15: 213.38 | K15: 215.27 | L15: 211.5 | M15: 207.3 | N15: 28648000 | O15: 0.97%
A16: 6 | B16: Others | C16: ADANIPORTS | D16: 379.10 | E16: 375.83 | F16: 370.77 | G16: 362.43 | H16: 357.37 | I16: 384.17 | J16: 389.23 | K16: 397.57 | L16: 380.9 | M16: 367.5 | N16: 35910000 | O16: -2.75%
A17: 7 | B17: Power | C17: ADANIPOWER | D17: 64.00 | E17: 63.40 | F17: 62.25 | G17: 60.50 | H17: 59.35 | I17: 65.15 | J17: 66.30 | K17: 68.05 | L17: 64.55 | M17: 61.65 | N17: 73690000 | O17: 1.06%
A18: 8 | B18: Automobile | C18: AMARAJABAT | D18: 725.25 | E18: 728.58 | F18: 719.87 | G18: 714.48 | H18: 705.77 | I18: 733.97 | J18: 742.68 | K18: 748.07 | L18: 737.3 | M18: 723.2 | N18: 1416800 | O18: -0.62%
A19: 9 | B19: Cement | C19: AMBUJACEM | D19: 197.85 | E19: 197.82 | F19: 196.73 | G19: 195.62 | H19: 194.53 | I19: 198.93 | J19: 200.02 | K19: 201.13 | L19: 198.9 | M19: 196.7 | N19: 18937500 | O19: -0.30%
A20: 10 | B20: Others | C20: APOLLOHOSP | D20: 1434.10 | E20: 1435.02 | F20: 1428.13 | G20: 1422.17 | H20: 1415.28 | I20: 1440.98 | J20: 1447.87 | K20: 1453.83 | L20: 1441.9 | M20: 1429.05 | N20: 1622000 | O20: -1.64%
A21: 11 | B21: Automobile | C21: APOLLOTYRE | D21: 164.30 | E21: 164.70 | F21: 163.50 | G21: 162.70 | H21: 161.50 | I21: 165.50 | J21: 166.70 | K21: 167.50 | L21: 165.9 | M21: 163.9 | N21: 9393000 | O21: 0.90%
A22: 12 | B22: Automobile | C22: ASHOKLEY | D22: 81.55 | E22: 81.70 | F22: 81.05 | G22: 80.55 | H22: 79.90 | I22: 82.20 | J22: 82.85 | K22: 83.35 | L22: 82.35 | M22: 81.2 | N22: 58032000 | O22: -0.77%
A23: 13 | B23: FMCG | C23: ASIANPAINT | D23: 1802.30 | E23: 1803.28 | F23: 1795.02 | G23: 1787.73 | H23: 1779.47 | I23: 1810.57 | J23: 1818.83 | K23: 1826.12 | L23: 1811.55 | M23: 1796 | N23: 8599800 | O23: 0.16%
A24: 14 | B24: Pharma | C24: AUROPHARMA | D24: 461.10 | E24: 462.07 | F24: 458.68 | G24: 456.27 | H24: 452.88 | I24: 464.48 | J24: 467.87 | K24: 470.28 | L24: 465.45 | M24: 459.65 | N24: 15998000 | O24: 0.46%
A25: 15 | B25: Banking | C25: AXISBANK | D25: 753.20 | E25: 756.40 | F25: 748.50 | G25: 743.80 | H25: 735.90 | I25: 761.10 | J25: 769.00 | K25: 773.70 | L25: 764.3 | M25: 751.7 | N25: 56667600 | O25: -1.69%
A26: 16 | B26: Automobile | C26: BAJAJ-AUTO | D26: 3170.20 | E26: 3183.32 | F26: 3151.88 | G26: 3133.57 | H26: 3102.13 | I26: 3201.63 | J26: 3233.07 | K26: 3251.38 | L26: 3214.75 | M26: 3165 | N26: 2557250 | O26: -0.52%
A27: 17 | B27: Finance | C27: BAJAJFINSV | D27: 9431.45 | E27: 9443.12 | F27: 9401.33 | G27: 9371.22 | H27: 9329.43 | I27: 9473.23 | J27: 9515.02 | K27: 9545.13 | L27: 9484.9 | M27: 9413 | N27: 1444125 | O27: -0.79%
A28: 18 | B28: Finance | C28: BAJFINANCE | D28: 4247.35 | E28: 4252.20 | F28: 4233.55 | G28: 4219.75 | H28: 4201.10 | I28: 4266.00 | J28: 4284.65 | K28: 4298.45 | L28: 4270.85 | M28: 4238.4 | N28: 7599750 | O28: -0.26%
A29: 19 | B29: Automobile | C29: BALKRISIND | D29: 984.55 | E29: 987.33 | F29: 980.02 | G29: 975.48 | H29: 968.17 | I29: 991.87 | J29: 999.18 | K29: 1003.72 | L29: 994.65 | M29: 982.8 | N29: 1872000 | O29: 0.65%
A30: 20 | B30: Banking | C30: BANKBARODA | D30: 102.55 | E30: 102.53 | F30: 101.82 | G30: 101.08 | H30: 100.37 | I30: 103.27 | J30: 103.98 | K30: 104.72 | L30: 103.25 | M30: 101.8 | N30: 77139000 | O30: -0.22%
A31: 21 | B31: FMCG | C31: BATAINDIA | D31: 1755.15 | E31: 1760.52 | F31: 1747.13 | G31: 1739.12 | H31: 1725.73 | I31: 1768.53 | J31: 1781.92 | K31: 1789.93 | L31: 1773.9 | M31: 1752.5 | N31: 2018500 | O31: -0.84%
A32: 22 | B32: Capital_Goods | C32: BEL | D32: 100.70 | E32: 100.73 | F32: 99.97 | G32: 99.23 | H32: 98.47 | I32: 101.47 | J32: 102.23 | K32: 102.97 | L32: 101.5 | M32: 100 | N32: 27924000 | O32: 0.17%
A33: 23 | B33: FMCG | C33: BERGEPAINT | D33: 514.35 | E33: 515.17 | F33: 511.88 | G33: 509.42 | H33: 506.13 | I33: 517.63 | J33: 520.92 | K33: 523.38 | L33: 518.45 | M33: 512.7 | N33: 9424800 | O33: 0.37%
A34: 24 | B34: Automobile | C34: BHARATFORG | D34: 487.20 | E34: 487.50 | F34: 483.70 | G34: 480.20 | H34: 476.40 | I34: 491.00 | J34: 494.80 | K34: 498.30 | L34: 491.3 | M34: 484 | N34: 8235500 | O34: -1.00%
A35: 25 | B35: Telecom | C35: BHARTIARTL | D35: 454.75 | E35: 456.28 | F35: 450.02 | G35: 445.28 | H35: 439.02 | I35: 461.02 | J35: 467.28 | K35: 472.02 | L35: 462.55 | M35: 451.55 | N35: 39402237 | O35: -2.45%
A36: 26 | B36: Capital_Goods | C36: BHEL | D36: 43.75 | E36: 43.87 | F36: 43.43 | G36: 43.12 | H36: 42.68 | I36: 44.18 | J36: 44.62 | K36: 44.93 | L36: 44.3 | M36: 43.55 | N36: 77428000 | O36: 0.24%
A37: 27 | B37: Pharma | C37: BIOCON | D37: 295.40 | E37: 294.53 | F37: 293.07 | G37: 290.73 | H37: 289.27 | I37: 296.87 | J37: 298.33 | K37: 300.67 | L37: 296 | M37: 292.2 | N37: 10559300 | O37: -0.28%
A38: 28 | B38: Automobile | C38: BOSCHLTD | D38: 15369.75 | E38: 15433.92 | F38: 15267.83 | G38: 15165.92 | H38: 14999.83 | I38: 15535.83 | J38: 15701.92 | K38: 15803.83 | L38: 15600 | M38: 15332 | N38: 129200 | O38: -0.25%
A39: 29 | B39: Oil_Gas | C39: BPCL | D39: 493.00 | E39: 492.85 | F39: 490.40 | G39: 487.80 | H39: 485.35 | I39: 495.45 | J39: 497.90 | K39: 500.50 | L39: 495.3 | M39: 490.25 | N39: 31440600 | O39: -0.72%
A40: 30 | B40: FMCG | C40: BRITANNIA | D40: 3058.15 | E40: 3055.75 | F40: 3042.50 | G40: 3026.85 | H40: 3013.60 | I40: 3071.40 | J40: 3084.65 | K40: 3100.30 | L40: 3069 | M40: 3040.1 | N40: 2064400 | O40: -0.25%
A41: 31 | B41: Pharma | C41: CADILAHC | D41: 255.65 | E41: 255.92 | F41: 254.38 | G41: 253.12 | H41: 251.58 | I41: 257.18 | J41: 258.72 | K41: 259.98 | L41: 257.45 | M41: 254.65 | N41: 7312800 | O41: -0.66%
A42: 32 | B42: Banking | C42: CANBK | D42: 223.05 | E42: 222.75 | F42: 221.30 | G42: 219.55 | H42: 218.10 | I42: 224.50 | J42: 225.95 | K42: 227.70 | L42: 224.2 | M42: 221 | N42: 13192400 | O42: -1.86%
A43: 33 | B43: Oil_Gas | C43: CASTROLIND | D43: 129.65 | E43: 130.00 | F43: 129.10 | G43: 128.55 | H43: 127.65 | I43: 130.55 | J43: 131.45 | K43: 132.00 | L43: 130.9 | M43: 129.45 | N43: 6133600 | O43: 0.40%
A44: 34 | B44: Textile | C44: CENTURYTEX | D44: 479.90 | E44: 478.85 | F44: 473.55 | G44: 467.20 | H44: 461.90 | I44: 485.20 | J44: 490.50 | K44: 496.85 | L44: 484.15 | M44: 472.5 | N44: 3624000 | O44: 0.94%
A45: 35 | B45: Power | C45: CESC | D45: 751.10 | E45: 749.32 | F45: 744.18 | G45: 737.27 | H45: 732.13 | I45: 756.23 | J45: 761.37 | K45: 768.28 | L45: 754.45 | M45: 742.4 | N45: 1300000 | O45: 11.15%
A46: 36 | B46: Finance | C46: CHOLAFIN | D46: 304.60 | E46: 306.18 | F46: 302.42 | G46: 300.23 | H46: 296.47 | I46: 308.37 | J46: 312.13 | K46: 314.32 | L46: 309.95 | M46: 304 | N46: 3885000 | O46: -1.02%
A47: 37 | B47: Pharma | C47: CIPLA | D47: 477.40 | E47: 478.62 | F47: 475.03 | G47: 472.67 | H47: 469.08 | I47: 480.98 | J47: 484.57 | K47: 486.93 | L47: 482.2 | M47: 476.25 | N47: 13640150 | O47: -2.04%
A48: 38 | B48: Others | C48: COALINDIA | D48: 207.10 | E48: 206.52 | F48: 204.78 | G48: 202.47 | H48: 200.73 | I48: 208.83 | J48: 210.57 | K48: 212.88 | L48: 208.25 | M48: 204.2 | N48: 15957000 | O48: 5.16%
A49: 39 | B49: FMCG | C49: COLPAL | D49: 1467.85 | E49: 1469.28 | F49: 1460.57 | G49: 1453.28 | H49: 1444.57 | I49: 1476.57 | J49: 1485.28 | K49: 1492.57 | L49: 1478 | M49: 1462 | N49: 2444400 | O49: 0.14%
A50: 40 | B50: Others | C50: CONCOR | D50: 577.05 | E50: 576.37 | F50: 573.28 | G50: 569.52 | H50: 566.43 | I50: 580.13 | J50: 583.22 | K50: 586.98 | L50: 579.45 | M50: 572.6 | N50: 5725269 | O50: -0.49%
A51: 41 | B51: Capital_Goods | C51: CUMMINSIND | D51: 554.75 | E51: 554.82 | F51: 552.28 | G51: 549.82 | H51: 547.28 | I51: 557.28 | J51: 559.82 | K51: 562.28 | L51: 557.35 | M51: 552.35 | N51: 1749600 | O51: -1.62%
A52: 42 | B52: FMCG | C52: DABUR | D52: 462.95 | E52: 462.47 | F52: 461.03 | G52: 459.12 | H52: 457.68 | I52: 464.38 | J52: 465.82 | K52: 467.73 | L52: 463.9 | M52: 460.55 | N52: 12600000 | O52: -1.38%
A53: 43 | B53: Media | C53: DISHTV | D53: 12.85 | E53: 13.00 | F53: 12.55 | G53: 12.25 | H53: 11.80 | I53: 13.30 | J53: 13.75 | K53: 14.05 | L53: 13.45 | M53: 12.7 | N53: 94672800 | O53: -6.12%
A54: 44 | B54: Pharma | C54: DIVISLAB | D54: 1831.25 | E54: 1838.82 | F54: 1821.18 | G54: 1811.12 | H54: 1793.48 | I54: 1848.88 | J54: 1866.52 | K54: 1876.58 | L54: 1856.45 | M54: 1828.75 | N54: 2269200 | O54: 0.78%
A55: 45 | B55: Realty | C55: DLF | D55: 228.90 | E55: 230.25 | F55: 226.90 | G55: 224.90 | H55: 221.55 | I55: 232.25 | J55: 235.60 | K55: 237.60 | L55: 233.6 | M55: 228.25 | N55: 35501400 | O55: -1.70%
A56: 46 | B56: Pharma | C56: DRREDDY | D56: 2898.90 | E56: 2891.67 | F56: 2880.38 | G56: 2861.87 | H56: 2850.58 | I56: 2910.18 | J56: 2921.47 | K56: 2939.98 | L56: 2902.95 | M56: 2873.15 | N56: 3003000 | O56: 0.05%
A57: 47 | B57: Automobile | C57: EICHERMOT | D57: 22198.10 | E57: 22339.37 | F57: 22003.73 | G57: 21809.37 | H57: 21473.73 | I57: 22533.73 | J57: 22869.37 | K57: 23063.73 | L57: 22675 | M57: 22145 | N57: 282960 | O57: 1.39%
A58: 48 | B58: Finance | C58: EQUITAS | D58: 106.90 | E58: 107.13 | F58: 106.27 | G58: 105.63 | H58: 104.77 | I58: 107.77 | J58: 108.63 | K58: 109.27 | L58: 108 | M58: 106.5 | N58: 15900500 | O58: 0.75%
A59: 49 | B59: Automobile | C59: ESCORTS | D59: 608.25 | E59: 617.45 | F59: 596.80 | G59: 585.35 | H59: 564.70 | I59: 628.90 | J59: 649.55 | K59: 661.00 | L59: 638.1 | M59: 606 | N59: 5905900 | O59: 3.57%
A60: 50 | B60: Automobile | C60: EXIDEIND | D60: 187.05 | E60: 186.83 | F60: 185.47 | G60: 183.88 | H60: 182.52 | I60: 188.42 | J60: 189.78 | K60: 191.37 | L60: 188.2 | M60: 185.25 | N60: 12153900 | O60: -0.47%
A61: 51 | B61: Banking | C61: FEDERALBNK | D61: 89.10 | E61: 89.00 | F61: 88.45 | G61: 87.80 | H61: 87.25 | I61: 89.65 | J61: 90.20 | K61: 90.85 | L61: 89.55 | M61: 88.35 | N61: 56280000 | O61: -1.46%
A62: 52 | B62: Oil_Gas | C62: GAIL | D62: 121.20 | E62: 121.00 | F62: 120.25 | G62: 119.30 | H62: 118.55 | I62: 121.95 | J62: 122.70 | K62: 123.65 | L62: 121.75 | M62: 120.05 | N62: 54833520 | O62: -0.81%
A63: 53 | B63: Pharma | C63: GLENMARK | D63: 347.45 | E63: 348.83 | F63: 345.62 | G63: 343.78 | H63: 340.57 | I63: 350.67 | J63: 353.88 | K63: 355.72 | L63: 352.05 | M63: 347 | N63: 5273800 | O63: 0.96%
A64: 54 | B64: Infrastructure | C64: GMRINFRA | D64: 21.00 | E64: 21.03 | F64: 20.82 | G64: 20.63 | H64: 20.42 | I64: 21.22 | J64: 21.43 | K64: 21.62 | L64: 21.25 | M64: 20.85 | N64: 158265000 | O64: -0.20%
A65: 55 | B65: FMCG | C65: GODREJCP | D65: 694.70 | E65: 692.78 | F65: 688.37 | G65: 682.03 | H65: 677.62 | I65: 699.12 | J65: 703.53 | K65: 709.87 | L65: 697.2 | M65: 686.45 | N65: 4156000 | O65: 0.02%
A66: 56 | B66: Cement | C66: GRASIM | D66: 747.50 | E66: 747.30 | F66: 743.55 | G66: 739.60 | H66: 735.85 | I66: 751.25 | J66: 755.00 | K66: 758.95 | L66: 751.05 | M66: 743.35 | N66: 23315250 | O66: -0.21%
A67: 57 | B67: Others | C67: HAVELLS | D67: 652.40 | E67: 652.85 | F67: 648.90 | G67: 645.40 | H67: 641.45 | I67: 656.35 | J67: 660.30 | K67: 663.80 | L67: 656.8 | M67: 649.35 | N67: 5259000 | O67: -0.89%
A68: 58 | B68: Technology | C68: HCLTECH | D68: 573.05 | E68: 571.38 | F68: 568.92 | G68: 564.78 | H68: 562.32 | I68: 575.52 | J68: 577.98 | K68: 582.12 | L68: 573.85 | M68: 567.25 | N68: 22712200 | O68: -0.33%
A69: 59 | B69: Finance | C69: HDFC | D69: 2446.05 | E69: 2438.85 | F69: 2428.85 | G69: 2411.65 | H69: 2401.65 | I69: 2456.05 | J69: 2466.05 | K69: 2483.25 | L69: 2448.85 | M69: 2421.65 | N69: 31522000 | O69: -0.39%
A70: 60 | B70: Banking | C70: HDFCBANK | D70: 1286.95 | E70: 1284.82 | F70: 1281.23 | G70: 1275.52 | H70: 1271.93 | I70: 1290.53 | J70: 1294.12 | K70: 1299.83 | L70: 1288.4 | M70: 1279.1 | N70: 32065500 | O70: -1.27%
A71: 61 | B71: Automobile | C71: HEROMOTOCO | D71: 2444.00 | E71: 2453.85 | F71: 2431.50 | G71: 2419.00 | H71: 2396.65 | I71: 2466.35 | J71: 2488.70 | K71: 2501.20 | L71: 2476.2 | M71: 2441.35 | N71: 3882200 | O71: 0.26%
A72: 62 | B72: Metals | C72: HINDALCO | D72: 215.80 | E72: 216.23 | F72: 213.82 | G72: 211.83 | H72: 209.42 | I72: 218.22 | J72: 220.63 | K72: 222.62 | L72: 218.65 | M72: 214.25 | N72: 38339000 | O72: -0.69%
A73: 63 | B73: Oil_Gas | C73: HINDPETRO | D73: 266.50 | E73: 265.88 | F73: 264.72 | G73: 262.93 | H73: 261.77 | I73: 267.67 | J73: 268.83 | K73: 270.62 | L73: 267.05 | M73: 264.1 | N73: 18118800 | O73: 0.68%
A74: 64 | B74: FMCG | C74: HINDUNILVR | D74: 1947.55 | E74: 1941.20 | F74: 1932.35 | G74: 1917.15 | H74: 1908.30 | I74: 1956.40 | J74: 1965.25 | K74: 1980.45 | L74: 1950.05 | M74: 1926 | N74: 10196400 | O74: -0.39%
A75: 65 | B75: Finance | C75: IBULHSGFIN | D75: 307.05 | E75: 308.73 | F75: 303.72 | G75: 300.38 | H75: 295.37 | I75: 312.07 | J75: 317.08 | K75: 320.42 | L75: 313.75 | M75: 305.4 | N75: 22407600 | O75: 0.95%
A76: 66 | B76: Banking | C76: ICICIBANK | D76: 540.45 | E76: 541.70 | F76: 537.95 | G76: 535.45 | H76: 531.70 | I76: 544.20 | J76: 547.95 | K76: 550.45 | L76: 545.45 | M76: 539.2 | N76: 104883625 | O76: -0.87%
A77: 67 | B77: Finance | C77: ICICIPRULI | D77: 483.75 | E77: 484.82 | F77: 481.68 | G77: 479.62 | H77: 476.48 | I77: 486.88 | J77: 490.02 | K77: 492.08 | L77: 487.95 | M77: 482.75 | N77: 11197500 | O77: 0.54%
A78: 68 | B78: Telecom | C78: IDEA | D78: 6.15 | E78: 6.18 | F78: 6.02 | G78: 5.88 | H78: 5.72 | I78: 6.32 | J78: 6.48 | K78: 6.62 | L78: 6.35 | M78: 6.05 | N78: 390334000 | O78: 0.33%
A79: 69 | B79: Banking | C79: IDFCFIRSTB | D79: 46.05 | E79: 45.77 | F79: 45.38 | G79: 44.72 | H79: 44.33 | I79: 46.43 | J79: 46.82 | K79: 47.48 | L79: 46.15 | M79: 45.1 | N79: 198600000 | O79: 0.48%
A80: 70 | B80: Oil_Gas | C80: IGL | D80: 426.25 | E80: 426.93 | F80: 423.52 | G80: 420.78 | H80: 417.37 | I80: 429.67 | J80: 433.08 | K80: 435.82 | L80: 430.35 | M80: 424.2 | N80: 8244500 | O80: 1.18%
A81: 71 | B81: Others | C81: INDIGO | D81: 1341.15 | E81: 1344.60 | F81: 1332.60 | G81: 1324.05 | H81: 1312.05 | I81: 1353.15 | J81: 1365.15 | K81: 1373.70 | L81: 1356.6 | M81: 1336.05 | N81: 3243600 | O81: -0.45%
A82: 72 | B82: Banking | C82: INDUSINDBK | D82: 1494.40 | E82: 1505.93 | F82: 1479.47 | G82: 1464.53 | H82: 1438.07 | I82: 1520.87 | J82: 1547.33 | K82: 1562.27 | L82: 1532.4 | M82: 1491 | N82: 10460800 | O82: 1.25%
A83: 73 | B83: Telecom | C83: INFRATEL | D83: 253.25 | E83: 253.72 | F83: 250.93 | G83: 248.62 | H83: 245.83 | I83: 256.03 | J83: 258.82 | K83: 261.13 | L83: 256.5 | M83: 251.4 | N83: 12868000 | O83: 0.33%
A84: 74 | B84: Technology | C84: INFY | D84: 741.15 | E84: 740.38 | F84: 735.77 | G84: 730.38 | H84: 725.77 | I84: 745.77 | J84: 750.38 | K84: 755.77 | L84: 745 | M84: 735 | N84: 28106400 | O84: 0.59%
A85: 75 | B85: Oil_Gas | C85: IOC | D85: 124.70 | E85: 124.92 | F85: 124.28 | G85: 123.87 | H85: 123.23 | I85: 125.33 | J85: 125.97 | K85: 126.38 | L85: 125.55 | M85: 124.5 | N85: 32968000 | O85: 2.65%
A86: 76 | B86: FMCG | C86: ITC | D86: 239.30 | E86: 239.13 | F86: 238.57 | G86: 237.83 | H86: 237.27 | I86: 239.87 | J86: 240.43 | K86: 241.17 | L86: 239.7 | M86: 238.4 | N86: 126496800 | O86: -0.42%
A87: 77 | B87: Metals | C87: JINDALSTEL | D87: 167.25 | E87: 167.97 | F87: 164.03 | G87: 160.82 | H87: 156.88 | I87: 171.18 | J87: 175.12 | K87: 178.33 | L87: 171.9 | M87: 164.75 | N87: 25240000 | O87: -1.71%
A88: 78 | B88: Metals | C88: JSWSTEEL | D88: 269.35 | E88: 270.42 | F88: 266.08 | G88: 262.82 | H88: 258.48 | I88: 273.68 | J88: 278.02 | K88: 281.28 | L88: 274.75 | M88: 267.15 | N88: 52283600 | O88: -1.89%
A89: 79 | B89: Others | C89: JUBLFOOD | D89: 1670.45 | E89: 1670.77 | F89: 1662.13 | G89: 1653.82 | H89: 1645.18 | I89: 1679.08 | J89: 1687.72 | K89: 1696.03 | L89: 1679.4 | M89: 1662.45 | N89: 2589000 | O89: -0.42%
A90: 80 | B90: Others | C90: JUSTDIAL | D90: 566.20 | E90: 569.25 | F90: 560.20 | G90: 554.20 | H90: 545.15 | I90: 575.25 | J90: 584.30 | K90: 590.30 | L90: 578.3 | M90: 563.25 | N90: 2258200 | O90: 2.87%
A91: 81 | B91: Banking | C91: KOTAKBANK | D91: 1685.15 | E91: 1691.33 | F91: 1677.12 | G91: 1669.08 | H91: 1654.87 | I91: 1699.37 | J91: 1713.58 | K91: 1721.62 | L91: 1705.55 | M91: 1683.3 | N91: 8657200 | O91: 0.99%
A92: 82 | B92: Finance | C92: L&TFH | D92: 118.25 | E92: 118.40 | F92: 117.20 | G92: 116.15 | H92: 114.95 | I92: 119.45 | J92: 120.65 | K92: 121.70 | L92: 119.6 | M92: 117.35 | N92: 28016800 | O92: -0.30%
A93: 83 | B93: Finance | C93: LICHSGFIN | D93: 434.85 | E93: 436.03 | F93: 431.42 | G93: 427.98 | H93: 423.37 | I93: 439.47 | J93: 444.08 | K93: 447.52 | L93: 440.65 | M93: 432.6 | N93: 10600200 | O93: -1.12%
A94: 84 | B94: Capital_Goods | C94: LT | D94: 1317.10 | E94: 1318.03 | F94: 1310.17 | G94: 1303.23 | H94: 1295.37 | I94: 1324.97 | J94: 1332.83 | K94: 1339.77 | L94: 1325.9 | M94: 1311.1 | N94: 21475125 | O94: -1.09%
A95: 85 | B95: Pharma | C95: LUPIN | D95: 774.25 | E95: 773.17 | F95: 769.48 | G95: 764.72 | H95: 761.03 | I95: 777.93 | J95: 781.62 | K95: 786.38 | L95: 776.85 | M95: 768.4 | N95: 7151200 | O95: 0.10%
A96: 86 | B96: Automobile | C96: M&M | D96: 539.45 | E96: 537.68 | F96: 534.02 | G96: 528.58 | H96: 524.92 | I96: 543.12 | J96: 546.78 | K96: 552.22 | L96: 541.35 | M96: 532.25 | N96: 23771000 | O96: 0.52%
A97: 87 | B97: Finance | C97: M&MFIN | D97: 334.30 | E97: 330.93 | F97: 327.12 | G97: 319.93 | H97: 316.12 | I97: 338.12 | J97: 341.93 | K97: 349.12 | L97: 334.75 | M97: 323.75 | N97: 15398400 | O97: 1.77%
A98: 88 | B98: Finance | C98: MANAPPURAM | D98: 178.50 | E98: 178.23 | F98: 177.02 | G98: 175.53 | H98: 174.32 | I98: 179.72 | J98: 180.93 | K98: 182.42 | L98: 179.45 | M98: 176.75 | N98: 18780000 | O98: -0.73%
A99: 89 | B99: FMCG | C99: MARICO | D99: 346.85 | E99: 345.63 | F99: 343.32 | G99: 339.78 | H99: 337.47 | I99: 349.17 | J99: 351.48 | K99: 355.02 | L99: 347.95 | M99: 342.1 | N99: 12616500 | O99: -1.84%
A100: 90 | B100: Automobile | C100: MARUTI | D100: 7335.65 | E100: 7364.68 | F100: 7282.02 | G100: 7228.38 | H100: 7145.72 | I100: 7418.32 | J100: 7500.98 | K100: 7554.62 | L100: 7447.35 | M100: 7311.05 | N100: 3119500 | O100: -0.69%
A101: 91 | B101: FMCG | C101: MCDOWELL-N | D101: 599.95 | E101: 601.15 | F101: 597.90 | G101: 595.85 | H101: 592.60 | I101: 603.20 | J101: 606.45 | K101: 608.50 | L101: 604.4 | M101: 599.1 | N101: 12570000 | O101: 0.08%
A102: 92 | B102: Finance | C102: MFSL | D102: 545.45 | E102: 544.30 | F102: 539.15 | G102: 532.85 | H102: 527.70 | I102: 550.60 | J102: 555.75 | K102: 562.05 | L102: 549.45 | M102: 538 | N102: 9869600 | O102: 3.32%
A103: 93 | B103: Oil_Gas | C103: MGL | D103: 1069.90 | E103: 1069.62 | F103: 1065.28 | G103: 1060.67 | H103: 1056.33 | I103: 1074.23 | J103: 1078.57 | K103: 1083.18 | L103: 1073.95 | M103: 1065 | N103: 1722600 | O103: -1.85%
A104: 94 | B104: Technology | C104: MINDTREE | D104: 808.00 | E104: 806.32 | F104: 800.88 | G104: 793.77 | H104: 788.33 | I104: 813.43 | J104: 818.87 | K104: 825.98 | L104: 811.75 | M104: 799.2 | N104: 1072000 | O104: 1.98%
A105: 95 | B105: Automobile | C105: MOTHERSUMI | D105: 146.65 | E105: 147.13 | F105: 145.77 | G105: 144.88 | H105: 143.52 | I105: 148.02 | J105: 149.38 | K105: 150.27 | L105: 148.5 | M105: 146.25 | N105: 31630000 | O105: 1.22%
A106: 96 | B106: Automobile | C106: MRF | D106: 66992.90 | E106: 66915.47 | F106: 66581.03 | G106: 66169.17 | H106: 65834.73 | I106: 67327.33 | J106: 67661.77 | K106: 68073.63 | L106: 67249.9 | M106: 66503.6 | N106: 19600 | O106: 3.98%
A107: 97 | B107: Finance | C107: MUTHOOTFIN | D107: 765.55 | E107: 765.72 | F107: 761.98 | G107: 758.42 | H107: 754.68 | I107: 769.28 | J107: 773.02 | K107: 776.58 | L107: 769.45 | M107: 762.15 | N107: 3808500 | O107: -1.32%
A108: 98 | B108: Metals | C108: NATIONALUM | D108: 43.35 | E108: 43.50 | F108: 42.85 | G108: 42.35 | H108: 41.70 | I108: 44.00 | J108: 44.65 | K108: 45.15 | L108: 44.15 | M108: 43 | N108: 46437300 | O108: 1.53%
A109: 99 | B109: Infrastructure | C109: NBCC | D109: 34.95 | E109: 34.93 | F109: 34.52 | G109: 34.08 | H109: 33.67 | I109: 35.37 | J109: 35.78 | K109: 36.22 | L109: 35.35 | M109: 34.5 | N109: 37723400 | O109: 0.92%
A110: 100 | B110: Infrastructure | C110: NCC | D110: 55.40 | E110: 55.65 | F110: 54.80 | G110: 54.20 | H110: 53.35 | I110: 56.25 | J110: 57.10 | K110: 57.70 | L110: 56.5 | M110: 55.05 | N110: 45405000 | O110: 0.56%
A111: 101 | B111: FMCG | C111: NESTLEIND | D111: 14874.75 | E111: 14855.88 | F111: 14798.97 | G111: 14723.18 | H111: 14666.27 | I111: 14931.67 | J111: 14988.58 | K111: 15064.37 | L111: 14912.8 | M111: 14780.1 | N111: 440500 | O111: -0.28%
A112: 102 | B112: Technology | C112: NIITTECH | D112: 1587.50 | E112: 1593.08 | F112: 1579.32 | G112: 1571.13 | H112: 1557.37 | I112: 1601.27 | J112: 1615.03 | K112: 1623.22 | L112: 1606.85 | M112: 1584.9 | N112: 616875 | O112: -1.85%
A113: 103 | B113: Metals | C113: NMDC | D113: 129.05 | E113: 128.92 | F113: 127.63 | G113: 126.22 | H113: 124.93 | I113: 130.33 | J113: 131.62 | K113: 133.03 | L113: 130.2 | M113: 127.5 | N113: 24318000 | O113: 1.50%
A114: 104 | B114: Power | C114: NTPC | D114: 120.80 | E114: 119.87 | F114: 118.63 | G114: 116.47 | H114: 115.23 | I114: 122.03 | J114: 123.27 | K114: 125.43 | L114: 121.1 | M114: 117.7 | N114: 31243200 | O114: -5.86%
A115: 105 | B115: Oil_Gas | C115: OIL | D115: 151.90 | E115: 152.30 | F115: 151.30 | G115: 150.70 | H115: 149.70 | I115: 152.90 | J115: 153.90 | K115: 154.50 | L115: 153.3 | M115: 151.7 | N115: 5061111 | O115: 0.20%
A116: 106 | B116: Oil_Gas | C116: ONGC | D116: 126.85 | E116: 127.17 | F116: 126.28 | G116: 125.72 | H116: 124.83 | I116: 127.73 | J116: 128.62 | K116: 129.18 | L116: 128.05 | M116: 126.6 | N116: 36010300 | O116: 4.83%
A117: 107 | B117: Textile | C117: PAGEIND | D117: 23624.60 | E117: 23604.50 | F117: 23370.05 | G117: 23115.50 | H117: 22881.05 | I117: 23859.05 | J117: 24093.50 | K117: 24348.05 | L117: 23838.95 | M117: 23349.95 | N117: 122650 | O117: -1.41%
A118: 108 | B118: Pharma | C118: PEL | D118: 1539.90 | E118: 1530.93 | F118: 1514.97 | G118: 1490.03 | H118: 1474.07 | I118: 1555.87 | J118: 1571.83 | K118: 1596.77 | L118: 1546.9 | M118: 1506 | N118: 4006185 | O118: -0.63%
A119: 109 | B119: Oil_Gas | C119: PETRONET | D119: 268.50 | E119: 269.23 | F119: 267.47 | G119: 266.43 | H119: 264.67 | I119: 270.27 | J119: 272.03 | K119: 273.07 | L119: 271 | M119: 268.2 | N119: 19758000 | O119: 0.64%
A120: 110 | B120: Finance | C120: PFC | D120: 118.80 | E120: 118.65 | F120: 117.95 | G120: 117.10 | H120: 116.40 | I120: 119.50 | J120: 120.20 | K120: 121.05 | L120: 119.35 | M120: 117.8 | N120: 24601600 | O120: -1.86%
A121: 111 | B121: FMCG | C121: PIDILITIND | D121: 1414.40 | E121: 1409.47 | F121: 1397.93 | G121: 1381.47 | H121: 1369.93 | I121: 1425.93 | J121: 1437.47 | K121: 1453.93 | L121: 1421 | M121: 1393 | N121: 3066500 | O121: 0.51%
A122: 112 | B122: Banking | C122: PNB | D122: 65.20 | E122: 65.02 | F122: 64.53 | G122: 63.87 | H122: 63.38 | I122: 65.68 | J122: 66.17 | K122: 66.83 | L122: 65.5 | M122: 64.35 | N122: 107576300 | O122: 0.62%
A123: 113 | B123: Power | C123: POWERGRID | D123: 194.60 | E123: 193.17 | F123: 191.43 | G123: 188.27 | H123: 186.53 | I123: 196.33 | J123: 198.07 | K123: 201.23 | L123: 194.9 | M123: 190 | N123: 14364000 | O123: 1.70%
A124: 114 | B124: Media | C124: PVR | D124: 1905.90 | E124: 1902.25 | F124: 1889.55 | G124: 1873.20 | H124: 1860.50 | I124: 1918.60 | J124: 1931.30 | K124: 1947.65 | L124: 1914.95 | M124: 1885.9 | N124: 1078400 | O124: 1.35%
A125: 115 | B125: Cement | C125: RAMCOCEM | D125: 757.75 | E125: 758.10 | F125: 752.75 | G125: 747.75 | H125: 742.40 | I125: 763.10 | J125: 768.45 | K125: 773.45 | L125: 763.45 | M125: 753.1 | N125: 1019200 | O125: 0.00%
A126: 116 | B126: Banking | C126: RBLBANK | D126: 347.45 | E126: 347.77 | F126: 344.28 | G126: 341.12 | H126: 337.63 | I126: 350.93 | J126: 354.42 | K126: 357.58 | L126: 351.25 | M126: 344.6 | N126: 14560500 | O126: 2.20%
A127: 117 | B127: Power | C127: RECLTD | D127: 143.95 | E127: 143.48 | F127: 142.42 | G127: 140.88 | H127: 139.82 | I127: 145.02 | J127: 146.08 | K127: 147.62 | L127: 144.55 | M127: 141.95 | N127: 18534000 | O127: -2.12%
A128: 118 | B128: Oil_Gas | C128: RELIANCE | D128: 1520.40 | E128: 1523.83 | F128: 1511.77 | G128: 1503.13 | H128: 1491.07 | I128: 1532.47 | J128: 1544.53 | K128: 1553.17 | L128: 1535.9 | M128: 1515.2 | N128: 55271500 | O128: 0.80%
A129: 119 | B129: Metals | C129: SAIL | D129: 43.15 | E129: 43.20 | F129: 42.65 | G129: 42.15 | H129: 41.60 | I129: 43.70 | J129: 44.25 | K129: 44.75 | L129: 43.75 | M129: 42.7 | N129: 92488700 | O129: -2.72%
A130: 120 | B130: Banking | C130: SBIN | D130: 336.45 | E130: 336.08 | F130: 334.42 | G130: 332.38 | H130: 330.72 | I130: 338.12 | J130: 339.78 | K130: 341.82 | L130: 337.75 | M130: 334.05 | N130: 106566000 | O130: -0.93%
A131: 121 | B131: Cement | C131: SHREECEM | D131: 20444.50 | E131: 20488.17 | F131: 20386.38 | G131: 20328.27 | H131: 20226.48 | I131: 20546.28 | J131: 20648.07 | K131: 20706.18 | L131: 20589.95 | M131: 20430.05 | N131: 132700 | O131: 1.34%
A132: 122 | B132: Capital_Goods | C132: SIEMENS | D132: 1494.60 | E132: 1497.37 | F132: 1485.23 | G132: 1475.87 | H132: 1463.73 | I132: 1506.73 | J132: 1518.87 | K132: 1528.23 | L132: 1509.5 | M132: 1488 | N132: 2267650 | O132: -0.77%
A133: 123 | B133: Textile | C133: SRF | D133: 3455.10 | E133: 3451.70 | F133: 3439.40 | G133: 3423.70 | H133: 3411.40 | I133: 3467.40 | J133: 3479.70 | K133: 3495.40 | L133: 3464 | M133: 3436 | N133: 769500 | O133: 1.12%
A134: 124 | B134: Finance | C134: SRTRANSFIN | D134: 1148.40 | E134: 1158.83 | F134: 1135.77 | G134: 1123.13 | H134: 1100.07 | I134: 1171.47 | J134: 1194.53 | K134: 1207.17 | L134: 1181.9 | M134: 1146.2 | N134: 3991800 | O134: 0.41%
A135: 125 | B135: Pharma | C135: SUNPHARMA | D135: 435.75 | E135: 435.55 | F135: 433.30 | G135: 430.85 | H135: 428.60 | I135: 438.00 | J135: 440.25 | K135: 442.70 | L135: 437.8 | M135: 433.1 | N135: 63403750 | O135: 0.01%
A136: 126 | B136: Media | C136: SUNTV | D136: 442.00 | E136: 443.53 | F136: 439.52 | G136: 437.03 | H136: 433.02 | I136: 446.02 | J136: 450.03 | K136: 452.52 | L136: 447.55 | M136: 441.05 | N136: 4178400 | O136: 1.52%
A137: 127 | B137: Fertilisers | C137: TATACHEM | D137: 674.55 | E137: 672.78 | F137: 668.87 | G137: 663.18 | H137: 659.27 | I137: 678.47 | J137: 682.38 | K137: 688.07 | L137: 676.7 | M137: 667.1 | N137: 2883600 | O137: -0.99%
A138: 128 | B138: FMCG | C138: TATAGLOBAL | D138: 325.00 | E138: 323.53 | F138: 321.47 | G138: 317.93 | H138: 315.87 | I138: 327.07 | J138: 329.13 | K138: 332.67 | L138: 325.6 | M138: 320 | N138: 9271800 | O138: -3.73%
A139: 129 | B139: Automobile | C139: TATAMOTORS | D139: 185.05 | E139: 185.58 | F139: 183.87 | G139: 182.68 | H139: 180.97 | I139: 186.77 | J139: 188.48 | K139: 189.67 | L139: 187.3 | M139: 184.4 | N139: 65282600 | O139: 0.32%
A140: 130 | B140: Automobile | C140: TATAMTRDVR | D140: 76.20 | E140: 76.58 | F140: 75.42 | G140: 74.63 | H140: 73.47 | I140: 77.37 | J140: 78.53 | K140: 79.32 | L140: 77.75 | M140: 75.8 | N140: 33258000 | O140: -1.26%
A141: 131 | B141: Power | C141: TATAPOWER | D141: 58.00 | E141: 57.73 | F141: 57.27 | G141: 56.53 | H141: 56.07 | I141: 58.47 | J141: 58.93 | K141: 59.67 | L141: 58.2 | M141: 57 | N141: 71307000 | O141: 1.01%
A142: 132 | B142: Metals | C142: TATASTEEL | D142: 470.35 | E142: 471.62 | F142: 464.48 | G142: 458.62 | H142: 451.48 | I142: 477.48 | J142: 484.62 | K142: 490.48 | L142: 478.75 | M142: 465.75 | N142: 23392500 | O142: -3.23%
A143: 133 | B143: Technology | C143: TCS | D143: 2177.05 | E143: 2177.15 | F143: 2161.75 | G143: 2146.45 | H143: 2131.05 | I143: 2192.45 | J143: 2207.85 | K143: 2223.15 | L143: 2192.55 | M143: 2161.85 | N143: 16154750 | O143: 0.58%
A144: 134 | B144: Technology | C144: TECHM | D144: 765.40 | E144: 766.18 | F144: 762.77 | G144: 760.13 | H144: 756.72 | I144: 768.82 | J144: 772.23 | K144: 774.87 | L144: 769.6 | M144: 763.55 | N144: 15680400 | O144: -0.02%
A145: 135 | B145: FMCG | C145: TITAN | D145: 1158.40 | E145: 1172.35 | F145: 1141.75 | G145: 1125.10 | H145: 1094.50 | I145: 1189.00 | J145: 1219.60 | K145: 1236.25 | L145: 1202.95 | M145: 1155.7 | N145: 11073000 | O145: 5.47%
A146: 136 | B146: Pharma | C146: TORNTPHARM | D146: 1855.85 | E146: 1858.33 | F146: 1849.17 | G146: 1842.48 | H146: 1833.32 | I146: 1865.02 | J146: 1874.18 | K146: 1880.87 | L146: 1867.5 | M146: 1851.65 | N146: 276000 | O146: -0.72%
A147: 137 | B147: Power | C147: TORNTPOWER | D147: 287.85 | E147: 286.75 | F147: 284.65 | G147: 281.45 | H147: 279.35 | I147: 289.95 | J147: 292.05 | K147: 295.25 | L147: 288.85 | M147: 283.55 | N147: 3708000 | O147: 1.90%
A148: 138 | B148: Automobile | C148: TVSMOTOR | D148: 460.80 | E148: 459.58 | F148: 456.22 | G148: 451.63 | H148: 448.27 | I148: 464.17 | J148: 467.53 | K148: 472.12 | L148: 462.95 | M148: 455 | N148: 5601150 | O148: 1.17%
A149: 139 | B149: FMCG | C149: UBL | D149: 1280.15 | E149: 1280.72 | F149: 1267.43 | G149: 1254.72 | H149: 1241.43 | I149: 1293.43 | J149: 1306.72 | K149: 1319.43 | L149: 1294 | M149: 1268 | N149: 1456000 | O149: -4.01%
A150: 140 | B150: Finance | C150: UJJIVAN | D150: 348.50 | E150: 349.93 | F150: 346.12 | G150: 343.73 | H150: 339.92 | I150: 352.32 | J150: 356.13 | K150: 358.52 | L150: 353.75 | M150: 347.55 | N150: 7910100 | O150: 2.29%
A151: 141 | B151: Cement | C151: ULTRACEMCO | D151: 4090.40 | E151: 4083.93 | F151: 4071.47 | G151: 4052.53 | H151: 4040.07 | I151: 4102.87 | J151: 4115.33 | K151: 4134.27 | L151: 4096.4 | M151: 4065 | N151: 2641600 | O151: -0.82%
A152: 142 | B152: Fertilisers | C152: UPL | D152: 592.05 | E152: 589.78 | F152: 586.37 | G152: 580.68 | H152: 577.27 | I152: 595.47 | J152: 598.88 | K152: 604.57 | L152: 593.2 | M152: 584.1 | N152: 13546800 | O152: -0.44%
A153: 143 | B153: Metals | C153: VEDL | D153: 155.40 | E153: 154.60 | F153: 153.00 | G153: 150.60 | H153: 149.00 | I153: 157.00 | J153: 158.60 | K153: 161.00 | L153: 156.2 | M153: 152.2 | N153: 79240000 | O153: -1.93%
A154: 144 | B154: Capital_Goods | C154: VOLTAS | D154: 657.35 | E154: 658.92 | F154: 653.58 | G154: 649.82 | H154: 644.48 | I154: 662.68 | J154: 668.02 | K154: 671.78 | L154: 664.25 | M154: 655.15 | N154: 3160000 | O154: 3.10%
A155: 145 | B155: Technology | C155: WIPRO | D155: 247.85 | E155: 247.73 | F155: 246.77 | G155: 245.68 | H155: 244.72 | I155: 248.82 | J155: 249.78 | K155: 250.87 | L155: 248.7 | M155: 246.65 | N155: 18476800 | O155: 1.10%
A156: 146 | B156: Banking | C156: YESBANK | D156: 43.40 | E156: 43.75 | F156: 42.80 | G156: 42.20 | H156: 41.25 | I156: 44.35 | J156: 45.30 | K156: 45.90 | L156: 44.7 | M156: 43.15 | N156: 277393600 | O156: 1.74%
A157: 147 | B157: Media | C157: ZEEL | D157: 289.90 | E157: 291.78 | F157: 286.62 | G157: 283.33 | H157: 278.17 | I157: 295.07 | J157: 300.23 | K157: 303.52 | L157: 296.95 | M157: 288.5 | N157: 29025800 | O157: 2.86%
A158: 151
A175: Pivot Point: This is trigger point for intra day buy/sell based on the price range of the previous day
A176: As per the tool,the trader should take BUY position just above Pivot and keep the stop loss of pivot point and the first target would be Resistance 1(R1)
A177: If R1 is crossed then R2 becomes the next target with stop loss of at R1
A178: Similarly if price goes below pivot point then the trader should sell and keep a stop loss of pivot point and the first target would be S1
A179: If S1 is crossed then S2 becomes the next target with stop loss of at S1
A181: Disclaimer:
A182: This document has been prepared by the Retail Research Desk of Asit C Mehta
A183: Investment Intermediates Ltd. and is meant for use of the recipient only
A184: and is not for circulation. This document is not to be reported or
A185: copied or made available to others. It should not be considered to be
A186: taken as an offer to sell or a solicitation to buy any security. The
A187: information contained herein is from sources believed reliable. We do
A188: not represent that it is accurate or complete and it should not be
A189: relied upon as such. We may from time to time have positions in and buy
A190: and sell securities referred to herein

Sheet Cash Intra
M5: Back to Main Page
A6: FOR INTRA DAY TRADING | K6: =Main!B10 -> 2020-01-02
A8: Sr.no | B8: Scrip | C8: CLOSE RATE | D8: Pivot Point | E8: Supports | H8: Resistances
C9: Point | E9: S1 | F9: S2 | G9: S3 | H9: R1 | I9: R2 | J9: R3 | K9: HIGH | L9: LOW | M9: Total Trade Quanity in Lakhs
A10: 1 | B10: Nifty 50 | C10: 12182.5 | D10: 12190.00 | E10: 12157.80 | F10: 12133.10 | G10: 12100.90 | H10: 12214.70 | I10: 12246.90 | J10: 12271.60 | K10: 12222.2 | L10: 12165.3
A11: 2 | B11: Nifty Bank | C11: 32102.9 | D11: 32169.37 | E11: 31990.73 | F11: 31878.57 | G11: 31699.93 | H11: 32281.53 | I11: 32460.17 | J11: 32572.33 | K11: 32348 | L11: 32057.2
A12: 3 | B12: Nifty CPSE | C12: 1942.95 | D12: 1939.58 | E12: 1932.82 | F12: 1922.68 | G12: 1915.92 | H12: 1949.72 | I12: 1956.48 | J12: 1966.62 | K12: 1946.35 | L12: 1929.45
A13: 4 | B13: Nifty Infra | C13: 3263.25 | D13: 3264.55 | E13: 3255.45 | F13: 3247.65 | G13: 3238.55 | H13: 3272.35 | I13: 3281.45 | J13: 3289.25 | K13: 3273.65 | L13: 3256.75
A14: 5 | B14: Nifty IT | C14: 15722.15 | D14: 15715.03 | E14: 15683.82 | F14: 15645.48 | G14: 15614.27 | H14: 15753.37 | I14: 15784.58 | J14: 15822.92 | K14: 15746.25 | L14: 15676.7
A15: 6 | B15: Nifty PSE | C15: 3245.5 | D15: 3238.67 | E15: 3227.83 | F15: 3210.17 | G15: 3199.33 | H15: 3256.33 | I15: 3267.17 | J15: 3284.83 | K15: 3249.5 | L15: 3221
A16: 7 | B16: Nifty Midcap 50 | C16: 4711.55 | D16: 4709.78 | E16: 4694.82 | F16: 4678.08 | G16: 4663.12 | H16: 4726.52 | I16: 4741.48 | J16: 4758.22 | K16: 4724.75 | L16: 4693.05
A17: 8 | B17: ACC | C17: 1440.1 | D17: 1445.10 | E17: 1433.20 | F17: 1426.30 | G17: 1414.40 | H17: 1452.00 | I17: 1463.90 | J17: 1470.80 | K17: 1457 | L17: 1438.2 | M17: 3.21092
A18: 9 | B18: AUBANK | C18: 797.7 | D18: 799.85 | E18: 789.85 | F18: 782.00 | G18: 772.00 | H18: 807.70 | I18: 817.70 | J18: 825.55 | K18: 809.85 | L18: 792 | M18: 0.89721
A19: 10 | B19: ADANIPORTS | C19: 377.65 | D19: 374.30 | E19: 369.35 | F19: 361.05 | G19: 356.10 | H19: 382.60 | I19: 387.55 | J19: 395.85 | K19: 379.25 | L19: 366 | M19: 113.77167
A20: 11 | B20: ADANIPOWER | C20: 63.9 | D20: 63.25 | E20: 62.20 | F20: 60.50 | G20: 59.45 | H20: 64.95 | I20: 66.00 | J20: 67.70 | K20: 64.3 | L20: 61.55 | M20: 164.15397
A21: 12 | B21: ABCAPITAL | C21: 101.5 | D21: 102.03 | E21: 100.67 | F21: 99.83 | G21: 98.47 | H21: 102.87 | I21: 104.23 | J21: 105.07 | K21: 103.4 | L21: 101.2 | M21: 9.82667
A22: 13 | B22: ABFRL | C22: 234.1 | D22: 233.70 | E22: 230.55 | F22: 227.00 | G22: 223.85 | H22: 237.25 | I22: 240.40 | J22: 243.95 | K22: 236.85 | L22: 230.15 | M22: 2.41005
A23: 14 | B23: AJANTPHARM | C23: 978.45 | D23: 979.00 | E23: 970.65 | F23: 962.85 | G23: 954.50 | H23: 986.80 | I23: 995.15 | J23: 1002.95 | K23: 987.35 | L23: 971.2 | M23: 0.29557
A24: 15 | B24: ALKEM | C24: 2082.85 | D24: 2063.25 | E24: 2026.50 | F24: 1970.15 | G24: 1933.40 | H24: 2119.60 | I24: 2156.35 | J24: 2212.70 | K24: 2100 | L24: 2006.9 | M24: 0.94927
A25: 16 | B25: ALBK | C25: 18.8 | D25: 18.83 | E25: 18.72 | F25: 18.63 | G25: 18.52 | H25: 18.92 | I25: 19.03 | J25: 19.12 | K25: 18.95 | L25: 18.75 | M25: 9.10866
A26: 17 | B26: AMARAJABAT | C26: 720.9 | D26: 723.87 | E26: 715.13 | F26: 709.37 | G26: 700.63 | H26: 729.63 | I26: 738.37 | J26: 744.13 | K26: 732.6 | L26: 718.1 | M26: 4.05425
A27: 18 | B27: AMBUJACEM | C27: 197 | D27: 196.85 | E27: 195.95 | F27: 194.90 | G27: 194.00 | H27: 197.90 | I27: 198.80 | J27: 199.85 | K27: 197.75 | L27: 195.8 | M27: 14.59556
A28: 19 | B28: APOLLOHOSP | C28: 1426.35 | D28: 1430.18 | E28: 1418.37 | F28: 1410.38 | G28: 1398.57 | H28: 1438.17 | I28: 1449.98 | J28: 1457.97 | K28: 1442 | L28: 1422.2 | M28: 2.68255
A29: 20 | B29: APOLLOTYRE | C29: 163.35 | D29: 163.77 | E29: 162.58 | F29: 161.82 | G29: 160.63 | H29: 164.53 | I29: 165.72 | J29: 166.48 | K29: 164.95 | L29: 163 | M29: 6.4285
A30: 21 | B30: ASHOKLEY | C30: 81.05 | D30: 81.27 | E30: 80.58 | F30: 80.12 | G30: 79.43 | H30: 81.73 | I30: 82.42 | J30: 82.88 | K30: 81.95 | L30: 80.8 | M30: 77.97743
A31: 22 | B31: ASIANPAINT | C31: 1793.2 | D31: 1792.98 | E31: 1783.42 | F31: 1773.63 | G31: 1764.07 | H31: 1802.77 | I31: 1812.33 | J31: 1822.12 | K31: 1802.55 | L31: 1783.2 | M31: 3.97285
A32: 23 | B32: AUROPHARMA | C32: 458.1 | D32: 459.48 | E32: 455.47 | F32: 452.83 | G32: 448.82 | H32: 462.12 | I32: 466.13 | J32: 468.77 | K32: 463.5 | L32: 456.85 | M32: 10.81955
A33: 24 | B33: DMART | C33: 1828.5 | D33: 1838.50 | E33: 1810.00 | F33: 1791.50 | G33: 1763.00 | H33: 1857.00 | I33: 1885.50 | J33: 1904.00 | K33: 1867 | L33: 1820 | M33: 4.29407
A34: 25 | B34: AXISBANK | C34: 748.7 | D34: 751.95 | E34: 743.95 | F34: 739.20 | G34: 731.20 | H34: 756.70 | I34: 764.70 | J34: 769.45 | K34: 759.95 | L34: 747.2 | M34: 49.17748
A35: 26 | B35: BAJAJ-AUTO | C35: 3150.1 | D35: 3161.98 | E35: 3130.22 | F35: 3110.33 | G35: 3078.57 | H35: 3181.87 | I35: 3213.63 | J35: 3233.52 | K35: 3193.75 | L35: 3142.1 | M35: 3.20021
A36: 27 | B36: BAJFINANCE | C36: 4231.3 | D36: 4234.77 | E36: 4217.53 | F36: 4203.77 | G36: 4186.53 | H36: 4248.53 | I36: 4265.77 | J36: 4279.53 | K36: 4252 | L36: 4221 | M36: 4.07042
A37: 28 | B37: BAJAJFINSV | C37: 9378.45 | D37: 9387.62 | E37: 9342.78 | F37: 9307.12 | G37: 9262.28 | H37: 9423.28 | I37: 9468.12 | J37: 9503.78 | K37: 9432.45 | L37: 9351.95 | M37: 0.63668
A38: 29 | B38: BAJAJHLDNG | C38: 3376.7 | D38: 3393.93 | E38: 3340.77 | F38: 3304.83 | G38: 3251.67 | H38: 3429.87 | I38: 3483.03 | J38: 3518.97 | K38: 3447.1 | L38: 3358 | M38: 0.12825
A39: 30 | B39: BALKRISIND | C39: 987.25 | D39: 989.75 | E39: 982.50 | F39: 977.75 | G39: 970.50 | H39: 994.50 | I39: 1001.75 | J39: 1006.50 | K39: 997 | L39: 985 | M39: 2.7609
A40: 31 | B40: BANDHANBNK | C40: 503 | D40: 505.25 | E40: 498.75 | F40: 494.50 | G40: 488.00 | H40: 509.50 | I40: 516.00 | J40: 520.25 | K40: 511.75 | L40: 501 | M40: 5.20264
A41: 32 | B41: BANKBARODA | C41: 101.9 | D41: 101.97 | E41: 101.23 | F41: 100.57 | G41: 99.83 | H41: 102.63 | I41: 103.37 | J41: 104.03 | K41: 102.7 | L41: 101.3 | M41: 128.96434
A42: 33 | B42: BANKINDIA | C42: 70.45 | D42: 70.38 | E42: 69.67 | F42: 68.88 | G42: 68.17 | H42: 71.17 | I42: 71.88 | J42: 72.67 | K42: 71.1 | L42: 69.6 | M42: 16.11534
A43: 34 | B43: BATAINDIA | C43: 1745.3 | D43: 1751.17 | E43: 1737.63 | F43: 1729.97 | G43: 1716.43 | H43: 1758.83 | I43: 1772.37 | J43: 1780.03 | K43: 1764.7 | L43: 1743.5 | M43: 2.14199
A44: 35 | B44: BERGEPAINT | C44: 517.45 | D44: 518.13 | E44: 514.62 | F44: 511.78 | G44: 508.27 | H44: 520.97 | I44: 524.48 | J44: 527.32 | K44: 521.65 | L44: 515.3 | M44: 6.06573
A45: 36 | B45: BEL | C45: 100.15 | D45: 100.17 | E45: 99.38 | F45: 98.62 | G45: 97.83 | H45: 100.93 | I45: 101.72 | J45: 102.48 | K45: 100.95 | L45: 99.4 | M45: 51.46098
A46: 37 | B46: BHARATFORG | C46: 485.15 | D46: 485.73 | E46: 482.07 | F46: 478.98 | G46: 475.32 | H46: 488.82 | I46: 492.48 | J46: 495.57 | K46: 489.4 | L46: 482.65 | M46: 9.25007
A47: 38 | B47: BHEL | C47: 43.5 | D47: 43.62 | E47: 43.13 | F47: 42.77 | G47: 42.28 | H47: 43.98 | I47: 44.47 | J47: 44.83 | K47: 44.1 | L47: 43.25 | M47: 122.83581
A48: 39 | B48: BPCL | C48: 491.65 | D48: 491.35 | E48: 488.80 | F48: 485.95 | G48: 483.40 | H48: 494.20 | I48: 496.75 | J48: 499.60 | K48: 493.9 | L48: 488.5 | M48: 23.83296
A49: 40 | B49: BHARTIARTL | C49: 453.3 | D49: 454.52 | E49: 448.53 | F49: 443.77 | G49: 437.78 | H49: 459.28 | I49: 465.27 | J49: 470.03 | K49: 460.5 | L49: 449.75 | M49: 50.59995
A50: 41 | B50: INFRATEL | C50: 254.45 | D50: 255.27 | E50: 252.08 | F50: 249.72 | G50: 246.53 | H50: 257.63 | I50: 260.82 | J50: 263.18 | K50: 258.45 | L50: 252.9 | M50: 51.09979
A51: 42 | B51: BIOCON | C51: 294.55 | D51: 293.75 | E51: 292.35 | F51: 290.15 | G51: 288.75 | H51: 295.95 | I51: 297.35 | J51: 299.55 | K51: 295.15 | L51: 291.55 | M51: 8.2951
A52: 43 | B52: BBTC | C52: 1029.2 | D52: 1032.03 | E52: 1020.12 | F52: 1011.03 | G52: 999.12 | H52: 1041.12 | I52: 1053.03 | J52: 1062.12 | K52: 1043.95 | L52: 1022.95 | M52: 0.44974
A53: 44 | B53: BOSCHLTD | C53: 15284.8 | D53: 15358.17 | E53: 15176.63 | F53: 15068.47 | G53: 14886.93 | H53: 15466.33 | I53: 15647.87 | J53: 15756.03 | K53: 15539.7 | L53: 15250 | M53: 0.10221
A54: 45 | B54: BRITANNIA | C54: 3039.65 | D54: 3040.02 | E54: 3027.03 | F54: 3014.42 | G54: 3001.43 | H54: 3052.63 | I54: 3065.62 | J54: 3078.23 | K54: 3053 | L54: 3027.4 | M54: 1.10561
A55: 46 | B55: CESC | C55: 746.8 | D55: 744.78 | E55: 740.12 | F55: 733.43 | G55: 728.77 | H55: 751.47 | I55: 756.13 | J55: 762.82 | K55: 749.45 | L55: 738.1 | M55: 2.40137
A56: 47 | B56: CADILAHC | C56: 254.25 | D56: 254.67 | E56: 252.68 | F56: 251.12 | G56: 249.13 | H56: 256.23 | I56: 258.22 | J56: 259.78 | K56: 256.65 | L56: 253.1 | M56: 4.37875
A57: 48 | B57: CANBK | C57: 221.65 | D57: 221.60 | E57: 219.85 | F57: 218.05 | G57: 216.30 | H57: 223.40 | I57: 225.15 | J57: 226.95 | K57: 223.35 | L57: 219.8 | M57: 42.15881
A58: 49 | B58: CASTROLIND | C58: 129 | D58: 129.28 | E58: 128.42 | F58: 127.83 | G58: 126.97 | H58: 129.87 | I58: 130.73 | J58: 131.32 | K58: 130.15 | L58: 128.7 | M58: 4.13634
A59: 50 | B59: CHOLAFIN | C59: 302.85 | D59: 304.32 | E59: 300.63 | F59: 298.42 | G59: 294.73 | H59: 306.53 | I59: 310.22 | J59: 312.43 | K59: 308 | L59: 302.1 | M59: 3.57891
A60: 51 | B60: CIPLA | C60: 475.9 | D60: 477.12 | E60: 473.23 | F60: 470.57 | G60: 466.68 | H60: 479.78 | I60: 483.67 | J60: 486.33 | K60: 481 | L60: 474.45 | M60: 13.16812
A61: 52 | B61: CUB | C61: 233.5 | D61: 233.50 | E61: 231.60 | F61: 229.70 | G61: 227.80 | H61: 235.40 | I61: 237.30 | J61: 239.20 | K61: 235.4 | L61: 231.6 | M61: 9.04067
A62: 53 | B62: COALINDIA | C62: 211.95 | D62: 210.98 | E62: 209.37 | F62: 206.78 | G62: 205.17 | H62: 213.57 | I62: 215.18 | J62: 217.77 | K62: 212.6 | L62: 208.4 | M62: 64.47592
A63: 54 | B63: COLPAL | C63: 1461.1 | D63: 1461.72 | E63: 1453.43 | F63: 1445.77 | G63: 1437.48 | H63: 1469.38 | I63: 1477.67 | J63: 1485.33 | K63: 1470 | L63: 1454.05 | M63: 1.84535
A64: 55 | B64: CONCOR | C64: 573 | D64: 573.47 | E64: 570.53 | F64: 568.07 | G64: 565.13 | H64: 575.93 | I64: 578.87 | J64: 581.33 | K64: 576.4 | L64: 571 | M64: 6.15465
A65: 56 | B65: COROMANDEL | C65: 528.7 | D65: 530.08 | E65: 525.17 | F65: 521.63 | G65: 516.72 | H65: 533.62 | I65: 538.53 | J65: 542.07 | K65: 535 | L65: 526.55 | M65: 0.47203
A66: 57 | B66: CROMPTON | C66: 242.5 | D66: 241.75 | E66: 240.50 | F66: 238.50 | G66: 237.25 | H66: 243.75 | I66: 245.00 | J66: 247.00 | K66: 243 | L66: 239.75 | M66: 1.96029
A67: 58 | B67: CUMMINSIND | C67: 552.15 | D67: 551.50 | E67: 549.05 | F67: 545.95 | G67: 543.50 | H67: 554.60 | I67: 557.05 | J67: 560.15 | K67: 553.95 | L67: 548.4 | M67: 1.48568
A68: 59 | B68: DLF | C68: 227.55 | D68: 228.93 | E68: 225.72 | F68: 223.88 | G68: 220.67 | H68: 230.77 | I68: 233.98 | J68: 235.82 | K68: 232.15 | L68: 227.1 | M68: 37.6116
A69: 60 | B69: DABUR | C69: 459.8 | D69: 459.38 | E69: 457.97 | F69: 456.13 | G69: 454.72 | H69: 461.22 | I69: 462.63 | J69: 464.47 | K69: 460.8 | L69: 457.55 | M69: 4.95678
A70: 61 | B70: DALBHARAT | C70: 805 | D70: 803.42 | E70: 792.83 | F70: 780.67 | G70: 770.08 | H70: 815.58 | I70: 826.17 | J70: 838.33 | K70: 814 | L70: 791.25 | M70: 0.38108
A71: 62 | B71: DIVISLAB | C71: 1818.85 | D71: 1828.12 | E71: 1806.63 | F71: 1794.42 | G71: 1772.93 | H71: 1840.33 | I71: 1861.82 | J71: 1874.03 | K71: 1849.6 | L71: 1815.9 | M71: 1.57063
A72: 63 | B72: DRREDDY | C72: 2879.4 | D72: 2876.03 | E72: 2863.57 | F72: 2847.73 | G72: 2835.27 | H72: 2891.87 | I72: 2904.33 | J72: 2920.17 | K72: 2888.5 | L72: 2860.2 | M72: 1.54779
A73: 64 | B73: EDELWEISS | C73: 110.3 | D73: 110.80 | E73: 108.70 | F73: 107.10 | G73: 105.00 | H73: 112.40 | I73: 114.50 | J73: 116.10 | K73: 112.9 | L73: 109.2 | M73: 4.71336
A74: 65 | B74: EICHERMOT | C74: 22075.8 | D74: 22223.85 | E74: 21852.95 | F74: 21630.10 | G74: 21259.20 | H74: 22446.70 | I74: 22817.60 | J74: 23040.45 | K74: 22594.75 | L74: 22001 | M74: 1.08648
A75: 66 | B75: EMAMILTD | C75: 312.55 | D75: 312.48 | E75: 309.97 | F75: 307.38 | G75: 304.87 | H75: 315.07 | I75: 317.58 | J75: 320.17 | K75: 315 | L75: 309.9 | M75: 0.8045
A76: 67 | B76: ENDURANCE | C76: 1087.6 | D76: 1082.80 | E76: 1070.80 | F76: 1054.00 | G76: 1042.00 | H76: 1099.60 | I76: 1111.60 | J76: 1128.40 | K76: 1094.8 | L76: 1066 | M76: 0.05112
A77: 68 | B77: ENGINERSIN | C77: 98.75 | D77: 99.00 | E77: 98.35 | F77: 97.95 | G77: 97.30 | H77: 99.40 | I77: 100.05 | J77: 100.45 | K77: 99.65 | L77: 98.6 | M77: 4.29657
A78: 69 | B78: ESCORTS | C78: 606.2 | D78: 614.55 | E78: 594.70 | F78: 583.20 | G78: 563.35 | H78: 626.05 | I78: 645.90 | J78: 657.40 | K78: 634.4 | L78: 603.05 | M78: 41.51641
A79: 70 | B79: EXIDEIND | C79: 186 | D79: 185.72 | E79: 184.53 | F79: 183.07 | G79: 181.88 | H79: 187.18 | I79: 188.37 | J79: 189.83 | K79: 186.9 | L79: 184.25 | M79: 6.19586
A80: 71 | B80: FEDERALBNK | C80: 88.75 | D80: 88.67 | E80: 88.08 | F80: 87.42 | G80: 86.83 | H80: 89.33 | I80: 89.92 | J80: 90.58 | K80: 89.25 | L80: 88 | M80: 58.9057
A81: 72 | B81: FCONSUMER | C81: 22.7 | D81: 22.77 | E81: 22.43 | F81: 22.17 | G81: 21.83 | H81: 23.03 | I81: 23.37 | J81: 23.63 | K81: 23.1 | L81: 22.5 | M81: 6.86092
A82: 73 | B82: FRETAIL | C82: 340.55 | D82: 341.65 | E82: 338.40 | F82: 336.25 | G82: 333.00 | H82: 343.80 | I82: 347.05 | J82: 349.20 | K82: 344.9 | L82: 339.5 | M82: 2.40809
A83: 74 | B83: GAIL | C83: 121.2 | D83: 120.92 | E83: 120.03 | F83: 118.87 | G83: 117.98 | H83: 122.08 | I83: 122.97 | J83: 124.13 | K83: 121.8 | L83: 119.75 | M83: 47.04499
A84: 75 | B84: GMRINFRA | C84: 20.9 | D84: 20.93 | E84: 20.72 | F84: 20.53 | G84: 20.32 | H84: 21.12 | I84: 21.33 | J84: 21.52 | K84: 21.15 | L84: 20.75 | M84: 39.12954
A85: 76 | B85: GICRE | C85: 227.35 | D85: 228.43 | E85: 224.92 | F85: 222.48 | G85: 218.97 | H85: 230.87 | I85: 234.38 | J85: 236.82 | K85: 231.95 | L85: 226 | M85: 1.48723
A86: 77 | B86: GLENMARK | C86: 345.7 | D86: 347.05 | E86: 343.75 | F86: 341.80 | G86: 338.50 | H86: 349.00 | I86: 352.30 | J86: 354.25 | K86: 350.35 | L86: 345.1 | M86: 5.96315
A87: 78 | B87: GODREJAGRO | C87: 523.2 | D87: 523.77 | E87: 515.03 | F87: 506.87 | G87: 498.13 | H87: 531.93 | I87: 540.67 | J87: 548.83 | K87: 532.5 | L87: 515.6 | M87: 1.31972
A88: 79 | B88: GODREJCP | C88: 691.35 | D88: 689.62 | E88: 685.33 | F88: 679.32 | G88: 675.03 | H88: 695.63 | I88: 699.92 | J88: 705.93 | K88: 693.9 | L88: 683.6 | M88: 2.79887
A89: 80 | B89: GODREJIND | C89: 431.65 | D89: 429.67 | E89: 422.53 | F89: 413.42 | G89: 406.28 | H89: 438.78 | I89: 445.92 | J89: 455.03 | K89: 436.8 | L89: 420.55 | M89: 0.93213
A90: 81 | B90: GODREJPROP | C90: 990.2 | D90: 991.40 | E90: 978.80 | F90: 967.40 | G90: 954.80 | H90: 1002.80 | I90: 1015.40 | J90: 1026.80 | K90: 1004 | L90: 980 | M90: 2.49292
A91: 82 | B91: GRAPHITE | C91: 306.5 | D91: 306.45 | E91: 302.20 | F91: 297.90 | G91: 293.65 | H91: 310.75 | I91: 315.00 | J91: 319.30 | K91: 310.7 | L91: 302.15 | M91: 11.27394
A92: 83 | B92: GRASIM | C92: 742.5 | D92: 742.83 | E92: 738.27 | F92: 734.03 | G92: 729.47 | H92: 747.07 | I92: 751.63 | J92: 755.87 | K92: 747.4 | L92: 738.6 | M92: 6.85313
A93: 84 | B93: GSPL | C93: 220.6 | D93: 220.48 | E93: 218.47 | F93: 216.33 | G93: 214.32 | H93: 222.62 | I93: 224.63 | J93: 226.77 | K93: 222.5 | L93: 218.35 | M93: 6.3297
A94: 85 | B94: HEG | C94: 1065.8 | D94: 1069.13 | E94: 1051.87 | F94: 1037.93 | G94: 1020.67 | H94: 1083.07 | I94: 1100.33 | J94: 1114.27 | K94: 1086.4 | L94: 1055.2 | M94: 3.05402
A95: 86 | B95: HCLTECH | C95: 571.95 | D95: 570.57 | E95: 568.23 | F95: 564.52 | G95: 562.18 | H95: 574.28 | I95: 576.62 | J95: 580.33 | K95: 572.9 | L95: 566.85 | M95: 9.18373
A96: 87 | B96: HDFCAMC | C96: 3177.4 | D96: 3186.95 | E96: 3158.95 | F96: 3140.50 | G96: 3112.50 | H96: 3205.40 | I96: 3233.40 | J96: 3251.85 | K96: 3214.95 | L96: 3168.5 | M96: 2.17655
A97: 88 | B97: HDFCBANK | C97: 1278.6 | D97: 1276.40 | E97: 1272.80 | F97: 1267.00 | G97: 1263.40 | H97: 1282.20 | I97: 1285.80 | J97: 1291.60 | K97: 1280 | L97: 1270.6 | M97: 18.36849
A98: 89 | B98: HDFCLIFE | C98: 621.45 | D98: 621.27 | E98: 616.53 | F98: 611.62 | G98: 606.88 | H98: 626.18 | I98: 630.92 | J98: 635.83 | K98: 626 | L98: 616.35 | M98: 17.49377
A99: 90 | B99: HAVELLS | C99: 649.5 | D99: 649.50 | E99: 645.65 | F99: 641.80 | G99: 637.95 | H99: 653.35 | I99: 657.20 | J99: 661.05 | K99: 653.35 | L99: 645.65 | M99: 4.92348
A100: 91 | B100: HEROMOTOCO | C100: 2432.55 | D100: 2440.82 | E100: 2419.08 | F100: 2405.62 | G100: 2383.88 | H100: 2454.28 | I100: 2476.02 | J100: 2489.48 | K100: 2462.55 | L100: 2427.35 | M100: 3.14519
A101: 92 | B101: HEXAWARE | C101: 336.15 | D101: 335.73 | E101: 334.07 | F101: 331.98 | G101: 330.32 | H101: 337.82 | I101: 339.48 | J101: 341.57 | K101: 337.4 | L101: 333.65 | M101: 0.95322
A102: 93 | B102: HINDALCO | C102: 214.3 | D102: 214.98 | E102: 212.52 | F102: 210.73 | G102: 208.27 | H102: 216.77 | I102: 219.23 | J102: 221.02 | K102: 217.45 | L102: 213.2 | M102: 50.85208
A103: 94 | B103: HINDPETRO | C103: 265.5 | D103: 265.22 | E103: 263.88 | F103: 262.27 | G103: 260.93 | H103: 266.83 | I103: 268.17 | J103: 269.78 | K103: 266.55 | L103: 263.6 | M103: 7.65044
A104: 95 | B104: HINDUNILVR | C104: 1936.55 | D104: 1931.48 | E104: 1923.07 | F104: 1909.58 | G104: 1901.17 | H104: 1944.97 | I104: 1953.38 | J104: 1966.87 | K104: 1939.9 | L104: 1918 | M104: 5.43035
A105: 96 | B105: HINDZINC | C105: 210.1 | D105: 210.40 | E105: 209.30 | F105: 208.50 | G105: 207.40 | H105: 211.20 | I105: 212.30 | J105: 213.10 | K105: 211.5 | L105: 209.6 | M105: 0.88791
A106: 97 | B106: HUDCO | C106: 37.55 | D106: 37.50 | E106: 36.20 | F106: 34.85 | G106: 33.55 | H106: 38.85 | I106: 40.15 | J106: 41.50 | K106: 38.8 | L106: 36.15 | M106: 24.83055
A107: 98 | B107: HDFC | C107: 2433.95 | D107: 2427.15 | E107: 2415.80 | F107: 2397.65 | G107: 2386.30 | H107: 2445.30 | I107: 2456.65 | J107: 2474.80 | K107: 2438.5 | L107: 2409 | M107: 9.45874
A108: 99 | B108: ICICIBANK | C108: 536.75 | D108: 538.32 | E108: 534.13 | F108: 531.52 | G108: 527.33 | H108: 540.93 | I108: 545.12 | J108: 547.73 | K108: 542.5 | L108: 535.7 | M108: 76.42793
A109: 100 | B109: ICICIGI | C109: 1385.45 | D109: 1388.48 | E109: 1378.57 | F109: 1371.68 | G109: 1361.77 | H109: 1395.37 | I109: 1405.28 | J109: 1412.17 | K109: 1398.4 | L109: 1381.6 | M109: 1.04012
A110: 101 | B110: ICICIPRULI | C110: 480.95 | D110: 481.77 | E110: 478.73 | F110: 476.52 | G110: 473.48 | H110: 483.98 | I110: 487.02 | J110: 489.23 | K110: 484.8 | L110: 479.55 | M110: 6.13516
A111: 102 | B111: IDBI | C111: 37.1 | D111: 37.18 | E111: 36.77 | F111: 36.43 | G111: 36.02 | H111: 37.52 | I111: 37.93 | J111: 38.27 | K111: 37.6 | L111: 36.85 | M111: 16.61071
A112: 103 | B112: IDFCFIRSTB | C112: 45.8 | D112: 45.57 | E112: 45.18 | F112: 44.57 | G112: 44.18 | H112: 46.18 | I112: 46.57 | J112: 47.18 | K112: 45.95 | L112: 44.95 | M112: 125.81227
A113: 104 | B113: ITC | C113: 238.1 | D113: 237.93 | E113: 237.27 | F113: 236.43 | G113: 235.77 | H113: 238.77 | I113: 239.43 | J113: 240.27 | K113: 238.6 | L113: 237.1 | M113: 42.08837
A114: 105 | B114: IBULHSGFIN | C114: 312.7 | D114: 313.88 | E114: 309.47 | F114: 306.23 | G114: 301.82 | H114: 317.12 | I114: 321.53 | J114: 324.77 | K114: 318.3 | L114: 310.65 | M114: 182.94197
A115: 106 | B115: IBVENTURES | C115: 209.05 | D115: 213.12 | E115: 203.03 | F115: 197.02 | G115: 186.93 | H115: 219.13 | I115: 229.22 | J115: 235.23 | K115: 223.2 | L115: 207.1 | M115: 18.05814
A116: 107 | B116: INDIANB | C116: 101.35 | D116: 101.42 | E116: 100.48 | F116: 99.62 | G116: 98.68 | H116: 102.28 | I116: 103.22 | J116: 104.08 | K116: 102.35 | L116: 100.55 | M116: 9.5724
A117: 108 | B117: INDHOTEL | C117: 144.2 | D117: 144.55 | E117: 143.25 | F117: 142.30 | G117: 141.00 | H117: 145.50 | I117: 146.80 | J117: 147.75 | K117: 145.85 | L117: 143.6 | M117: 1.60775
A118: 109 | B118: IOC | C118: 125.95 | D118: 126.15 | E118: 125.55 | F118: 125.15 | G118: 124.55 | H118: 126.55 | I118: 127.15 | J118: 127.55 | K118: 126.75 | L118: 125.75 | M118: 21.27492
A119: 110 | B119: IGL | C119: 425.25 | D119: 426.62 | E119: 422.43 | F119: 419.62 | G119: 415.43 | H119: 429.43 | I119: 433.62 | J119: 436.43 | K119: 430.8 | L119: 423.8 | M119: 5.23748
A120: 111 | B120: INDUSINDBK | C120: 1484.3 | D120: 1496.35 | E120: 1468.75 | F120: 1453.20 | G120: 1425.60 | H120: 1511.90 | I120: 1539.50 | J120: 1555.05 | K120: 1523.95 | L120: 1480.8 | M120: 21.35253
A121: 112 | B121: NAUKRI | C121: 2565.6 | D121: 2561.87 | E121: 2533.73 | F121: 2501.87 | G121: 2473.73 | H121: 2593.73 | I121: 2621.87 | J121: 2653.73 | K121: 2590 | L121: 2530 | M121: 0.60629
A122: 113 | B122: INFY | C122: 736.85 | D122: 736.47 | E122: 732.93 | F122: 729.02 | G122: 725.48 | H122: 740.38 | I122: 743.92 | J122: 747.83 | K122: 740 | L122: 732.55 | M122: 21.12415
A123: 114 | B123: INDIGO | C123: 1333 | D123: 1336.88 | E123: 1326.12 | F123: 1319.23 | G123: 1308.47 | H123: 1343.77 | I123: 1354.53 | J123: 1361.42 | K123: 1347.65 | L123: 1330 | M123: 3.77625
A124: 115 | B124: IPCALAB | C124: 1138.35 | D124: 1135.87 | E124: 1128.58 | F124: 1118.82 | G124: 1111.53 | H124: 1145.63 | I124: 1152.92 | J124: 1162.68 | K124: 1143.15 | L124: 1126.1 | M124: 0.38106
A125: 116 | B125: JSWENERGY | C125: 69.05 | D125: 69.27 | E125: 68.43 | F125: 67.82 | G125: 66.98 | H125: 69.88 | I125: 70.72 | J125: 71.33 | K125: 70.1 | L125: 68.65 | M125: 2.81629
A126: 117 | B126: JSWSTEEL | C126: 268.1 | D126: 269.15 | E126: 264.80 | F126: 261.50 | G126: 257.15 | H126: 272.45 | I126: 276.80 | J126: 280.10 | K126: 273.5 | L126: 265.85 | M126: 69.52048
A127: 118 | B127: JINDALSTEL | C127: 166.4 | D127: 167.37 | E127: 163.43 | F127: 160.47 | G127: 156.53 | H127: 170.33 | I127: 174.27 | J127: 177.23 | K127: 171.3 | L127: 164.4 | M127: 246.48797
A128: 119 | B128: JUBLFOOD | C128: 1663.15 | D128: 1662.98 | E128: 1652.97 | F128: 1642.78 | G128: 1632.77 | H128: 1673.17 | I128: 1683.18 | J128: 1693.37 | K128: 1673 | L128: 1652.8 | M128: 11.42694
A129: 120 | B129: JUBILANT | C129: 532.65 | D129: 535.90 | E129: 527.35 | F129: 522.05 | G129: 513.50 | H129: 541.20 | I129: 549.75 | J129: 555.05 | K129: 544.45 | L129: 530.6 | M129: 0.77438
A130: 121 | B130: KOTAKBANK | C130: 1674.05 | D130: 1680.93 | E130: 1665.12 | F130: 1656.18 | G130: 1640.37 | H130: 1689.87 | I130: 1705.68 | J130: 1714.62 | K130: 1696.75 | L130: 1672 | M130: 14.75056
A131: 122 | B131: L&TFH | C131: 118.1 | D131: 118.33 | E131: 117.17 | F131: 116.23 | G131: 115.07 | H131: 119.27 | I131: 120.43 | J131: 121.37 | K131: 119.5 | L131: 117.4 | M131: 31.0525
A132: 123 | B132: LTTS | C132: 1493.8 | D132: 1488.18 | E132: 1475.62 | F132: 1457.43 | G132: 1444.87 | H132: 1506.37 | I132: 1518.93 | J132: 1537.12 | K132: 1500.75 | L132: 1470 | M132: 0.81809
A133: 124 | B133: LICHSGFIN | C133: 431.8 | D133: 433.55 | E133: 428.65 | F133: 425.50 | G133: 420.60 | H133: 436.70 | I133: 441.60 | J133: 444.75 | K133: 438.45 | L133: 430.4 | M133: 14.72079
A134: 125 | B134: LTI | C134: 1782.1 | D134: 1777.07 | E134: 1755.13 | F134: 1728.17 | G134: 1706.23 | H134: 1804.03 | I134: 1825.97 | J134: 1852.93 | K134: 1799 | L134: 1750.1 | M134: 0.96053
A135: 126 | B135: LT | C135: 1309.95 | D135: 1310.62 | E135: 1302.33 | F135: 1294.72 | G135: 1286.43 | H135: 1318.23 | I135: 1326.52 | J135: 1334.13 | K135: 1318.9 | L135: 1303 | M135: 31.23998
A136: 127 | B136: LUPIN | C136: 771.15 | D136: 769.90 | E136: 766.55 | F136: 761.95 | G136: 758.60 | H136: 774.50 | I136: 777.85 | J136: 782.45 | K136: 773.25 | L136: 765.3 | M136: 4.65429
A137: 128 | B137: MRF | C137: 66709.05 | D137: 66584.35 | E137: 66224.70 | F137: 65740.35 | G137: 65380.70 | H137: 67068.70 | I137: 67428.35 | J137: 67912.70 | K137: 66944 | L137: 66100 | M137: 0.04235
A138: 129 | B138: MGL | C138: 1066.1 | D138: 1066.40 | E138: 1061.15 | F138: 1056.20 | G138: 1050.95 | H138: 1071.35 | I138: 1076.60 | J138: 1081.55 | K138: 1071.65 | L138: 1061.45 | M138: 2.25628
A139: 130 | B139: M&MFIN | C139: 332.3 | D139: 329.17 | E139: 325.13 | F139: 317.97 | G139: 313.93 | H139: 336.33 | I139: 340.37 | J139: 347.53 | K139: 333.2 | L139: 322 | M139: 16.90609
A140: 131 | B140: M&M | C140: 536.6 | D140: 534.72 | E140: 531.43 | F140: 526.27 | G140: 522.98 | H140: 539.88 | I140: 543.17 | J140: 548.33 | K140: 538 | L140: 529.55 | M140: 26.11808
A141: 132 | B141: MANAPPURAM | C141: 177.25 | D141: 177.13 | E141: 175.62 | F141: 173.98 | G141: 172.47 | H141: 178.77 | I141: 180.28 | J141: 181.92 | K141: 178.65 | L141: 175.5 | M141: 15.31363
A142: 133 | B142: MRPL | C142: 43.7 | D142: 44.08 | E142: 43.02 | F142: 42.33 | G142: 41.27 | H142: 44.77 | I142: 45.83 | J142: 46.52 | K142: 45.15 | L142: 43.4 | M142: 2.63049
A143: 134 | B143: MARICO | C143: 345.75 | D143: 344.53 | E143: 342.22 | F143: 338.68 | G143: 336.37 | H143: 348.07 | I143: 350.38 | J143: 353.92 | K143: 346.85 | L143: 341 | M143: 11.19565
A144: 135 | B144: MARUTI | C144: 7311.7 | D144: 7334.57 | E144: 7259.18 | F144: 7206.67 | G144: 7131.28 | H144: 7387.08 | I144: 7462.47 | J144: 7514.98 | K144: 7409.95 | L144: 7282.05 | M144: 6.34725
A145: 136 | B145: MFSL | C145: 542.2 | D145: 541.05 | E145: 536.15 | F145: 530.10 | G145: 525.20 | H145: 547.10 | I145: 552.00 | J145: 558.05 | K145: 545.95 | L145: 535 | M145: 19.47334
A146: 137 | B146: MINDTREE | C146: 811.75 | D146: 807.42 | E146: 799.83 | F146: 787.92 | G146: 780.33 | H146: 819.33 | I146: 826.92 | J146: 838.83 | K146: 815 | L146: 795.5 | M146: 8.48083
A147: 138 | B147: MOTHERSUMI | C147: 145.7 | D147: 146.23 | E147: 144.72 | F147: 143.73 | G147: 142.22 | H147: 147.22 | I147: 148.73 | J147: 149.72 | K147: 147.75 | L147: 145.25 | M147: 34.44638
A148: 139 | B148: MPHASIS | C148: 923.8 | D148: 922.12 | E148: 915.23 | F148: 906.67 | G148: 899.78 | H148: 930.68 | I148: 937.57 | J148: 946.13 | K148: 929 | L148: 913.55 | M148: 1.31875
A149: 140 | B149: MUTHOOTFIN | C149: 760.6 | D149: 761.40 | E149: 757.20 | F149: 753.80 | G149: 749.60 | H149: 764.80 | I149: 769.00 | J149: 772.40 | K149: 765.6 | L149: 758 | M149: 2.48641
A150: 141 | B150: NATCOPHARM | C150: 618.3 | D150: 616.02 | E150: 597.23 | F150: 576.17 | G150: 557.38 | H150: 637.08 | I150: 655.87 | J150: 676.93 | K150: 634.8 | L150: 594.95 | M150: 7.78947
A151: 142 | B151: NBCC | C151: 34.7 | D151: 34.73 | E151: 34.32 | F151: 33.93 | G151: 33.52 | H151: 35.12 | I151: 35.53 | J151: 35.92 | K151: 35.15 | L151: 34.35 | M151: 82.84763
A152: 143 | B152: NHPC | C152: 24 | D152: 24.00 | E152: 23.90 | F152: 23.80 | G152: 23.70 | H152: 24.10 | I152: 24.20 | J152: 24.30 | K152: 24.1 | L152: 23.9 | M152: 3.62729
A153: 144 | B153: NMDC | C153: 128.35 | D153: 128.40 | E153: 127.10 | F153: 125.85 | G153: 124.55 | H153: 129.65 | I153: 130.95 | J153: 132.20 | K153: 129.7 | L153: 127.15 | M153: 26.20422
A154: 145 | B154: NTPC | C154: 121.55 | D154: 120.60 | E154: 119.20 | F154: 116.85 | G154: 115.45 | H154: 122.95 | I154: 124.35 | J154: 126.70 | K154: 122 | L154: 118.25 | M154: 99.53746
A155: 146 | B155: NATIONALUM | C155: 43.2 | D155: 43.37 | E155: 42.68 | F155: 42.17 | G155: 41.48 | H155: 43.88 | I155: 44.57 | J155: 45.08 | K155: 44.05 | L155: 42.85 | M155: 81.3265
A156: 147 | B156: NESTLEIND | C156: 14779.05 | D156: 14780.22 | E156: 14711.08 | F156: 14643.12 | G156: 14573.98 | H156: 14848.18 | I156: 14917.32 | J156: 14985.28 | K156: 14849.35 | L156: 14712.25 | M156: 0.23859
A157: 148 | B157: OBEROIRLTY | C157: 522.95 | D157: 524.88 | E157: 519.07 | F157: 515.18 | G157: 509.37 | H157: 528.77 | I157: 534.58 | J157: 538.47 | K157: 530.7 | L157: 521 | M157: 0.45551
A158: 149 | B158: ONGC | C158: 127.45 | D158: 127.73 | E158: 126.57 | F158: 125.68 | G158: 124.52 | H158: 128.62 | I158: 129.78 | J158: 130.67 | K158: 128.9 | L158: 126.85 | M158: 25.74894
A159: 150 | B159: OIL | C159: 152.2 | D159: 152.47 | E159: 151.48 | F159: 150.77 | G159: 149.78 | H159: 153.18 | I159: 154.17 | J159: 154.88 | K159: 153.45 | L159: 151.75 | M159: 2.44943
A160: 151 | B160: OFSS | C160: 2736.15 | D160: 2740.38 | E160: 2725.77 | F160: 2715.38 | G160: 2700.77 | H160: 2750.77 | I160: 2765.38 | J160: 2775.77 | K160: 2755 | L160: 2730 | M160: 0.08229
A161: 152 | B161: ORIENTBANK | C161: 52.2 | D161: 52.17 | E161: 51.88 | F161: 51.57 | G161: 51.28 | H161: 52.48 | I161: 52.77 | J161: 53.08 | K161: 52.45 | L161: 51.85 | M161: 3.55115
A162: 153 | B162: PIIND | C162: 1451.2 | D162: 1451.32 | E162: 1443.43 | F162: 1435.67 | G162: 1427.78 | H162: 1459.08 | I162: 1466.97 | J162: 1474.73 | K162: 1459.2 | L162: 1443.55 | M162: 0.23503
A163: 154 | B163: PNBHOUSING | C163: 445.05 | D163: 442.42 | E163: 435.83 | F163: 426.62 | G163: 420.03 | H163: 451.63 | I163: 458.22 | J163: 467.43 | K163: 449 | L163: 433.2 | M163: 4.20916
A164: 155 | B164: PAGEIND | C164: 23602.15 | D164: 23547.42 | E164: 23295.83 | F164: 22989.52 | G164: 22737.93 | H164: 23853.73 | I164: 24105.32 | J164: 24411.63 | K164: 23799 | L164: 23241.1 | M164: 0.16716
A165: 156 | B165: PETRONET | C165: 266.6 | D165: 267.57 | E165: 265.33 | F165: 264.07 | G165: 261.83 | H165: 268.83 | I165: 271.07 | J165: 272.33 | K165: 269.8 | L165: 266.3 | M165: 8.05652
A166: 157 | B166: PFIZER | C166: 4230.35 | D166: 4226.78 | E166: 4203.57 | F166: 4176.78 | G166: 4153.57 | H166: 4253.57 | I166: 4276.78 | J166: 4303.57 | K166: 4250 | L166: 4200 | M166: 0.2462
A167: 158 | B167: PIDILITIND | C167: 1405.35 | D167: 1401.45 | E167: 1390.90 | F167: 1376.45 | G167: 1365.90 | H167: 1415.90 | I167: 1426.45 | J167: 1440.90 | K167: 1412 | L167: 1387 | M167: 2.52523
A168: 159 | B168: PEL | C168: 1536.7 | D168: 1531.52 | E168: 1509.83 | F168: 1482.97 | G168: 1461.28 | H168: 1558.38 | I168: 1580.07 | J168: 1606.93 | K168: 1553.2 | L168: 1504.65 | M168: 15.365
A169: 160 | B169: PFC | C169: 118.4 | D169: 118.17 | E169: 117.48 | F169: 116.57 | G169: 115.88 | H169: 119.08 | I169: 119.77 | J169: 120.68 | K169: 118.85 | L169: 117.25 | M169: 42.43195
A170: 161 | B170: POWERGRID | C170: 195.5 | D170: 193.88 | E170: 191.87 | F170: 188.23 | G170: 186.22 | H170: 197.52 | I170: 199.53 | J170: 203.17 | K170: 195.9 | L170: 190.25 | M170: 76.61462
A171: 162 | B171: PRESTIGE | C171: 333.3 | D171: 334.55 | E171: 329.55 | F171: 325.80 | G171: 320.80 | H171: 338.30 | I171: 343.30 | J171: 347.05 | K171: 339.55 | L171: 330.8 | M171: 0.98627
A172: 163 | B172: PGHH | C172: 11408.6 | D172: 11418.20 | E172: 11364.40 | F172: 11320.20 | G172: 11266.40 | H172: 11462.40 | I172: 11516.20 | J172: 11560.40 | K172: 11472 | L172: 11374 | M172: 0.04548
A173: 164 | B173: PNB | C173: 64.7 | D173: 64.57 | E173: 64.08 | F173: 63.47 | G173: 62.98 | H173: 65.18 | I173: 65.67 | J173: 66.28 | K173: 65.05 | L173: 63.95 | M173: 85.68946
A174: 165 | B174: QUESS | C174: 482.85 | D174: 484.45 | E174: 477.95 | F174: 473.05 | G174: 466.55 | H174: 489.35 | I174: 495.85 | J174: 500.75 | K174: 490.95 | L174: 479.55 | M174: 0.53889
A175: 166 | B175: RBLBANK | C175: 347.95 | D175: 347.98 | E175: 344.97 | F175: 341.98 | G175: 338.97 | H175: 350.97 | I175: 353.98 | J175: 356.97 | K175: 351 | L175: 345 | M175: 70.55518
A176: 167 | B176: RECLTD | C176: 143.95 | D176: 143.27 | E176: 142.23 | F176: 140.52 | G176: 139.48 | H176: 144.98 | I176: 146.02 | J176: 147.73 | K176: 144.3 | L176: 141.55 | M176: 21.67762
A177: 168 | B177: RAJESHEXPO | C177: 678.2 | D177: 676.18 | E177: 672.47 | F177: 666.73 | G177: 663.02 | H177: 681.92 | I177: 685.63 | J177: 691.37 | K177: 679.9 | L177: 670.45 | M177: 1.29323
A178: 169 | B178: RELIANCE | C178: 1509.6 | D178: 1514.07 | E178: 1501.03 | F178: 1492.47 | G178: 1479.43 | H178: 1522.63 | I178: 1535.67 | J178: 1544.23 | K178: 1527.1 | L178: 1505.5 | M178: 64.02372
A179: 170 | B179: RNAM | C179: 354.75 | D179: 351.75 | E179: 344.00 | F179: 333.25 | G179: 325.50 | H179: 362.50 | I179: 370.25 | J179: 381.00 | K179: 359.5 | L179: 341 | M179: 14.04995
A180: 171 | B180: SBILIFE | C180: 976.4 | D180: 972.67 | E180: 965.33 | F180: 954.27 | G180: 946.93 | H180: 983.73 | I180: 991.07 | J180: 1002.13 | K180: 980 | L180: 961.6 | M180: 3.49251
A181: 172 | B181: SRF | C181: 3439.55 | D181: 3439.28 | E181: 3425.57 | F181: 3411.58 | G181: 3397.87 | H181: 3453.27 | I181: 3466.98 | J181: 3480.97 | K181: 3453 | L181: 3425.3 | M181: 1.06572
A182: 173 | B182: SHREECEM | C182: 20319.9 | D182: 20365.32 | E182: 20241.63 | F182: 20163.37 | G182: 20039.68 | H182: 20443.58 | I182: 20567.27 | J182: 20645.53 | K182: 20489 | L182: 20287.05 | M182: 0.04879
A183: 174 | B183: SRTRANSFIN | C183: 1142.45 | D183: 1153.33 | E183: 1129.22 | F183: 1115.98 | G183: 1091.87 | H183: 1166.57 | I183: 1190.68 | J183: 1203.92 | K183: 1177.45 | L183: 1140.1 | M183: 4.28045
A184: 175 | B184: SIEMENS | C184: 1491.25 | D184: 1495.42 | E184: 1482.93 | F184: 1474.62 | G184: 1462.13 | H184: 1503.73 | I184: 1516.22 | J184: 1524.53 | K184: 1507.9 | L184: 1487.1 | M184: 1.58161
A185: 176 | B185: SBIN | C185: 334.45 | D185: 334.18 | E185: 332.42 | F185: 330.38 | G185: 328.62 | H185: 336.22 | I185: 337.98 | J185: 340.02 | K185: 335.95 | L185: 332.15 | M185: 173.7932
A186: 177 | B186: SAIL | C186: 42.9 | D186: 42.98 | E186: 42.47 | F186: 42.03 | G186: 41.52 | H186: 43.42 | I186: 43.93 | J186: 44.37 | K186: 43.5 | L186: 42.55 | M186: 243.24562
A187: 178 | B187: STRTECH | C187: 118.25 | D187: 118.42 | E187: 117.38 | F187: 116.52 | G187: 115.48 | H187: 119.28 | I187: 120.32 | J187: 121.18 | K187: 119.45 | L187: 117.55 | M187: 7.29366
A188: 179 | B188: SUNPHARMA | C188: 434.3 | D188: 434.00 | E188: 431.55 | F188: 428.80 | G188: 426.35 | H188: 436.75 | I188: 439.20 | J188: 441.95 | K188: 436.45 | L188: 431.25 | M188: 23.2185
A189: 180 | B189: SUNTV | C189: 439.55 | D189: 440.97 | E189: 437.08 | F189: 434.62 | G189: 430.73 | H189: 443.43 | I189: 447.32 | J189: 449.78 | K189: 444.85 | L189: 438.5 | M189: 7.03692
A190: 181 | B190: SYNGENE | C190: 322.3 | D190: 321.52 | E190: 319.03 | F190: 315.77 | G190: 313.28 | H190: 324.78 | I190: 327.27 | J190: 330.53 | K190: 324 | L190: 318.25 | M190: 0.63948
A191: 182 | B191: TVSMOTOR | C191: 468.6 | D191: 468.22 | E191: 464.68 | F191: 460.77 | G191: 457.23 | H191: 472.13 | I191: 475.67 | J191: 479.58 | K191: 471.75 | L191: 464.3 | M191: 9.02225
A192: 183 | B192: TATACHEM | C192: 671.35 | D192: 669.33 | E192: 665.27 | F192: 659.18 | G192: 655.12 | H192: 675.42 | I192: 679.48 | J192: 685.57 | K192: 673.4 | L192: 663.25 | M192: 5.1961
A193: 184 | B193: TCS | C193: 2167.6 | D193: 2168.50 | E193: 2153.10 | F193: 2138.60 | G193: 2123.20 | H193: 2183.00 | I193: 2198.40 | J193: 2212.90 | K193: 2183.9 | L193: 2154 | M193: 13.54908
A194: 185 | B194: TATAGLOBAL | C194: 323.85 | D194: 322.42 | E194: 320.08 | F194: 316.32 | G194: 313.98 | H194: 326.18 | I194: 328.52 | J194: 332.28 | K194: 324.75 | L194: 318.65 | M194: 15.14293
A195: 186 | B195: TATAMTRDVR | C195: 75.8 | D195: 76.25 | E195: 75.05 | F195: 74.30 | G195: 73.10 | H195: 77.00 | I195: 78.20 | J195: 78.95 | K195: 77.45 | L195: 75.5 | M195: 35.01656
A196: 187 | B196: TATAMOTORS | C196: 184.45 | D196: 184.92 | E196: 183.13 | F196: 181.82 | G196: 180.03 | H196: 186.23 | I196: 188.02 | J196: 189.33 | K196: 186.7 | L196: 183.6 | M196: 259.68357
A197: 188 | B197: TATAPOWER | C197: 57.6 | D197: 57.37 | E197: 56.88 | F197: 56.17 | G197: 55.68 | H197: 58.08 | I197: 58.57 | J197: 59.28 | K197: 57.85 | L197: 56.65 | M197: 38.78107
A198: 189 | B198: TATASTEEL | C198: 467.75 | D198: 469.68 | E198: 462.87 | F198: 457.98 | G198: 451.17 | H198: 474.57 | I198: 481.38 | J198: 486.27 | K198: 476.5 | L198: 464.8 | M198: 121.0053
A199: 190 | B199: TECHM | C199: 762.1 | D199: 763.08 | E199: 759.37 | F199: 756.63 | G199: 752.92 | H199: 765.82 | I199: 769.53 | J199: 772.27 | K199: 766.8 | L199: 760.35 | M199: 7.46371
A200: 191 | B200: NIACL | C200: 134.95 | D200: 135.47 | E200: 134.03 | F200: 133.12 | G200: 131.68 | H200: 136.38 | I200: 137.82 | J200: 138.73 | K200: 136.9 | L200: 134.55 | M200: 1.07723
A201: 192 | B201: RAMCOCEM | C201: 753.4 | D201: 753.87 | E201: 748.23 | F201: 743.07 | G201: 737.43 | H201: 759.03 | I201: 764.67 | J201: 769.83 | K201: 759.5 | L201: 748.7 | M201: 0.92492
A202: 193 | B202: TITAN | C202: 1154.75 | D202: 1168.65 | E202: 1138.30 | F202: 1121.85 | G202: 1091.50 | H202: 1185.10 | I202: 1215.45 | J202: 1231.90 | K202: 1199 | L202: 1152.2 | M202: 31.37636
A203: 194 | B203: TORNTPHARM | C203: 1843.7 | D203: 1847.92 | E203: 1835.83 | F203: 1827.97 | G203: 1815.88 | H203: 1855.78 | I203: 1867.87 | J203: 1875.73 | K203: 1860 | L203: 1840.05 | M203: 0.22477
A204: 195 | B204: TORNTPOWER | C204: 285.55 | D204: 284.92 | E204: 283.03 | F204: 280.52 | G204: 278.63 | H204: 287.43 | I204: 289.32 | J204: 291.83 | K204: 286.8 | L204: 282.4 | M204: 2.63594
A205: 196 | B205: UPL | C205: 588.25 | D205: 586.15 | E205: 582.80 | F205: 577.35 | G205: 574.00 | H205: 591.60 | I205: 594.95 | J205: 600.40 | K205: 589.5 | L205: 580.7 | M205: 7.20807
... 30 more rows

Sheet MidCap Intra
L5: Back To Main Page
A6: FOR INTRA DAY TRADING | K6: =Main!B10 -> 2020-01-02
A9: Sr.no | B9: Scrip | C9: CLOSE RATE | D9: Pivot Point | E9: Supports | H9: Resistances
C10: Point | E10: S1 | F10: S2 | G10: S3 | H10: R1 | I10: R2 | J10: R3 | K10: HIGH | L10: LOW | M10: Total Trade Quanity in Lakhs
A11: 1 | B11: 3MINDIA | C11: 21721.95 | D11: 21630.57 | E11: 21440.23 | F11: 21158.52 | G11: 20968.18 | H11: 21912.28 | I11: 22102.62 | J11: 22384.33 | K11: 21820.9 | L11: 21348.85 | M11: 0.00773
A12: 2 | B12: ACC | C12: 1440.1 | D12: 1445.10 | E12: 1433.20 | F12: 1426.30 | G12: 1414.40 | H12: 1452.00 | I12: 1463.90 | J12: 1470.80 | K12: 1457 | L12: 1438.2 | M12: 3.21092
A13: 3 | B13: AIAENG | C13: 1622.6 | D13: 1629.08 | E13: 1608.62 | F13: 1594.63 | G13: 1574.17 | H13: 1643.07 | I13: 1663.53 | J13: 1677.52 | K13: 1649.55 | L13: 1615.1 | M13: 0.03912
A14: 4 | B14: APLAPOLLO | C14: 1892.8 | D14: 1901.27 | E14: 1863.53 | F14: 1834.27 | G14: 1796.53 | H14: 1930.53 | I14: 1968.27 | J14: 1997.53 | K14: 1939 | L14: 1872 | M14: 0.70001
A15: 5 | B15: AUBANK | C15: 797.7 | D15: 799.85 | E15: 789.85 | F15: 782.00 | G15: 772.00 | H15: 807.70 | I15: 817.70 | J15: 825.55 | K15: 809.85 | L15: 792 | M15: 0.89721
A16: 6 | B16: AAVAS | C16: 1969.2 | D16: 1964.07 | E16: 1930.13 | F16: 1891.07 | G16: 1857.13 | H16: 2003.13 | I16: 2037.07 | J16: 2076.13 | K16: 1998 | L16: 1925 | M16: 0.45666
A17: 7 | B17: ABBOTINDIA | C17: 13140 | D17: 13224.05 | E17: 12995.95 | F17: 12851.90 | G17: 12623.80 | H17: 13368.10 | I17: 13596.20 | J17: 13740.25 | K17: 13452.15 | L17: 13080 | M17: 0.04037
A18: 8 | B18: ADANIGAS | C18: 176.85 | D18: 172.32 | E18: 164.93 | F18: 153.02 | G18: 145.63 | H18: 184.23 | I18: 191.62 | J18: 203.53 | K18: 179.7 | L18: 160.4 | M18: 78.01084
A19: 9 | B19: ADANIGREEN | C19: 174.75 | D19: 172.53 | E19: 170.32 | F19: 165.88 | G19: 163.67 | H19: 176.97 | I19: 179.18 | J19: 183.62 | K19: 174.75 | L19: 168.1 | M19: 54.17952
A20: 10 | B20: ADANIPORTS | C20: 377.65 | D20: 374.30 | E20: 369.35 | F20: 361.05 | G20: 356.10 | H20: 382.60 | I20: 387.55 | J20: 395.85 | K20: 379.25 | L20: 366 | M20: 113.77167
A21: 11 | B21: ADANIPOWER | C21: 63.9 | D21: 63.25 | E21: 62.20 | F21: 60.50 | G21: 59.45 | H21: 64.95 | I21: 66.00 | J21: 67.70 | K21: 64.3 | L21: 61.55 | M21: 164.15397
A22: 12 | B22: ADANITRANS | C22: 333.9 | D22: 333.30 | E22: 330.60 | F22: 327.30 | G22: 324.60 | H22: 336.60 | I22: 339.30 | J22: 342.60 | K22: 336 | L22: 330 | M22: 1.47701
A23: 13 | B23: ABCAPITAL | C23: 101.5 | D23: 102.03 | E23: 100.67 | F23: 99.83 | G23: 98.47 | H23: 102.87 | I23: 104.23 | J23: 105.07 | K23: 103.4 | L23: 101.2 | M23: 9.82667
A24: 14 | B24: ABFRL | C24: 234.1 | D24: 233.70 | E24: 230.55 | F24: 227.00 | G24: 223.85 | H24: 237.25 | I24: 240.40 | J24: 243.95 | K24: 236.85 | L24: 230.15 | M24: 2.41005
A25: 15 | B25: ADVENZYMES | C25: 164.5 | D25: 165.00 | E25: 163.60 | F25: 162.70 | G25: 161.30 | H25: 165.90 | I25: 167.30 | J25: 168.20 | K25: 166.4 | L25: 164.1 | M25: 0.1215
A26: 16 | B26: AEGISCHEM | C26: 196.25 | D26: 196.03 | E26: 193.07 | F26: 189.88 | G26: 186.92 | H26: 199.22 | I26: 202.18 | J26: 205.37 | K26: 199 | L26: 192.85 | M26: 1.41773
A27: 17 | B27: AJANTPHARM | C27: 978.45 | D27: 979.00 | E27: 970.65 | F27: 962.85 | G27: 954.50 | H27: 986.80 | I27: 995.15 | J27: 1002.95 | K27: 987.35 | L27: 971.2 | M27: 0.29557
A28: 18 | B28: AKZOINDIA | C28: 2014.35 | D28: 2002.45 | E28: 1983.90 | F28: 1953.45 | G28: 1934.90 | H28: 2032.90 | I28: 2051.45 | J28: 2081.90 | K28: 2021 | L28: 1972 | M28: 0.14405
A29: 19 | B29: APLLTD | C29: 550.7 | D29: 557.98 | E29: 540.17 | F29: 529.63 | G29: 511.82 | H29: 568.52 | I29: 586.33 | J29: 596.87 | K29: 575.8 | L29: 547.45 | M29: 0.35709
A30: 20 | B30: ALKEM | C30: 2082.85 | D30: 2063.25 | E30: 2026.50 | F30: 1970.15 | G30: 1933.40 | H30: 2119.60 | I30: 2156.35 | J30: 2212.70 | K30: 2100 | L30: 2006.9 | M30: 0.94927
A31: 21 | B31: ALBK | C31: 18.8 | D31: 18.83 | E31: 18.72 | F31: 18.63 | G31: 18.52 | H31: 18.92 | I31: 19.03 | J31: 19.12 | K31: 18.95 | L31: 18.75 | M31: 9.10866
A32: 22 | B32: ALLCARGO | C32: 97.15 | D32: 97.55 | E32: 96.60 | F32: 96.05 | G32: 95.10 | H32: 98.10 | I32: 99.05 | J32: 99.60 | K32: 98.5 | L32: 97 | M32: 0.47895
A33: 23 | B33: AMARAJABAT | C33: 720.9 | D33: 723.87 | E33: 715.13 | F33: 709.37 | G33: 700.63 | H33: 729.63 | I33: 738.37 | J33: 744.13 | K33: 732.6 | L33: 718.1 | M33: 4.05425
A34: 24 | B34: AMBER | C34: 1149.5 | D34: 1144.78 | E34: 1121.87 | F34: 1094.23 | G34: 1071.32 | H34: 1172.42 | I34: 1195.33 | J34: 1222.97 | K34: 1167.7 | L34: 1117.15 | M34: 0.30349
A35: 25 | B35: AMBUJACEM | C35: 197 | D35: 196.85 | E35: 195.95 | F35: 194.90 | G35: 194.00 | H35: 197.90 | I35: 198.80 | J35: 199.85 | K35: 197.75 | L35: 195.8 | M35: 14.59556
A36: 26 | B36: ANDHRABANK | C36: 16.85 | D36: 16.93 | E36: 16.72 | F36: 16.58 | G36: 16.37 | H36: 17.07 | I36: 17.28 | J36: 17.42 | K36: 17.15 | L36: 16.8 | M36: 5.00578
A37: 27 | B37: APOLLOHOSP | C37: 1426.35 | D37: 1430.18 | E37: 1418.37 | F37: 1410.38 | G37: 1398.57 | H37: 1438.17 | I37: 1449.98 | J37: 1457.97 | K37: 1442 | L37: 1422.2 | M37: 2.68255
A38: 28 | B38: APOLLOTYRE | C38: 163.35 | D38: 163.77 | E38: 162.58 | F38: 161.82 | G38: 160.63 | H38: 164.53 | I38: 165.72 | J38: 166.48 | K38: 164.95 | L38: 163 | M38: 6.4285
A39: 29 | B39: ARVINDFASN | C39: 399.15 | D39: 401.02 | E39: 392.98 | F39: 386.82 | G39: 378.78 | H39: 407.18 | I39: 415.22 | J39: 421.38 | K39: 409.05 | L39: 394.85 | M39: 0.3032
A40: 30 | B40: ASHOKLEY | C40: 81.05 | D40: 81.27 | E40: 80.58 | F40: 80.12 | G40: 79.43 | H40: 81.73 | I40: 82.42 | J40: 82.88 | K40: 81.95 | L40: 80.8 | M40: 77.97743
A41: 31 | B41: ASHOKA | C41: 103.1 | D41: 103.28 | E41: 101.87 | F41: 100.63 | G41: 99.22 | H41: 104.52 | I41: 105.93 | J41: 107.17 | K41: 104.7 | L41: 102.05 | M41: 4.1258
A42: 32 | B42: ASIANPAINT | C42: 1793.2 | D42: 1792.98 | E42: 1783.42 | F42: 1773.63 | G42: 1764.07 | H42: 1802.77 | I42: 1812.33 | J42: 1822.12 | K42: 1802.55 | L42: 1783.2 | M42: 3.97285
A43: 33 | B43: ASTERDM | C43: 162.7 | D43: 164.78 | E43: 158.62 | F43: 154.53 | G43: 148.37 | H43: 168.87 | I43: 175.03 | J43: 179.12 | K43: 170.95 | L43: 160.7 | M43: 4.46861
A44: 34 | B44: ASTRAZEN | C44: 2618.8 | D44: 2631.58 | E44: 2603.27 | F44: 2587.73 | G44: 2559.42 | H44: 2647.12 | I44: 2675.43 | J44: 2690.97 | K44: 2659.9 | L44: 2616.05 | M44: 0.14045
A45: 35 | B45: ASTRAL | C45: 1166.85 | D45: 1167.12 | E45: 1155.73 | F45: 1144.62 | G45: 1133.23 | H45: 1178.23 | I45: 1189.62 | J45: 1200.73 | K45: 1178.5 | L45: 1156 | M45: 0.12034
A46: 36 | B46: ATUL | C46: 4060.8 | D46: 4070.97 | E46: 4041.93 | F46: 4023.07 | G46: 3994.03 | H46: 4089.83 | I46: 4118.87 | J46: 4137.73 | K46: 4100 | L46: 4052.1 | M46: 0.01661
A47: 37 | B47: AUROPHARMA | C47: 458.1 | D47: 459.48 | E47: 455.47 | F47: 452.83 | G47: 448.82 | H47: 462.12 | I47: 466.13 | J47: 468.77 | K47: 463.5 | L47: 456.85 | M47: 10.81955
A48: 38 | B48: AVANTIFEED | C48: 607.45 | D48: 603.38 | E48: 594.27 | F48: 581.08 | G48: 571.97 | H48: 616.57 | I48: 625.68 | J48: 638.87 | K48: 612.5 | L48: 590.2 | M48: 23.8746
A49: 39 | B49: DMART | C49: 1828.5 | D49: 1838.50 | E49: 1810.00 | F49: 1791.50 | G49: 1763.00 | H49: 1857.00 | I49: 1885.50 | J49: 1904.00 | K49: 1867 | L49: 1820 | M49: 4.29407
A50: 40 | B50: AXISBANK | C50: 748.7 | D50: 751.95 | E50: 743.95 | F50: 739.20 | G50: 731.20 | H50: 756.70 | I50: 764.70 | J50: 769.45 | K50: 759.95 | L50: 747.2 | M50: 49.17748
A51: 41 | B51: BASF | C51: 1008 | D51: 1002.42 | E51: 990.58 | F51: 973.17 | G51: 961.33 | H51: 1019.83 | I51: 1031.67 | J51: 1049.08 | K51: 1014.25 | L51: 985 | M51: 0.11728
A52: 42 | B52: BEML | C52: 990.85 | D52: 987.62 | E52: 978.23 | F52: 965.62 | G52: 956.23 | H52: 1000.23 | I52: 1009.62 | J52: 1022.23 | K52: 997 | L52: 975 | M52: 2.60469
A53: 43 | B53: BSE | C53: 500.85 | D53: 501.55 | E53: 496.00 | F53: 491.15 | G53: 485.60 | H53: 506.40 | I53: 511.95 | J53: 516.80 | K53: 507.1 | L53: 496.7 | M53: 0.54161
A54: 44 | B54: BAJAJ-AUTO | C54: 3150.1 | D54: 3161.98 | E54: 3130.22 | F54: 3110.33 | G54: 3078.57 | H54: 3181.87 | I54: 3213.63 | J54: 3233.52 | K54: 3193.75 | L54: 3142.1 | M54: 3.20021
A55: 45 | B55: BAJAJCON | C55: 239.35 | D55: 239.48 | E55: 235.97 | F55: 232.58 | G55: 229.07 | H55: 242.87 | I55: 246.38 | J55: 249.77 | K55: 243 | L55: 236.1 | M55: 0.8565
A56: 46 | B56: BAJAJELEC | C56: 360.05 | D56: 361.35 | E56: 355.75 | F56: 351.45 | G56: 345.85 | H56: 365.65 | I56: 371.25 | J56: 375.55 | K56: 366.95 | L56: 357.05 | M56: 1.49446
A57: 47 | B57: BAJFINANCE | C57: 4231.3 | D57: 4234.77 | E57: 4217.53 | F57: 4203.77 | G57: 4186.53 | H57: 4248.53 | I57: 4265.77 | J57: 4279.53 | K57: 4252 | L57: 4221 | M57: 4.07042
A58: 48 | B58: BAJAJFINSV | C58: 9378.45 | D58: 9387.62 | E58: 9342.78 | F58: 9307.12 | G58: 9262.28 | H58: 9423.28 | I58: 9468.12 | J58: 9503.78 | K58: 9432.45 | L58: 9351.95 | M58: 0.63668
A59: 49 | B59: BAJAJHLDNG | C59: 3376.7 | D59: 3393.93 | E59: 3340.77 | F59: 3304.83 | G59: 3251.67 | H59: 3429.87 | I59: 3483.03 | J59: 3518.97 | K59: 3447.1 | L59: 3358 | M59: 0.12825
A60: 50 | B60: BALKRISIND | C60: 987.25 | D60: 989.75 | E60: 982.50 | F60: 977.75 | G60: 970.50 | H60: 994.50 | I60: 1001.75 | J60: 1006.50 | K60: 997 | L60: 985 | M60: 2.7609
A61: 51 | B61: BALMLAWRIE | C61: 123.85 | D61: 124.30 | E61: 123.15 | F61: 122.45 | G61: 121.30 | H61: 125.00 | I61: 126.15 | J61: 126.85 | K61: 125.45 | L61: 123.6 | M61: 0.61213
A62: 52 | B62: BALRAMCHIN | C62: 187.2 | D62: 185.68 | E62: 183.22 | F62: 179.23 | G62: 176.77 | H62: 189.67 | I62: 192.13 | J62: 196.12 | K62: 188.15 | L62: 181.7 | M62: 21.57359
A63: 53 | B63: BANDHANBNK | C63: 503 | D63: 505.25 | E63: 498.75 | F63: 494.50 | G63: 488.00 | H63: 509.50 | I63: 516.00 | J63: 520.25 | K63: 511.75 | L63: 501 | M63: 5.20264
A64: 54 | B64: BANKBARODA | C64: 101.9 | D64: 101.97 | E64: 101.23 | F64: 100.57 | G64: 99.83 | H64: 102.63 | I64: 103.37 | J64: 104.03 | K64: 102.7 | L64: 101.3 | M64: 128.96434
A65: 55 | B65: BANKINDIA | C65: 70.45 | D65: 70.38 | E65: 69.67 | F65: 68.88 | G65: 68.17 | H65: 71.17 | I65: 71.88 | J65: 72.67 | K65: 71.1 | L65: 69.6 | M65: 16.11534
A66: 56 | B66: MAHABANK | C66: 12.9 | D66: 12.87 | E66: 12.73 | F66: 12.57 | G66: 12.43 | H66: 13.03 | I66: 13.17 | J66: 13.33 | K66: 13 | L66: 12.7 | M66: 2.52522
A67: 57 | B67: BATAINDIA | C67: 1745.3 | D67: 1751.17 | E67: 1737.63 | F67: 1729.97 | G67: 1716.43 | H67: 1758.83 | I67: 1772.37 | J67: 1780.03 | K67: 1764.7 | L67: 1743.5 | M67: 2.14199
A68: 58 | B68: BAYERCROP | C68: 3618.1 | D68: 3609.35 | E68: 3583.70 | F68: 3549.30 | G68: 3523.65 | H68: 3643.75 | I68: 3669.40 | J68: 3703.80 | K68: 3635 | L68: 3574.95 | M68: 0.02603
A69: 59 | B69: BERGEPAINT | C69: 517.45 | D69: 518.13 | E69: 514.62 | F69: 511.78 | G69: 508.27 | H69: 520.97 | I69: 524.48 | J69: 527.32 | K69: 521.65 | L69: 515.3 | M69: 6.06573
A70: 60 | B70: BDL | C70: 297.85 | D70: 297.23 | E70: 292.47 | F70: 287.08 | G70: 282.32 | H70: 302.62 | I70: 307.38 | J70: 312.77 | K70: 302 | L70: 291.85 | M70: 0.31747
A71: 61 | B71: BEL | C71: 100.15 | D71: 100.17 | E71: 99.38 | F71: 98.62 | G71: 97.83 | H71: 100.93 | I71: 101.72 | J71: 102.48 | K71: 100.95 | L71: 99.4 | M71: 51.46098
A72: 62 | B72: BHARATFORG | C72: 485.15 | D72: 485.73 | E72: 482.07 | F72: 478.98 | G72: 475.32 | H72: 488.82 | I72: 492.48 | J72: 495.57 | K72: 489.4 | L72: 482.65 | M72: 9.25007
A73: 63 | B73: BHEL | C73: 43.5 | D73: 43.62 | E73: 43.13 | F73: 42.77 | G73: 42.28 | H73: 43.98 | I73: 44.47 | J73: 44.83 | K73: 44.1 | L73: 43.25 | M73: 122.83581
A74: 64 | B74: BPCL | C74: 491.65 | D74: 491.35 | E74: 488.80 | F74: 485.95 | G74: 483.40 | H74: 494.20 | I74: 496.75 | J74: 499.60 | K74: 493.9 | L74: 488.5 | M74: 23.83296
A75: 65 | B75: BHARTIARTL | C75: 453.3 | D75: 454.52 | E75: 448.53 | F75: 443.77 | G75: 437.78 | H75: 459.28 | I75: 465.27 | J75: 470.03 | K75: 460.5 | L75: 449.75 | M75: 50.59995
A76: 66 | B76: INFRATEL | C76: 254.45 | D76: 255.27 | E76: 252.08 | F76: 249.72 | G76: 246.53 | H76: 257.63 | I76: 260.82 | J76: 263.18 | K76: 258.45 | L76: 252.9 | M76: 51.09979
A77: 67 | B77: BIOCON | C77: 294.55 | D77: 293.75 | E77: 292.35 | F77: 290.15 | G77: 288.75 | H77: 295.95 | I77: 297.35 | J77: 299.55 | K77: 295.15 | L77: 291.55 | M77: 8.2951
A78: 68 | B78: BIRLACORPN | C78: 606.7 | D78: 607.68 | E78: 600.37 | F78: 594.03 | G78: 586.72 | H78: 614.02 | I78: 621.33 | J78: 627.67 | K78: 615 | L78: 601.35 | M78: 0.44859
A79: 69 | B79: BSOFT | C79: 71.6 | D79: 71.42 | E79: 70.83 | F79: 70.07 | G79: 69.48 | H79: 72.18 | I79: 72.77 | J79: 73.53 | K79: 72 | L79: 70.65 | M79: 0.5607
A80: 70 | B80: BLISSGVS | C80: 147.9 | D80: 148.67 | E80: 145.58 | F80: 143.27 | G80: 140.18 | H80: 150.98 | I80: 154.07 | J80: 156.38 | K80: 151.75 | L80: 146.35 | M80: 0.67365
A81: 71 | B81: BLUEDART | C81: 2159.9 | D81: 2165.20 | E81: 2139.70 | F81: 2119.50 | G81: 2094.00 | H81: 2185.40 | I81: 2210.90 | J81: 2231.10 | K81: 2190.7 | L81: 2145 | M81: 0.00946
A82: 72 | B82: BLUESTARCO | C82: 828.9 | D82: 832.97 | E82: 818.93 | F82: 808.97 | G82: 794.93 | H82: 842.93 | I82: 856.97 | J82: 866.93 | K82: 847 | L82: 823 | M82: 0.53296
A83: 73 | B83: BBTC | C83: 1029.2 | D83: 1032.03 | E83: 1020.12 | F83: 1011.03 | G83: 999.12 | H83: 1041.12 | I83: 1053.03 | J83: 1062.12 | K83: 1043.95 | L83: 1022.95 | M83: 0.44974
A84: 74 | B84: BOMDYEING | C84: 77.7 | D84: 77.83 | E84: 76.47 | F84: 75.23 | G84: 73.87 | H84: 79.07 | I84: 80.43 | J84: 81.67 | K84: 79.2 | L84: 76.6 | M84: 9.54662
A85: 75 | B85: BOSCHLTD | C85: 15284.8 | D85: 15358.17 | E85: 15176.63 | F85: 15068.47 | G85: 14886.93 | H85: 15466.33 | I85: 15647.87 | J85: 15756.03 | K85: 15539.7 | L85: 15250 | M85: 0.10221
A86: 76 | B86: BRIGADE | C86: 214.8 | D86: 216.18 | E86: 211.37 | F86: 207.93 | G86: 203.12 | H86: 219.62 | I86: 224.43 | J86: 227.87 | K86: 221 | L86: 212.75 | M86: 1.0756
A87: 77 | B87: BRITANNIA | C87: 3039.65 | D87: 3040.02 | E87: 3027.03 | F87: 3014.42 | G87: 3001.43 | H87: 3052.63 | I87: 3065.62 | J87: 3078.23 | K87: 3053 | L87: 3027.4 | M87: 1.10561
A88: 78 | B88: CARERATING | C88: 682.4 | D88: 674.80 | E88: 622.60 | F88: 562.80 | G88: 510.60 | H88: 734.60 | I88: 786.80 | J88: 846.60 | K88: 727 | L88: 615 | M88: 80.71496
A89: 79 | B89: CCL | C89: 200.7 | D89: 201.13 | E89: 197.57 | F89: 194.43 | G89: 190.87 | H89: 204.27 | I89: 207.83 | J89: 210.97 | K89: 204.7 | L89: 198 | M89: 0.18611
A90: 80 | B90: CESC | C90: 746.8 | D90: 744.78 | E90: 740.12 | F90: 733.43 | G90: 728.77 | H90: 751.47 | I90: 756.13 | J90: 762.82 | K90: 749.45 | L90: 738.1 | M90: 2.40137
A91: 81 | B91: CGPOWER
A92: 82 | B92: CRISIL | C92: 1947.85 | D92: 1932.87 | E92: 1887.03 | F92: 1826.22 | G92: 1780.38 | H92: 1993.68 | I92: 2039.52 | J92: 2100.33 | K92: 1978.7 | L92: 1872.05 | M92: 1.99897
A93: 83 | B93: CADILAHC | C93: 254.25 | D93: 254.67 | E93: 252.68 | F93: 251.12 | G93: 249.13 | H93: 256.23 | I93: 258.22 | J93: 259.78 | K93: 256.65 | L93: 253.1 | M93: 4.37875
A94: 84 | B94: CANFINHOME | C94: 395.35 | D94: 395.20 | E94: 394.05 | F94: 392.75 | G94: 391.60 | H94: 396.50 | I94: 397.65 | J94: 398.95 | K94: 396.35 | L94: 393.9 | M94: 0.53092
A95: 85 | B95: CANBK | C95: 221.65 | D95: 221.60 | E95: 219.85 | F95: 218.05 | G95: 216.30 | H95: 223.40 | I95: 225.15 | J95: 226.95 | K95: 223.35 | L95: 219.8 | M95: 42.15881
A96: 86 | B96: CAPLIPOINT | C96: 294.6 | D96: 297.88 | E96: 290.72 | F96: 286.83 | G96: 279.67 | H96: 301.77 | I96: 308.93 | J96: 312.82 | K96: 305.05 | L96: 294 | M96: 0.65188
A97: 87 | B97: CGCL | C97: 203.6 | D97: 202.85 | E97: 200.90 | F97: 198.20 | G97: 196.25 | H97: 205.55 | I97: 207.50 | J97: 210.20 | K97: 204.8 | L97: 200.15 | M97: 3.15157
A98: 88 | B98: CARBORUNIV | C98: 316.1 | D98: 317.10 | E98: 314.20 | F98: 312.30 | G98: 309.40 | H98: 319.00 | I98: 321.90 | J98: 323.80 | K98: 320 | L98: 315.2 | M98: 0.3955
A99: 89 | B99: CASTROLIND | C99: 129 | D99: 129.28 | E99: 128.42 | F99: 127.83 | G99: 126.97 | H99: 129.87 | I99: 130.73 | J99: 131.32 | K99: 130.15 | L99: 128.7 | M99: 4.13634
A100: 90 | B100: CEATLTD | C100: 996.35 | D100: 994.45 | E100: 989.90 | F100: 983.45 | G100: 978.90 | H100: 1000.90 | I100: 1005.45 | J100: 1011.90 | K100: 999 | L100: 988 | M100: 0.44293
A101: 91 | B101: CENTRALBK | C101: 17.95 | D101: 18.00 | E101: 17.85 | F101: 17.75 | G101: 17.60 | H101: 18.10 | I101: 18.25 | J101: 18.35 | K101: 18.15 | L101: 17.9 | M101: 3.8156
A102: 92 | B102: CDSL | C102: 221.8 | D102: 222.60 | E102: 220.20 | F102: 218.60 | G102: 216.20 | H102: 224.20 | I102: 226.60 | J102: 228.20 | K102: 225 | L102: 221 | M102: 2.07544
A103: 93 | B103: CENTURYPLY | C103: 165.5 | D103: 163.93 | E103: 161.67 | F103: 157.83 | G103: 155.57 | H103: 167.77 | I103: 170.03 | J103: 173.87 | K103: 166.2 | L103: 160.1 | M103: 0.7757
A104: 94 | B104: CERA | C104: 2687.5 | D104: 2702.80 | E104: 2664.65 | F104: 2641.80 | G104: 2603.65 | H104: 2725.65 | I104: 2763.80 | J104: 2786.65 | K104: 2740.95 | L104: 2679.95 | M104: 0.01522
A105: 95 | B105: CHALET | C105: 342 | D105: 342.75 | E105: 335.25 | F105: 328.50 | G105: 321.00 | H105: 349.50 | I105: 357.00 | J105: 363.75 | K105: 350.25 | L105: 336 | M105: 0.5818
A106: 96 | B106: CHAMBLFERT | C106: 153.1 | D106: 153.00 | E106: 152.10 | F106: 151.10 | G106: 150.20 | H106: 154.00 | I106: 154.90 | J106: 155.90 | K106: 153.9 | L106: 152 | M106: 4.06099
A107: 97 | B107: CHENNPETRO | C107: 122.85 | D107: 123.25 | E107: 120.70 | F107: 118.55 | G107: 116.00 | H107: 125.40 | I107: 127.95 | J107: 130.10 | K107: 125.8 | L107: 121.1 | M107: 1.87099
A108: 98 | B108: CHOLAHLDNG | C108: 503.15 | D108: 499.23 | E108: 489.47 | F108: 475.78 | G108: 466.02 | H108: 512.92 | I108: 522.68 | J108: 536.37 | K108: 509 | L108: 485.55 | M108: 0.45914
A109: 99 | B109: CHOLAFIN | C109: 302.85 | D109: 304.32 | E109: 300.63 | F109: 298.42 | G109: 294.73 | H109: 306.53 | I109: 310.22 | J109: 312.43 | K109: 308 | L109: 302.1 | M109: 3.57891
A110: 100 | B110: CIPLA | C110: 475.9 | D110: 477.12 | E110: 473.23 | F110: 470.57 | G110: 466.68 | H110: 479.78 | I110: 483.67 | J110: 486.33 | K110: 481 | L110: 474.45 | M110: 13.16812
A111: 101 | B111: CUB | C111: 233.5 | D111: 233.50 | E111: 231.60 | F111: 229.70 | G111: 227.80 | H111: 235.40 | I111: 237.30 | J111: 239.20 | K111: 235.4 | L111: 231.6 | M111: 9.04067
A112: 102 | B112: COALINDIA | C112: 211.95 | D112: 210.98 | E112: 209.37 | F112: 206.78 | G112: 205.17 | H112: 213.57 | I112: 215.18 | J112: 217.77 | K112: 212.6 | L112: 208.4 | M112: 64.47592
A113: 103 | B113: COCHINSHIP | C113: 403.05 | D113: 402.83 | E113: 400.22 | F113: 397.38 | G113: 394.77 | H113: 405.67 | I113: 408.28 | J113: 411.12 | K113: 405.45 | L113: 400 | M113: 0.32077
A114: 104 | B114: COFFEEDAY
A115: 105 | B115: COLPAL | C115: 1461.1 | D115: 1461.72 | E115: 1453.43 | F115: 1445.77 | G115: 1437.48 | H115: 1469.38 | I115: 1477.67 | J115: 1485.33 | K115: 1470 | L115: 1454.05 | M115: 1.84535
A116: 106 | B116: CONCOR | C116: 573 | D116: 573.47 | E116: 570.53 | F116: 568.07 | G116: 565.13 | H116: 575.93 | I116: 578.87 | J116: 581.33 | K116: 576.4 | L116: 571 | M116: 6.15465
A117: 107 | B117: COROMANDEL | C117: 528.7 | D117: 530.08 | E117: 525.17 | F117: 521.63 | G117: 516.72 | H117: 533.62 | I117: 538.53 | J117: 542.07 | K117: 535 | L117: 526.55 | M117: 0.47203
A118: 108 | B118: CORPBANK | C118: 25.25 | D118: 25.52 | E118: 24.83 | F118: 24.42 | G118: 23.73 | H118: 25.93 | I118: 26.62 | J118: 27.03 | K118: 26.2 | L118: 25.1 | M118: 14.881
A119: 109 | B119: COX&KINGS
A120: 110 | B120: CREDITACC | C120: 764.4 | D120: 767.35 | E120: 753.70 | F120: 743.00 | G120: 729.35 | H120: 778.05 | I120: 791.70 | J120: 802.40 | K120: 781 | L120: 756.65 | M120: 0.5592
A121: 111 | B121: CROMPTON | C121: 242.5 | D121: 241.75 | E121: 240.50 | F121: 238.50 | G121: 237.25 | H121: 243.75 | I121: 245.00 | J121: 247.00 | K121: 243 | L121: 239.75 | M121: 1.96029
A122: 112 | B122: CUMMINSIND | C122: 552.15 | D122: 551.50 | E122: 549.05 | F122: 545.95 | G122: 543.50 | H122: 554.60 | I122: 557.05 | J122: 560.15 | K122: 553.95 | L122: 548.4 | M122: 1.48568
A123: 113 | B123: CYIENT | C123: 432.7 | D123: 427.38 | E123: 417.02 | F123: 401.33 | G123: 390.97 | H123: 443.07 | I123: 453.43 | J123: 469.12 | K123: 437.75 | L123: 411.7 | M123: 3.22406
A124: 114 | B124: DBCORP | C124: 133.9 | D124: 134.07 | E124: 133.48 | F124: 133.07 | G124: 132.48 | H124: 134.48 | I124: 135.07 | J124: 135.48 | K124: 134.65 | L124: 133.65 | M124: 0.21264
A125: 115 | B125: DCBBANK | C125: 176.3 | D125: 175.40 | E125: 172.90 | F125: 169.50 | G125: 167.00 | H125: 178.80 | I125: 181.30 | J125: 184.70 | K125: 177.9 | L125: 172 | M125: 8.00357
A126: 116 | B126: DCMSHRIRAM | C126: 409.5 | D126: 406.62 | E126: 399.23 | F126: 388.97 | G126: 381.58 | H126: 416.88 | I126: 424.27 | J126: 434.53 | K126: 414 | L126: 396.35 | M126: 3.91573
A127: 117 | B127: DLF | C127: 227.55 | D127: 228.93 | E127: 225.72 | F127: 223.88 | G127: 220.67 | H127: 230.77 | I127: 233.98 | J127: 235.82 | K127: 232.15 | L127: 227.1 | M127: 37.6116
A128: 118 | B128: DABUR | C128: 459.8 | D128: 459.38 | E128: 457.97 | F128: 456.13 | G128: 454.72 | H128: 461.22 | I128: 462.63 | J128: 464.47 | K128: 460.8 | L128: 457.55 | M128: 4.95678
A129: 119 | B129: DALBHARAT | C129: 805 | D129: 803.42 | E129: 792.83 | F129: 780.67 | G129: 770.08 | H129: 815.58 | I129: 826.17 | J129: 838.33 | K129: 814 | L129: 791.25 | M129: 0.38108
A130: 120 | B130: DEEPAKNTR | C130: 374.75 | D130: 374.62 | E130: 370.23 | F130: 365.72 | G130: 361.33 | H130: 379.13 | I130: 383.52 | J130: 388.03 | K130: 379 | L130: 370.1 | M130: 1.72951
A131: 121 | B131: DELTACORP | C131: 194.8 | D131: 196.12 | E131: 193.03 | F131: 191.27 | G131: 188.18 | H131: 197.88 | I131: 200.97 | J131: 202.73 | K131: 199.2 | L131: 194.35 | M131: 5.30544
A132: 122 | B132: DEN | C132: 46 | D132: 47.60 | E132: 44.40 | F132: 42.80 | G132: 39.60 | H132: 49.20 | I132: 52.40 | J132: 54.00 | K132: 50.8 | L132: 46 | M132: 1.41271
A133: 123 | B133: DHFL | C133: 16.4 | D133: 16.62 | E133: 16.03 | F133: 15.67 | G133: 15.08 | H133: 16.98 | I133: 17.57 | J133: 17.93 | K133: 17.2 | L133: 16.25 | M133: 21.94811
A134: 124 | B134: DBL | C134: 403.6 | D134: 403.50 | E134: 400.10 | F134: 396.60 | G134: 393.20 | H134: 407.00 | I134: 410.40 | J134: 413.90 | K134: 406.9 | L134: 400 | M134: 1.58608
A135: 125 | B135: DISHTV | C135: 12.8 | D135: 12.92 | E135: 12.48 | F135: 12.17 | G135: 11.73 | H135: 13.23 | I135: 13.67 | J135: 13.98 | K135: 13.35 | L135: 12.6 | M135: 472.48101
A136: 126 | B136: DCAL | C136: 78.55 | D136: 78.98 | E136: 75.57 | F136: 72.58 | G136: 69.17 | H136: 81.97 | I136: 85.38 | J136: 88.37 | K136: 82.4 | L136: 76 | M136: 49.95795
A137: 127 | B137: DIVISLAB | C137: 1818.85 | D137: 1828.12 | E137: 1806.63 | F137: 1794.42 | G137: 1772.93 | H137: 1840.33 | I137: 1861.82 | J137: 1874.03 | K137: 1849.6 | L137: 1815.9 | M137: 1.57063
A138: 128 | B138: DIXON | C138: 3786.55 | D138: 3798.52 | E138: 3758.03 | F138: 3729.52 | G138: 3689.03 | H138: 3827.03 | I138: 3867.52 | J138: 3896.03 | K138: 3839 | L138: 3770 | M138: 0.14306
A139: 129 | B139: LALPATHLAB | C139: 1533.4 | D139: 1522.30 | E139: 1498.60 | F139: 1463.80 | G139: 1440.10 | H139: 1557.10 | I139: 1580.80 | J139: 1615.60 | K139: 1546 | L139: 1487.5 | M139: 0.59533
A140: 130 | B140: DRREDDY | C140: 2879.4 | D140: 2876.03 | E140: 2863.57 | F140: 2847.73 | G140: 2835.27 | H140: 2891.87 | I140: 2904.33 | J140: 2920.17 | K140: 2888.5 | L140: 2860.2 | M140: 1.54779
A141: 131 | B141: EIDPARRY | C141: 208.35 | D141: 207.60 | E141: 202.40 | F141: 196.45 | G141: 191.25 | H141: 213.55 | I141: 218.75 | J141: 224.70 | K141: 212.8 | L141: 201.65 | M141: 13.38877
A142: 132 | B142: EIHOTEL | C142: 143.55 | D142: 143.90 | E142: 142.30 | F142: 141.05 | G142: 139.45 | H142: 145.15 | I142: 146.75 | J142: 148.00 | K142: 145.5 | L142: 142.65 | M142: 0.89504
A143: 133 | B143: EDELWEISS | C143: 110.3 | D143: 110.80 | E143: 108.70 | F143: 107.10 | G143: 105.00 | H143: 112.40 | I143: 114.50 | J143: 116.10 | K143: 112.9 | L143: 109.2 | M143: 4.71336
A144: 134 | B144: EICHERMOT | C144: 22075.8 | D144: 22223.85 | E144: 21852.95 | F144: 21630.10 | G144: 21259.20 | H144: 22446.70 | I144: 22817.60 | J144: 23040.45 | K144: 22594.75 | L144: 22001 | M144: 1.08648
A145: 135 | B145: ELGIEQUIP | C145: 258.95 | D145: 258.63 | E145: 256.37 | F145: 253.78 | G145: 251.52 | H145: 261.22 | I145: 263.48 | J145: 266.07 | K145: 260.9 | L145: 256.05 | M145: 0.16869
A146: 136 | B146: EMAMILTD | C146: 312.55 | D146: 312.48 | E146: 309.97 | F146: 307.38 | G146: 304.87 | H146: 315.07 | I146: 317.58 | J146: 320.17 | K146: 315 | L146: 309.9 | M146: 0.8045
A147: 137 | B147: ENDURANCE | C147: 1087.6 | D147: 1082.80 | E147: 1070.80 | F147: 1054.00 | G147: 1042.00 | H147: 1099.60 | I147: 1111.60 | J147: 1128.40 | K147: 1094.8 | L147: 1066 | M147: 0.05112
A148: 138 | B148: ENGINERSIN | C148: 98.75 | D148: 99.00 | E148: 98.35 | F148: 97.95 | G148: 97.30 | H148: 99.40 | I148: 100.05 | J148: 100.45 | K148: 99.65 | L148: 98.6 | M148: 4.29657
A149: 139 | B149: EQUITAS | C149: 106.3 | D149: 106.53 | E149: 105.72 | F149: 105.13 | G149: 104.32 | H149: 107.12 | I149: 107.93 | J149: 108.52 | K149: 107.35 | L149: 105.95 | M149: 10.93976
A150: 140 | B150: ERIS | C150: 496.4 | D150: 490.12 | E150: 478.28 | F150: 460.17 | G150: 448.33 | H150: 508.23 | I150: 520.07 | J150: 538.18 | K150: 501.95 | L150: 472 | M150: 1.06636
A151: 141 | B151: ESCORTS | C151: 606.2 | D151: 614.55 | E151: 594.70 | F151: 583.20 | G151: 563.35 | H151: 626.05 | I151: 645.90 | J151: 657.40 | K151: 634.4 | L151: 603.05 | M151: 41.51641
A152: 142 | B152: ESSELPACK | C152: 176.5 | D152: 178.67 | E152: 173.83 | F152: 171.17 | G152: 166.33 | H152: 181.33 | I152: 186.17 | J152: 188.83 | K152: 183.5 | L152: 176 | M152: 0.94724
A153: 143 | B153: EXIDEIND | C153: 186 | D153: 185.72 | E153: 184.53 | F153: 183.07 | G153: 181.88 | H153: 187.18 | I153: 188.37 | J153: 189.83 | K153: 186.9 | L153: 184.25 | M153: 6.19586
A154: 144 | B154: FDC | C154: 212.75 | D154: 213.13 | E154: 210.62 | F154: 208.48 | G154: 205.97 | H154: 215.27 | I154: 217.78 | J154: 219.92 | K154: 215.65 | L154: 211 | M154: 0.18936
A155: 145 | B155: FEDERALBNK | C155: 88.75 | D155: 88.67 | E155: 88.08 | F155: 87.42 | G155: 86.83 | H155: 89.33 | I155: 89.92 | J155: 90.58 | K155: 89.25 | L155: 88 | M155: 58.9057
A156: 146 | B156: FMGOETZE | C156: 658.4 | D156: 658.85 | E156: 657.70 | F156: 657.00 | G156: 655.85 | H156: 659.55 | I156: 660.70 | J156: 661.40 | K156: 660 | L156: 658.15 | M156: 9.8215
A157: 147 | B157: FINEORG | C157: 1898.75 | D157: 1913.88 | E157: 1875.77 | F157: 1852.78 | G157: 1814.67 | H157: 1936.87 | I157: 1974.98 | J157: 1997.97 | K157: 1952 | L157: 1890.9 | M157: 0.10159
A158: 148 | B158: FINCABLES | C158: 384.25 | D158: 380.50 | E158: 374.15 | F158: 364.05 | G158: 357.70 | H158: 390.60 | I158: 396.95 | J158: 407.05 | K158: 386.85 | L158: 370.4 | M158: 0.89801
A159: 149 | B159: FINPIPE | C159: 539.7 | D159: 542.30 | E159: 532.65 | F159: 525.60 | G159: 515.95 | H159: 549.35 | I159: 559.00 | J159: 566.05 | K159: 551.95 | L159: 535.25 | M159: 0.20971
A160: 150 | B160: FSL | C160: 41.35 | D160: 41.40 | E160: 40.95 | F160: 40.55 | G160: 40.10 | H160: 41.80 | I160: 42.25 | J160: 42.65 | K160: 41.85 | L160: 41 | M160: 8.83697
A161: 151 | B161: FORTIS | C161: 132.95 | D161: 132.55 | E161: 131.70 | F161: 130.45 | G161: 129.60 | H161: 133.80 | I161: 134.65 | J161: 135.90 | K161: 133.4 | L161: 131.3 | M161: 1.99669
A162: 152 | B162: FCONSUMER | C162: 22.7 | D162: 22.77 | E162: 22.43 | F162: 22.17 | G162: 21.83 | H162: 23.03 | I162: 23.37 | J162: 23.63 | K162: 23.1 | L162: 22.5 | M162: 6.86092
A163: 153 | B163: FLFL | C163: 402.9 | D163: 403.53 | E163: 399.57 | F163: 396.23 | G163: 392.27 | H163: 406.87 | I163: 410.83 | J163: 414.17 | K163: 407.5 | L163: 400.2 | M163: 0.14835
A164: 154 | B164: FRETAIL | C164: 340.55 | D164: 341.65 | E164: 338.40 | F164: 336.25 | G164: 333.00 | H164: 343.80 | I164: 347.05 | J164: 349.20 | K164: 344.9 | L164: 339.5 | M164: 2.40809
A165: 155 | B165: GAIL | C165: 121.2 | D165: 120.92 | E165: 120.03 | F165: 118.87 | G165: 117.98 | H165: 122.08 | I165: 122.97 | J165: 124.13 | K165: 121.8 | L165: 119.75 | M165: 47.04499
A166: 156 | B166: GEPIL | C166: 729.05 | D166: 733.02 | E166: 722.03 | F166: 715.02 | G166: 704.03 | H166: 740.03 | I166: 751.02 | J166: 758.03 | K166: 744 | L166: 726 | M166: 0.03622
A167: 157 | B167: GET&D | C167: 148.2 | D167: 148.42 | E167: 146.83 | F167: 145.47 | G167: 143.88 | H167: 149.78 | I167: 151.37 | J167: 152.73 | K167: 150 | L167: 147.05 | M167: 0.11671
A168: 158 | B168: GHCL | C168: 181.95 | D168: 183.17 | E168: 180.33 | F168: 178.72 | G168: 175.88 | H168: 184.78 | I168: 187.62 | J168: 189.23 | K168: 186 | L168: 181.55 | M168: 1.04478
A169: 159 | B169: GMRINFRA | C169: 20.9 | D169: 20.93 | E169: 20.72 | F169: 20.53 | G169: 20.32 | H169: 21.12 | I169: 21.33 | J169: 21.52 | K169: 21.15 | L169: 20.75 | M169: 39.12954
A170: 160 | B170: GALAXYSURF | C170: 1490.55 | D170: 1494.52 | E170: 1477.93 | F170: 1465.32 | G170: 1448.73 | H170: 1507.13 | I170: 1523.72 | J170: 1536.33 | K170: 1511.1 | L170: 1481.9 | M170: 0.03721
A171: 161 | B171: GARFIBRES | C171: 1200.85 | D171: 1197.08 | E171: 1183.82 | F171: 1166.78 | G171: 1153.52 | H171: 1214.12 | I171: 1227.38 | J171: 1244.42 | K171: 1210.35 | L171: 1180.05 | M171: 0.00647
A172: 162 | B172: GAYAPROJ | C172: 81.2 | D172: 79.92 | E172: 78.38 | F172: 75.57 | G172: 74.03 | H172: 82.73 | I172: 84.27 | J172: 87.08 | K172: 81.45 | L172: 77.1 | M172: 0.95384
A173: 163 | B173: GICRE | C173: 227.35 | D173: 228.43 | E173: 224.92 | F173: 222.48 | G173: 218.97 | H173: 230.87 | I173: 234.38 | J173: 236.82 | K173: 231.95 | L173: 226 | M173: 1.48723
A174: 164 | B174: GILLETTE | C174: 6597.65 | D174: 6589.25 | E174: 6563.50 | F174: 6529.35 | G174: 6503.60 | H174: 6623.40 | I174: 6649.15 | J174: 6683.30 | K174: 6615 | L174: 6555.1 | M174: 0.01764
A175: 165 | B175: GLAXO | C175: 1631.85 | D175: 1632.48 | E175: 1613.47 | F175: 1595.08 | G175: 1576.07 | H175: 1650.87 | I175: 1669.88 | J175: 1688.27 | K175: 1651.5 | L175: 1614.1 | M175: 1.74481
A176: 166 | B176: GLENMARK | C176: 345.7 | D176: 347.05 | E176: 343.75 | F176: 341.80 | G176: 338.50 | H176: 349.00 | I176: 352.30 | J176: 354.25 | K176: 350.35 | L176: 345.1 | M176: 5.96315
A177: 167 | B177: GODFRYPHLP | C177: 1293.35 | D177: 1291.78 | E177: 1276.57 | F177: 1259.78 | G177: 1244.57 | H177: 1308.57 | I177: 1323.78 | J177: 1340.57 | K177: 1307 | L177: 1275 | M177: 0.75696
A178: 168 | B178: GODREJAGRO | C178: 523.2 | D178: 523.77 | E178: 515.03 | F178: 506.87 | G178: 498.13 | H178: 531.93 | I178: 540.67 | J178: 548.83 | K178: 532.5 | L178: 515.6 | M178: 1.31972
A179: 169 | B179: GODREJCP | C179: 691.35 | D179: 689.62 | E179: 685.33 | F179: 679.32 | G179: 675.03 | H179: 695.63 | I179: 699.92 | J179: 705.93 | K179: 693.9 | L179: 683.6 | M179: 2.79887
A180: 170 | B180: GODREJIND | C180: 431.65 | D180: 429.67 | E180: 422.53 | F180: 413.42 | G180: 406.28 | H180: 438.78 | I180: 445.92 | J180: 455.03 | K180: 436.8 | L180: 420.55 | M180: 0.93213
A181: 171 | B181: GODREJPROP | C181: 990.2 | D181: 991.40 | E181: 978.80 | F181: 967.40 | G181: 954.80 | H181: 1002.80 | I181: 1015.40 | J181: 1026.80 | K181: 1004 | L181: 980 | M181: 2.49292
A182: 172 | B182: GRANULES | C182: 121.9 | D182: 122.55 | E182: 121.00 | F182: 120.10 | G182: 118.55 | H182: 123.45 | I182: 125.00 | J182: 125.90 | K182: 124.1 | L182: 121.65 | M182: 3.82672
A183: 173 | B183: GRAPHITE | C183: 306.5 | D183: 306.45 | E183: 302.20 | F183: 297.90 | G183: 293.65 | H183: 310.75 | I183: 315.00 | J183: 319.30 | K183: 310.7 | L183: 302.15 | M183: 11.27394
A184: 174 | B184: GRASIM | C184: 742.5 | D184: 742.83 | E184: 738.27 | F184: 734.03 | G184: 729.47 | H184: 747.07 | I184: 751.63 | J184: 755.87 | K184: 747.4 | L184: 738.6 | M184: 6.85313
A185: 175 | B185: GESHIP | C185: 301.5 | D185: 300.92 | E185: 297.78 | F185: 294.07 | G185: 290.93 | H185: 304.63 | I185: 307.77 | J185: 311.48 | K185: 304.05 | L185: 297.2 | M185: 0.1224
A186: 176 | B186: GREAVESCOT | C186: 132.4 | D186: 133.00 | E186: 131.20 | F186: 130.00 | G186: 128.20 | H186: 134.20 | I186: 136.00 | J186: 137.20 | K186: 134.8 | L186: 131.8 | M186: 0.85728
A187: 177 | B187: GRINDWELL | C187: 592.25 | D187: 593.38 | E187: 580.32 | F187: 568.38 | G187: 555.32 | H187: 605.32 | I187: 618.38 | J187: 630.32 | K187: 606.45 | L187: 581.45 | M187: 0.22242
A188: 178 | B188: GUJALKALI | C188: 417.5 | D188: 418.23 | E188: 414.27 | F188: 411.03 | G188: 407.07 | H188: 421.47 | I188: 425.43 | J188: 428.67 | K188: 422.2 | L188: 415 | M188: 0.18363
A189: 179 | B189: GUJGASLTD | C189: 254.7 | D189: 249.98 | E189: 242.57 | F189: 230.43 | G189: 223.02 | H189: 262.12 | I189: 269.53 | J189: 281.67 | K189: 257.4 | L189: 237.85 | M189: 33.8476
A190: 180 | B190: GMDCLTD | C190: 62.8 | D190: 62.37 | E190: 61.53 | F190: 60.27 | G190: 59.43 | H190: 63.63 | I190: 64.47 | J190: 65.73 | K190: 63.2 | L190: 61.1 | M190: 2.57348
A191: 181 | B191: GNFC | C191: 162.1 | D191: 162.68 | E191: 160.77 | F191: 159.43 | G191: 157.52 | H191: 164.02 | I191: 165.93 | J191: 167.27 | K191: 164.6 | L191: 161.35 | M191: 4.08863
A192: 182 | B192: GPPL | C192: 87.35 | D192: 88.13 | E192: 85.87 | F192: 84.38 | G192: 82.12 | H192: 89.62 | I192: 91.88 | J192: 93.37 | K192: 90.4 | L192: 86.65 | M192: 0.4606
A193: 183 | B193: GSFC | C193: 69.95 | D193: 70.08 | E193: 69.37 | F193: 68.78 | G193: 68.07 | H193: 70.67 | I193: 71.38 | J193: 71.97 | K193: 70.8 | L193: 69.5 | M193: 1.41032
A194: 184 | B194: GSPL | C194: 220.6 | D194: 220.48 | E194: 218.47 | F194: 216.33 | G194: 214.32 | H194: 222.62 | I194: 224.63 | J194: 226.77 | K194: 222.5 | L194: 218.35 | M194: 6.3297
A195: 185 | B195: GULFOILLUB | C195: 812.1 | D195: 813.03 | E195: 807.07 | F195: 802.03 | G195: 796.07 | H195: 818.07 | I195: 824.03 | J195: 829.07 | K195: 819 | L195: 808 | M195: 0.00709
A196: 186 | B196: HEG | C196: 1065.8 | D196: 1069.13 | E196: 1051.87 | F196: 1037.93 | G196: 1020.67 | H196: 1083.07 | I196: 1100.33 | J196: 1114.27 | K196: 1086.4 | L196: 1055.2 | M196: 3.05402
A197: 187 | B197: HCLTECH | C197: 571.95 | D197: 570.57 | E197: 568.23 | F197: 564.52 | G197: 562.18 | H197: 574.28 | I197: 576.62 | J197: 580.33 | K197: 572.9 | L197: 566.85 | M197: 9.18373
A198: 188 | B198: HDFCAMC | C198: 3177.4 | D198: 3186.95 | E198: 3158.95 | F198: 3140.50 | G198: 3112.50 | H198: 3205.40 | I198: 3233.40 | J198: 3251.85 | K198: 3214.95 | L198: 3168.5 | M198: 2.17655
A199: 189 | B199: HDFCBANK | C199: 1278.6 | D199: 1276.40 | E199: 1272.80 | F199: 1267.00 | G199: 1263.40 | H199: 1282.20 | I199: 1285.80 | J199: 1291.60 | K199: 1280 | L199: 1270.6 | M199: 18.36849
A200: 190 | B200: HDFCLIFE | C200: 621.45 | D200: 621.27 | E200: 616.53 | F200: 611.62 | G200: 606.88 | H200: 626.18 | I200: 630.92 | J200: 635.83 | K200: 626 | L200: 616.35 | M200: 17.49377
A201: 191 | B201: HATHWAY | C201: 19.8 | D201: 19.93 | E201: 19.42 | F201: 19.03 | G201: 18.52 | H201: 20.32 | I201: 20.83 | J201: 21.22 | K201: 20.45 | L201: 19.55 | M201: 0.93143
A202: 192 | B202: HATSUN | C202: 580.75 | D202: 582.90 | E202: 573.90 | F202: 567.05 | G202: 558.05 | H202: 589.75 | I202: 598.75 | J202: 605.60 | K202: 591.9 | L202: 576.05 | M202: 0.07949
A203: 193 | B203: HAVELLS | C203: 649.5 | D203: 649.50 | E203: 645.65 | F203: 641.80 | G203: 637.95 | H203: 653.35 | I203: 657.20 | J203: 661.05 | K203: 653.35 | L203: 645.65 | M203: 4.92348
A204: 194 | B204: HEIDELBERG | C204: 174.95 | D204: 175.47 | E204: 173.98 | F204: 173.02 | G204: 171.53 | H204: 176.43 | I204: 177.92 | J204: 178.88 | K204: 176.95 | L204: 174.5 | M204: 1.27196
A205: 195 | B205: HERITGFOOD | C205: 361.45 | D205: 360.68 | E205: 355.47 | F205: 349.48 | G205: 344.27 | H205: 366.67 | I205: 371.88 | J205: 377.87 | K205: 365.9 | L205: 354.7 | M205: 0.1924
A206: 196 | B206: HEROMOTOCO | C206: 2432.55 | D206: 2440.82 | E206: 2419.08 | F206: 2405.62 | G206: 2383.88 | H206: 2454.28 | I206: 2476.02 | J206: 2489.48 | K206: 2462.55 | L206: 2427.35 | M206: 3.14519
... 320 more rows

Sheet Bulk Deals
E6: Back To Main Page
A7: Subject : | B7: BULK DEAL | D7: =Main!B10 -> 2020-01-02
A9: Date | B9: Scrip code | C9: Scrip Name | D9: Client Name | E9: Buy / Sell | F9: Quantity Traded | G9: Trade Price / Wt.Avg.trade price | H9: Exchange
A10: 2020-01-01 | B10: 531813 | C10: GANGAPA | D10: GOURI KUMAR PRUSTY | E10: SELL | F10: 86,000 | G10: 23.25 | H10: BSE
A11: 2020-01-01 | B11: 541627 | C11: HITECHWIND | D11: LALIT AMRUTLAL GEDIYA | E11: SELL | F11: 25,000 | G11: 24.50 | H11: BSE
A12: 2020-01-01 | B12: 541627 | C12: HITECHWIND | D12: MUKESH AJMERA | E12: SELL | F12: 49,266 | G12: 24.5 | H12: BSE
A13: 2020-01-01 | B13: 541627 | C13: HITECHWIND | D13: GODHAR RAJENDRA GANGARAM | E13: BUY | F13: 25,000 | G13: 24.5 | H13: BSE
A14: 2020-01-01 | B14: 539097 | C14: HKG | D14: SUMIT KUMAR GUPTA | E14: SELL | F14: 20,000 | G14: 43 | H14: BSE
A15: 2020-01-01 | B15: 535387 | C15: LAKHOTIA | D15: VAISHNO MEDIA GRAPHIX PRIVATE LIMITED | E15: BUY | F15: 100,000 | G15: 8.84 | H15: BSE
A16: 2020-01-01 | B16: 535387 | C16: LAKHOTIA | D16: MANJU LAHOTI | E16: BUY | F16: 110,000 | G16: 8.84 | H16: BSE
A17: 2020-01-01 | B17: 535387 | C17: LAKHOTIA | D17: INTENSIVE FINANCE PRIVATE LIMITED | E17: SELL | F17: 210,000 | G17: 8.84 | H17: BSE
A18: 2020-01-01 | B18: 532256 | C18: NSIL | D18: PRITI RAJIV JOSHI | E18: BUY | F18: 88,665 | G18: 700.00 | H18: BSE
A19: 2020-01-01 | B19: 532256 | C19: NSIL | D19: ANIL ARYA | E19: SELL | F19: 91,997 | G19: 700.04 | H19: BSE
A20: 2020-01-01 | B20: 512217 | C20: PRISMMEDI | D20: BHAVNA NARENDRA CHITALIA | E20: SELL | F20: 65,400 | G20: 20.35 | H20: BSE
A21: 2020-01-01 | B21: 512217 | C21: PRISMMEDI | D21: MANISH NITIN THAKUR . | E21: BUY | F21: 98,589 | G21: 20.40 | H21: BSE
A22: 2020-01-01 | B22: 512217 | C22: PRISMMEDI | D22: BHAVESH HASHMUKHLAL SHAH | E22: SELL | F22: 31,000 | G22: 20.35 | H22: BSE
A23: 2020-01-01 | B23: 512217 | C23: PRISMMEDI | D23: VISHAL MAHESH WAGHELA | E23: SELL | F23: 33,085 | G23: 20.35 | H23: BSE
A24: 2020-01-01 | B24: 512217 | C24: PRISMMEDI | D24: MANISH NITIN THAKUR | E24: BUY | F24: 49,170 | G24: 20.32 | H24: BSE
A25: 2020-01-01 | B25: 539026 | C25: SSPNFIN | D25: RUSHIL SHAILESH PANDYA | E25: SELL | F25: 10,000 | G25: 95.3 | H25: BSE
A26: 2020-01-01 | B26: 539026 | C26: SSPNFIN | D26: MANSI R KAPADIYA | E26: BUY | F26: 10,000 | G26: 95.30 | H26: BSE
A27: 2020-01-01 | B27: 539026 | C27: SSPNFIN | D27: MANSI R KAPADIYA | E27: SELL | F27: 10,000 | G27: 95.42 | H27: BSE
A28: 2020-01-01 | B28: 532070 | C28: SUPRBPA | D28: JIGNESH BALDEVBHAI SOLANKI | E28: BUY | F28: 32,836 | G28: 8.8 | H28: BSE
A29: 2020-01-01 | B29: 532070 | C29: SUPRBPA | D29: JIGNESH BALDEVBHAI SOLANKI | E29: SELL | F29: 1,000 | G29: 8.01 | H29: BSE
A30: 2020-01-01 | B30: 532070 | C30: SUPRBPA | D30: MANJULABEN BHAVESHKUMAR RANGEE | E30: SELL | F30: 32,837 | G30: 8.8 | H30: BSE
A31: 2020-01-01 | B31: 540108 | C31: TAHL | D31: AMJAD HUSSAIN | E31: SELL | F31: 57,858 | G31: 23.46 | H31: BSE
A32: 2020-01-01 | B32: 541545 | C32: TALWGYM | D32: SANDEEP PRAMOD SHAH (HUF) | E32: SELL | F32: 161,500 | G32: 3.21 | H32: BSE
A33: 2020-01-01 | B33: 541545 | C33: TALWGYM | D33: WOODSTOCK SECURITIES PRIV ATE LTD | E33: BUY | F33: 161,500 | G33: 3.21 | H33: BSE
A34: 2020-01-01 | B34: 539222 | C34: VMV | D34: ESPS FINSERVE PRIVATE LIMITED | E34: BUY | F34: 40,000 | G34: 20 | H34: BSE
A35: 2020-01-01 | B35: APEX | C35: Apex Frozen Foods Limited | D35: N.K.SECURITIES | E35: BUY | F35: 172,784 | G35: 386.82 | H35: NSE
A36: 2020-01-01 | B36: CALSOFT | C36: California Soft Ltd. | D36: MAHADEVAN N | E36: BUY | F36: 26,280 | G36: 13.17 | H36: NSE
A37: 2020-01-01 | B37: CARERATING | C37: CARE Ratings Ltd | D37: N.K.SECURITIES | E37: BUY | F37: 207,764 | G37: 704.25 | H37: NSE
A38: 2020-01-01 | B38: CARERATING | C38: CARE Ratings Ltd | D38: MAHAVEER COMSTOCK TRADIND LLP | E38: BUY | F38: 235,502 | G38: 694.14 | H38: NSE
A39: 2020-01-01 | B39: CARERATING | C39: CARE Ratings Ltd | D39: CENTILLION RESEARCH INDIA LLP | E39: BUY | F39: 391,500 | G39: 693.09 | H39: NSE
A40: 2020-01-01 | B40: CARERATING | C40: CARE Ratings Ltd | D40: GRAVITON RESEARCH CAPITAL LLP | E40: BUY | F40: 171,968 | G40: 697.68 | H40: NSE
A41: 2020-01-01 | B41: CARERATING | C41: CARE Ratings Ltd | D41: CHANDARANA INTERMEDIARIES BROKERS PRIVATE LIMITED | E41: BUY | F41: 280,806 | G41: 698.53 | H41: NSE
A42: 2020-01-01 | B42: CARERATING | C42: CARE Ratings Ltd | D42: ELIXIR WEALTH MANAGEMENT PRIVATE LIMITED | E42: BUY | F42: 180,067 | G42: 696.57 | H42: NSE
A43: 2020-01-01 | B43: DCI | C43: DC Infotech and Comun Ltd | D43: PRATIK VINODRAI JATANIYA | E43: BUY | F43: 30,000 | G43: 45.44 | H43: NSE
A44: 2020-01-01 | B44: APEX | C44: Apex Frozen Foods Limited | D44: N.K.SECURITIES | E44: SELL | F44: 172,784 | G44: 387.01 | H44: NSE
A45: 2020-01-01 | B45: CALSOFT | C45: California Soft Ltd. | D45: MAHADEVAN N | E45: SELL | F45: 61,926 | G45: 12.99 | H45: NSE
A46: 2020-01-01 | B46: CARERATING | C46: CARE Ratings Ltd | D46: GRAVITON RESEARCH CAPITAL LLP | E46: SELL | F46: 171,968 | G46: 698.55 | H46: NSE
A47: 2020-01-01 | B47: CARERATING | C47: CARE Ratings Ltd | D47: CHANDARANA INTERMEDIARIES BROKERS PRIVATE LIMITED | E47: SELL | F47: 284,743 | G47: 697.96 | H47: NSE
A48: 2020-01-01 | B48: CARERATING | C48: CARE Ratings Ltd | D48: N.K.SECURITIES | E48: SELL | F48: 207,764 | G48: 704.56 | H48: NSE
A49: 2020-01-01 | B49: CARERATING | C49: CARE Ratings Ltd | D49: CENTILLION RESEARCH INDIA LLP | E49: SELL | F49: 391,500 | G49: 693.51 | H49: NSE
A50: 2020-01-01 | B50: CARERATING | C50: CARE Ratings Ltd | D50: ELIXIR WEALTH MANAGEMENT PRIVATE LIMITED | E50: SELL | F50: 180,418 | G50: 696.62 | H50: NSE
A51: 2020-01-01 | B51: CARERATING | C51: CARE Ratings Ltd | D51: MAHAVEER COMSTOCK TRADIND LLP | E51: SELL | F51: 235,502 | G51: 695.55 | H51: NSE
A52: 2020-01-01 | B52: MAWANASUG | C52: Mawana Sugars Limited | D52: ALAVEL FINVEST PVT LTD | E52: SELL | F52: 366,504 | G52: 37.92 | H52: NSE

Sheet Call Tracker (Equity & F&O)
M5: Back To Main Page
A6: Retail Research Technical Calls & Fundamental Performance Report for the month of January-2020
M7: =Main!B10 -> 2020-01-02
B8: Positional Call
A9: Sr.no | B9: Date | D9: Company | E9: Rec | F9: Rec Price | G9: Stop Loss*** | H9: Call Closed At | I9: Target | J9: Remark | K9: Profit / Loss per Share | L9: Gain / Loss % | M9: Status | N9: Closed Date | O9: NSE Closed Price
A10: 1 | B10: 2019-10-07 | D10: PIDILITIND | E10: Buy{} | F10: 1367.5 | G10: 1297 | H10: 1413.5 | I10: 1500-1520 | J10: Part Profit of Rs.46/- | K10: =H10-F10 -> 46 | L10: =K10/F10 -> 3.36% | M10: Successful | N10: 2019-10-31 | O10: =VLOOKUP(D10,Sheet2!A51:M1690,6,0) -> 1405.35 | R10: R
A11: 2 | B11: 2019-11-14 | D11: HEIDELBERG | E11: Buy{} | F11: 186.5 | G11: 174 | H11: 194.5 | I11: 205-210 | J11: Part Profit of Rs.8/- | K11: =H11-F11 -> 8 | L11: =K11/F11 -> 4.29% | M11: Successful | N11: 2019-11-20 | O11: =VLOOKUP(D11,Sheet2!A71:M1710,6,0) -> 174.95 | R11: H
A12: 3 | B12: 2019-11-18 | D12: BAJAJ-AUTO | E12: Sell | F12: 3180-3200 | G12: 3356.7 | I12: 2900-2850 | J12: Open | O12: =VLOOKUP(D12,Sheet2!A74:M1713,6,0) -> 3150.1 | R12: R
A13: 4 | B13: 2019-11-20 | D13: BRITANNIA | E13: Buy | F13: 3075-3100 | G13: 2930 | I13: 3380-3420 | J13: Open | O13: =VLOOKUP(D13,Sheet2!A76:M1715,6,0) -> 3039.65 | R13: H
A14: 5 | B14: 2019-11-21 | D14: HINDUNILVR | E14: Buy | F14: 2020 | G14: 1917 | H14: 2082 | I14: 2200-2250 | J14: Part Profit of Rs.62/- | K14: =H14-F14 -> 62 | L14: =K14/F14 -> 3.07% | M14: Successful | N14: 2019-11-27 | O14: =VLOOKUP(D14,Sheet2!A77:M1716,6,0) -> 1936.55 | R14: H
A15: 6 | B15: 2019-11-27 | D15: LT | E15: Buy | F15: 1330-1340 | G15: 1270 | I15: 1450-1500 | J15: Open | O15: =VLOOKUP(D15,Sheet2!A80:M1719,6,0) -> 1309.95 | R15: H
A16: 7 | B16: 2019-12-02 | D16: HAVELLS | E16: Buy | F16: 662-667 | G16: 632.7 | I16: 725-735 | J16: Open | O16: =VLOOKUP(D16,Sheet2!A82:M1721,6,0) -> 649.5 | R16: R
A17: 8 | B17: 2019-12-06 | D17: ONGC | E17: Buy | F17: 127-128 | G17: 122 | I17: 140 | J17: Open | O17: =VLOOKUP(D17,Sheet2!A83:M1722,6,0) -> 127.45 | R17: H
A18: 9 | B18: 2019-12-23 | D18: CANBK | E18: Sell | F18: 227 | G18: 238.3 | H18: 220 | I18: 216-213 | J18: Part Profit of Rs.7/- | K18: =F18-H18 -> 7 | L18: =K18/F18 -> 3.08% | M18: Successful | N18: 2019-12-26 | O18: =VLOOKUP(D18,Sheet2!A88:M1727,6,0) -> 221.65 | R18: R
A19: 10 | B19: 2019-12-24 | D19: SBIN | E19: Sell | F19: 333-335 | G19: 351.3 | I19: 305-300 | J19: Open | O19: =VLOOKUP(D19,Sheet2!A92:M1731,6,0) -> 334.45 | R19: R
A20: 11 | B20: 2019-12-30 | D20: EIHOTEL | E20: Buy | F20: 140 | G20: 132 | H20: 145.5 | I20: 152-156 | J20: Part Profit of Rs.5.50/- | K20: =H20-F20 -> 5.5 | L20: =K20/F20 -> 3.93% | M20: Successful | N20: 2020-01-01 | O20: =VLOOKUP(D20,Sheet2!A90:M1729,6,0) -> 143.55 | R20: H
A21: 12 | B21: 2020-01-01 | D21: DCBBANK | E21: Buy | F21: 173-175 | G21: 164 | I21: 195-200 | J21: Open | O21: =VLOOKUP(D21,Sheet2!A94:M1733,6,0) -> 176.3 | R21: H
A22: 13
A23: 14
A24: 15
A25: 16
A33: CLBS = Closing Basis ***
A34: Dividend adjusted <> | F34: Reinitiated $
A35: Part book {} | F35: Revised stoploss #
B37: Momentum Call
A38: Sr.no | B38: Date | D38: Company | E38: Rec | F38: Rec Price | G38: Stop Loss | H38: Call Closed At | I38: Target | J38: Remark | K38: Profit / Loss per Share/Lot | L38: Gain / Loss % | M38: Gain / Loss per Lot | N38: Lot | O38: Status | P38: Closed Date
A39: 1 | B39: 2019-12-19 | D39: FINPIPE | E39: Buy | F39: 545-550 | G39: 529 | I39: 590-600 | J39: Open | R39: H
A40: 2 | B40: 2019-12-23 | D40: RALLIS | E40: Buy | F40: 169 | G40: 164 | H40: 173 | I40: 180-182 | J40: Profit of Rs.4/- | K40: =H40-F40 -> 4 | L40: =K40/F40 -> 2.37% | O40: Successful | P40: 2020-01-01 | R40: H
A41: 3 | B41: 2019-12-23 | D41: MOTHERSUMI | E41: Sell | F41: 147-148 | G41: 152.3 | I41: 140-138 | J41: Open | R41: R
A42: 4 | B42: 2019-12-23 | D42: M&M JAN FUT | E42: Buy | F42: 534-536 | G42: 522 | I42: 560 | J42: Open | R42: N
A43: 5 | B43: 2019-12-26 | D43: TATASTEEL | E43: Sell | F43: 467-470 | G43: 482 | I43: 450-440 | J43: Open | R43: H
A44: 6 | B44: 2019-12-27 | D44: VEDL | E44: Sell | F44: 151.5-152.5 | G44: 156 | I44: 145-143 | J44: Open | R44: H
A45: 7 | B45: 2019-12-30 | D45: MARICO | E45: Buy | F45: 339.5 | G45: 329 | H45: 346.5 | I45: 355-360 | J45: Profit of Rs.7/- | K45: =H45-F45 -> 7 | L45: =K45/F45 -> 2.06% | O45: Successful | P45: 2020-01-01 | R45: H
A46: 8 | B46: 2019-12-30 | D46: CENTURYTEX JAN FUT | E46: Buy | F46: 483-485 | G46: 464 | I46: 520 | J46: Open | R46: N
A47: 9 | B47: 2019-12-31 | D47: LT JAN FUT | E47: Buy | F47: 1310-1314 | G47: 1276 | I47: 1350-1360 | J47: Open | R47: N
A48: 10 | B48: 2019-12-31 | D48: HINDALCO | E48: Sell | F48: 218.5 | G48: 226.3 | H48: 214 | I48: 210-208 | J48: Profit of Rs.4.5/- | K48: =F48-H48 -> 4.5 | L48: =K48/F48 -> 2.06% | O48: Successful | P48: 2020-01-01 | R48: R
A49: 11 | B49: 2019-12-31 | D49: BIOCON | E49: Sell | F49: 293-294 | G49: 302.3 | I49: 278-275 | J49: Open | R49: R
A50: 12 | B50: 2019-12-31 | D50: GAIL | E50: Buy | F50: 120-121 | G50: 116.7 | I50: 126-128 | J50: Open | R50: R
A51: 13 | B51: 2019-12-31 | D51: ACC JAN FUT | E51: Buy | F51: 1462-1466 | G51: 1433 | I51: 1520 | J51: Open | R51: N
A52: 14 | B52: 2020-01-01 | D52: KOTAKBANK JAN FUT | E52: Buy | F52: 1699-1703 | G52: 1674.4 | I52: 1750 | J52: Open | R52: R
A53: 15 | B53: 2020-01-01 | D53: JUSTDIAL | E53: Buy | F53: 575-578 | G53: 557.7 | I53: 605-615 | J53: Open | R53: R
A54: 16
A55: 17
A56: 18
A57: 19
A58: 20
A59: 21
A60: 22
A61: 23
A62: 24
A63: 25
A64: 26
A65: 27
A67: CLBS = Closing Basis ***
A68: Dividend adjusted <> | F68: Reinitiated $
F69: Revised stoploss #
A71: Master Trade High Risk
A72: Sr.no | B72: Date | D72: Company | E72: Rec | F72: Rec Price | G72: Stop Loss | H72: Call Closed At | I72: Target | J72: Remark | K72: Profit / Loss per share | L72: Gain / Loss per Lot | M72: Lot | N72: Status | O72: Closed Date
A73: 1 | B73: 2019-12-27 | D73: NIFTY JAN FUT | E73: Sell | F73: 12240-12260 | G73: 12375 | I73: 12000 | J73: Open | R73: R
A82: Master Trade Medium Risk
A83: Sr.no | B83: Date | D83: Company | E83: Rec | F83: Rec Price | G83: Stop Loss | H83: Call Closed At | I83: Target | J83: Remark | K83: Profit/ Loss per lot | L83: Gain / Loss per Lot | M83: Lot | N83: Status | O83: Closed Date
A84: 1 | B84: 2019-12-27 | D84: NIFTY 30 JAN 12200 PE | E84: Buy | F84: 120-124 | J84: Open | R84: H
D85: NIFTY 30 JAN 12050 PE | E85: Sell | F85: 79-81 | R85: H
A86: 2 | B86: 2020-01-01 | D86: ICICIBANK JAN 520 PE | E86: Buy | F86: 5.95 | G86: 2.5 | H86: 6.95 | I86: 12 | J86: Profit of Rs.1/- | K86: =H86-F86 -> 1 | L86: =K86*M86 -> 1375 | M86: 1375 | N86: Successful | O86: 2020-01-01 | R86: H
A101: Techno -Funda (positional)
A102: Sr.no | B102: Date | D102: Company | E102: Rec | F102: Rec Price | G102: Stop Loss*** | H102: Call Closed At | I102: Target | J102: Remark | K102: Profit / Loss per Share | L102: Gain / Loss % | M102: Status | N102: Closed Date | O102: NSE Closed Price
A103: 2 | B103: 2019-11-27 | D103: JKLAKSHMI | E103: Buy | F103: 284-288 | G103: 258 | I103: 330-350 | J103: Open | R103: H
A106: CLBS = Closing Basis *** | F106: Reinitiated $
A107: Dividend adjusted <> | F107: Revised stoploss #
B112: Investment Idea
A113: Sr.no | B113: Date | D113: Company | E113: Rec | F113: Rec Price | G113: Point of Review | H113: Close Rate | I113: Target | J113: Remark | K113: Profit / Loss per Share | L113: Gain / Loss % | M113: Status | N113: Closed Date
A114: 1 | B114: 2013-11-01 | D114: L&T Finance Holding | E114: Accu | F114: 82.00 | G114: - | H114: 100 | I114: 100.00 | J114: Target Achieved | K114: =H114-F114 -> 18.00 | L114: =K114/F114 -> 21.95% | M114: Successful | N114: 2016-10-14
A115: 2 | B115: 2014-06-04 | D115: Finolex Inds | E115: Buy | F115: 257.00 | G115: - | H115: 300 | I115: 300.00 | J115: Target Achieved | K115: 43.00 | L115: 16.73% | M115: Successful | N115: 2014-07-02
A116: 3 | B116: 2014-07-08 | D116: JK Cement | E116: Buy | F116: 393.00 | G116: - | H116: 468 | I116: 468.00 | J116: Target Achieved | K116: 75.00 | L116: 19.08% | M116: Successful | N116: 2014-08-12
A117: 4 | B117: 2014-08-06 | D117: Finolex Cables | E117: Buy | F117: 205.00 | G117: - | H117: 275 | I117: 250.00 | J117: Target Achieved | K117: 70.00 | L117: 34.15% | M117: Successful | N117: 2014-11-19
A118: 5 | B118: 2014-09-04 | D118: Exide Inds | E118: Buy | F118: 162.00 | G118: - | H118: 190 | I118: 190.00 | J118: Target Achieved | K118: 28.00 | L118: 17.28% | M118: Successful | N118: 2015-01-02
A119: 6 | B119: 2014-09-04 | D119: Deepak Nitrite | E119: Buy | F119: 75.00 | G119: - | H119: 91.5 | I119: 95-100 | J119: Profit of Rs.16.50/- | K119: 16.50 | L119: 22.00% | M119: Successful | N119: 2014-11-11
A120: 7 | B120: 2014-10-01 | D120: Mercks | E120: Buy | F120: 850.00 | G120: - | H120: 982.5 | I120: 1050.00 | J120: Profit of Rs.132.50/- | K120: 132.50 | L120: 15.59% | M120: Successful | N120: 2015-02-04
A121: 8 | B121: 2014-10-01 | D121: Grindwell Norton | E121: Buy | F121: 475.00 | G121: - | H121: 515 | I121: 600.00 | J121: Profit of Rs.40/- | K121: 40.00 | L121: 8.42% | M121: Successful | N121: 2014-10-27
A122: 9 | B122: 2014-10-01 | D122: Snowman Logistics | E122: Buy | F122: 86.00 | G122: - | H122: 99 | I122: 140.00 | J122: Profit of Rs.13.00/- | K122: 13.00 | L122: 15.12% | M122: Successful | N122: 2014-10-27
A123: 10 | B123: 2014-10-14 | D123: Birla Corp | E123: Buy | F123: 496.60 | G123: - | H123: 621 | I123: 580.00 | J123: Target Achieved | K123: 124.40 | L123: 25.05% | M123: Successful | N123: 2016-08-23
A124: 11 | B124: 2014-10-14 | D124: Ultratech Cem | E124: Buy | F124: 2481.90 | G124: - | H124: 2840 | I124: 2870.00 | J124: Profit of Rs.358.10/- | K124: 358.10 | L124: 14.43% | M124: Successful | N124: 2015-01-13
A125: 12 | B125: 2014-10-16 | D125: Sintex Inds | E125: Buy | F125: 84.50 | G125: - | H125: 93 | I125: 110.00 | J125: Profit of Rs.8.50/- | K125: 8.50 | L125: 10.06% | M125: Successful | N125: 2014-10-27
A126: 13 | B126: 2014-10-16 | D126: HSIL | E126: Buy | F126: 401.00 | G126: - | H126: 428 | I126: 450.00 | J126: Profit of Rs.27.00/- | K126: 27.00 | L126: 6.73% | M126: Successful | N126: 2015-01-16
A127: 14 | B127: 2014-10-16 | D127: Eveready Inds | E127: Buy | F127: 101.00 | G127: - | H127: 112 | I127: 120.00 | J127: Profit of Rs.11.00/- | K127: 11.00 | L127: 10.89% | M127: Successful | N127: 2014-10-27
A128: 15 | B128: 2014-11-11 | D128: Pennar Inds | E128: Buy | F128: 59.00 | G128: - | H128: 76 | I128: 76.00 | J128: Target Achieved | K128: 17.00 | L128: 28.81% | M128: Successful | N128: 2017-10-24
A129: 16 | B129: 2014-11-11 | D129: Snowman Logistics | E129: Buy | F129: 99.00 | G129: - | H129: 120 | I129: 120.00 | J129: Profit of Rs.21/- | K129: 21.00 | L129: 21.21% | M129: Successful | N129: 2014-11-17
A130: 17 | B130: 2014-11-13 | D130: Dharamsi Morarji Chem | E130: Buy | F130: 22.00 | G130: - | H130: 33.55 | I130: 32.00 | J130: Profit of Rs 11.55/- | K130: 11.55 | L130: 52.50% | M130: Successful | N130: 2015-07-03
A131: 18 | B131: 2014-12-03 | D131: Tatachem | E131: Buy | F131: 440.00 | G131: - | H131: 520 | I131: 520.00 | J131: Profit of Rs 80.00/- | K131: 80.00 | L131: 18.18% | M131: Successful | N131: 2015-07-23
A132: 19 | B132: 2014-12-03 | D132: Advanta | E132: Buy | F132: 360.00 | G132: - | H132: 427 | I132: 425.00 | J132: Profit of Rs.67.00/- | K132: 67.00 | L132: 18.61% | M132: Successful | N132: 2015-02-23
A133: 20 | B133: 2015-01-08 | D133: GDL | E133: Buy | F133: 360.00 | G133: - | H133: 455 | I133: 420.00 | J133: Profit of Rs.95.00/- | K133: 95.00 | L133: 26.39% | M133: Successful | N133: 2015-01-20
A134: 21 | B134: 2015-01-08 | D134: NRB Bearing | E134: Buy | F134: 130.00 | H134: 175.5 | I134: 165.00 | J134: Profit of Rs 45.50/- | K134: 45.50 | L134: 35.00% | M134: Successful | N134: 2017-12-19
A135: 22 | B135: 2015-02-05 | D135: GSFC | E135: Accu | F135: 98.00 | H135: 120 | I135: 120.00 | J135: Target Achieved | K135: 22.00 | L135: 22.45% | M135: Successful | N135: 2017-01-18
A136: 23 | B136: 2015-02-05 | D136: Sundrmfast | E136: Accu | F136: 196.00 | H136: 262 | I136: 255.00 | J136: Target Achieved | K136: 66.00 | L136: 33.67% | M136: Successful | N136: 2016-08-17
A137: 24 | B137: 2015-03-04 | D137: GPPL | E137: Accu | F137: 235 | H137: 77.00 | I137: 280-285 | J137: Loss of Rs.158/- | K137: -158.00 | L137: -67.23% | M137: Unsuccessful | N137: 2019-02-26
A138: 25 | B138: 2015-03-04 | D138: ORIENTCEM | E138: Accu | F138: 185.00 | H138: 224 | I138: 220-225 | J138: Target Achieved | K138: 39.00 | L138: 21.08% | M138: Successful | N138: 2016-10-04
A139: 26 | B139: 2015-03-27 | D139: PFS | E139: Accu | F139: 49.5 | H139: 15.85 | I139: 67.00 | J139: Loss of Rs.33.65/- | K139: -33.65 | L139: -68% | M139: Unsuccessful | N139: 2019-06-11
A140: 27 | B140: 2015-03-30 | D140: Walchandnagar Ind Ltd | E140: Accu | F140: 183.50 | H140: 219 | I140: 218.00 | J140: Profit of Rs.35.50/- | K140: 35.50 | L140: 19.35% | M140: Successful | N140: 2015-04-09
A141: 28 | B141: 2015-04-20 | D141: Kalpataru Power Transmission Ltd | E141: Accu | F141: =(227+237)/2 -> 232.00 | H141: 298 | I141: 298.00 | J141: Target Achieved | K141: 66.00 | L141: 28.45% | M141: Successful | N141: 2017-03-29
A142: 29 | B142: 2015-05-04 | D142: Mastek Ltd | E142: Buy | F142: 385.00 | H142: =212.5+331 -> 543.5 | I142: 510.00 | J142: Profit of Rs 158.50/- | K142: 158.50 | L142: 41.17% | M142: Successful | N142: 2015-08-19
A143: 30 | B143: 2015-05-04 | D143: Suprajit Eng | E143: Buy | F143: 115.50 | H143: 146 | I143: 142.00 | J143: Profit of Rs 30.50/- | K143: 30.50 | L143: 26.41% | M143: Successful | N143: 2015-07-17
A144: 31 | B144: 2015-05-27 | D144: TCI | E144: Buy | F144: 237.50 | H144: 279.5 | I144: 278.00 | J144: Target Achieved | K144: 42.00 | L144: 17.68% | M144: Successful | N144: 2015-08-06
A145: 32 | B145: 2015-06-19 | D145: HSIL | E145: Accu | F145: 340.00 | H145: 448 | I145: 448.00 | J145: Target Achieved | K145: 108.00 | L145: 31.76% | M145: Successful | N145: 2017-10-10
A146: 33 | B146: 2015-07-06 | D146: Capital First | E146: Accu | F146: 390.00 | H146: 460 | I146: 460.00 | J146: Target Achieved | K146: =H146-F146 -> 70.00 | L146: =K146/F146 -> 17.95% | M146: Successful | N146: 2016-04-18
A147: 34 | B147: 2015-07-10 | D147: Dolphin OffShore | E147: Accu | F147: 122.5 | H147: 61.00 | I147: 172.00 | J147: Loss of Rs.61.50/- | K147: -61.50 | L147: -50.20% | M147: Unsuccessful | N147: 2018-08-21
A148: 35 | B148: 2015-08-03 | D148: Allcargo logistics | E148: Accu | F148: 297.50 | H148: 350 | I148: 360.00 | J148: Profit of Rs 52.50/- | K148: 52.50 | L148: 17.65% | M148: Successful | N148: 2015-08-16
A149: 36 | B149: 2015-08-03 | D149: Camline Fine | E149: Accu | F149: 115.50 | H149: 149 | I149: 140.00 | J149: Profit of Rs 33.50/- | K149: 33.50 | L149: 29.00% | M149: Successful | N149: 2017-01-05
A150: 37 | B150: 2015-09-04 | D150: TCI | E150: Accu | F150: 226.00 | H150: 292 | I150: 292.00 | J150: Target Achieved | K150: 66.00 | L150: 29.20% | M150: Successful | N150: 2015-10-09
A151: 38 | B151: 2015-09-07 | D151: Kalpataru Power Transmission Ltd | E151: Accu | F151: 232.50 | H151: 312.5 | I151: 310.00 | J151: Target Achieved | K151: 80.00 | L151: 34.41% | M151: Successful | N151: 2017-03-29
A152: 39 | B152: 2015-09-21 | D152: LLOYD ELECTRIC & ENG LTD | E152: Accu | F152: 196.50 | H152: 238 | I152: 238.00 | J152: Target Achieved | K152: 41.50 | L152: 21.12% | M152: Successful | N152: 2015-10-14
A153: 40 | B153: 2015-09-24 | D153: L&T Finance Holding | E153: Accu | F153: 65.00 | H153: 82 | I153: 82.00 | J153: Target Achieved | K153: 17.00 | L153: 26.15% | M153: Successful | N153: 2016-07-27
A154: 41 | B154: 2015-10-14 | D154: KEC International ltd | E154: Accu | F154: 144.00 | H154: 182.5 | I154: 181.00 | J154: Target Achieved | K154: 38.50 | L154: 26.74% | M154: Successful | N154: 2017-03-23
A155: 42 | B155: 2015-10-14 | D155: Gruh Finance | E155: Accu | F155: 264.00 | H155: 311 | I155: 311.00 | J155: Target Achieved | K155: 47.00 | L155: 17.80% | M155: Successful | N155: 2016-08-22
A156: 43 | B156: 2015-11-10 | D156: Pidilitind | E156: Buy | F156: 549.50 | H156: 630 | I156: 630.00 | J156: Target Achieved | K156: 80.50 | L156: 14.65% | M156: Successful | N156: 2016-02-19
A157: 44 | B157: 2015-12-04 | D157: Zensar Technology | E157: Accu | F157: 1027.50 | H157: 1315 | I157: 1250.00 | J157: Target Achieved | K157: 287.50 | L157: 27.98% | M157: Successful | N157: 2018-05-24
A158: 45 | B158: 2015-12-29 | D158: Vinati Organics Ltd | E158: Accu | F158: 465.00 | H158: 540 | I158: 540.00 | J158: Target Achieved | K158: 75.00 | L158: 16.13% | M158: Successful | N158: 2016-06-09
A159: 46 | B159: 2016-01-11 | D159: GSFC | E159: Buy | F159: 81.00 | H159: 110 | I159: 110.00 | J159: Target Achieved | K159: 29.00 | L159: 35.80% | M159: Successful | N159: 2017-01-10
A160: 47 | B160: 2016-01-13 | D160: SSWL | E160: Buy | F160: 417.50 | H160: 547 | I160: 535.00 | J160: Target Achieved | K160: 129.50 | L160: 31.02% | M160: Successful | N160: 2016-07-27
A161: 48 | B161: 2016-02-08 | D161: Persistent System Ltd | E161: Accu | F161: 650.00 | H161: 800 | I161: 800.00 | J161: Target Achieved | K161: 150.00 | L161: 23.08% | M161: Successful | N161: 2018-02-23
A162: 49 | B162: 2016-03-04 | D162: UPL | E162: Accu | F162: 437.50 | H162: 504.5 | I162: 522.00 | J162: Profit of Rs.67/- | K162: 67.00 | L162: 15.31% | M162: Successful | N162: 2016-04-20
A163: 50 | B163: 2016-03-09 | D163: Ashoka Buildcon Ltd | E163: Accu | F163: 189.50 | H163: 218 | I163: 218.00 | J163: Target Achieved | K163: 28.50 | L163: 15.04% | M163: Successful | N163: 2017-10-26
A164: 51 | B164: 2016-04-11 | D164: PTC INDIA FIN SERV LTD | E164: Accu | F164: 36.5 | H164: 15.85 | I164: 60.00 | J164: Loss of Rs.20.65/- | K164: -20.65 | L164: -56.58% | M164: Unsuccessful | N164: 2019-06-11
A165: 52 | B165: 2016-04-12 | D165: CAMLINFINE $ | E165: Accu | F165: 93.00 | H165: 149 | I165: 140.00 | J165: Profit of Rs 56/- | K165: 56.00 | L165: 60.22% | M165: Successful | N165: 2017-01-05
A166: 53 | B166: 2016-04-12 | D166: Greaves Cotton Ltd. | E166: Accu | F166: 130.00 | H166: 150 | I166: 150-155 | J166: Target Achieved | K166: 20.00 | L166: 15.38% | M166: Successful | N166: 2016-07-13
A167: 54 | B167: 2016-04-13 | D167: DHFL | E167: Accu | F167: 196.00 | H167: 299 | I167: 299.00 | J167: Target Achieved | K167: 103.00 | L167: 52.55% | M167: Successful | N167: 2016-09-07
A168: 55 | B168: 2016-04-13 | D168: Magma | E168: Accu | F168: 88.00 | H168: 103 | I168: 103.00 | J168: Target Achieved | K168: 15.00 | L168: 17.05% | M168: Successful | N168: 2016-06-09
A169: 56 | B169: 2016-05-02 | D169: KEC International ltd $ | E169: Accu | F169: 127.50 | H169: 148 | I169: 148-150 | J169: Target Achieved | K169: =H169-F169 -> 20.50 | L169: =K169/F169 -> 16.08% | M169: Successful | N169: 2016-07-13
A170: 57 | B170: 2016-05-03 | D170: Mindtree | E170: Accu | F170: 675.00 | H170: 815 | I170: 790-800 | J170: Target Achieved | K170: =H170-F170 -> 140.00 | L170: =K170/F170 -> 20.74% | M170: Successful | N170: 2018-02-23
A171: 58 | B171: 2016-06-01 | D171: Atulauto | E171: Accu | F171: 500 | H171: 232.50 | I171: 565-570 | J171: Loss of Rs.267.50 /- | K171: =H171-F171 -> -267.50 | L171: =K171/F171 -> -53.50% | M171: Unsuccessful | N171: 2019-09-27
A172: 59 | B172: 2016-06-06 | D172: TRITURBINE | E172: Accu | F172: 110.00 | H172: 126.5 | I172: 125.00 | J172: Profit of Rs.16.50/- | K172: =H172-F172 -> 16.50 | L172: =K172/F172 -> 15.00% | M172: Successful | N172: 2016-07-01
A173: 60 | B173: 2016-06-17 | D173: Pennar Industries Ltd | E173: Accu | F173: 44.00 | H173: 69.5 | I173: 69.50 | J173: Profit of Rs.25.50/- | K173: =H173-F173 -> 25.50 | L173: =K173/F173 -> 57.95% | M173: Successful | N173: 2017-08-30
A174: 61 | B174: 2016-06-28 | D174: EVEREADY | E174: Accu | F174: 262.50 | H174: 340 | I174: 333.00 | J174: Profit of Rs.77.50/- | K174: 77.50 | L174: 29.52% | M174: Successful | N174: 2017-10-09
A175: 62 | B175: 2016-06-28 | D175: FIEMIND | E175: Accu | F175: 840.00 | H175: 1230 | I175: 1230.00 | J175: Target Achieved | K175: 390.00 | L175: 46.43% | M175: Successful | N175: 2016-10-06
A176: 63 | B176: 2016-07-05 | D176: Bajaj Corp Ltd | E176: Accu | F176: 395 | H176: =(468.5+342.5)/2 -> 405.50 | I176: 510.00 | J176: Profit of Rs.10.50/- | K176: =H176-F176 -> 10.50 | L176: =K176/F176 -> 3% | M176: Neutral | N176: 2019-05-21
A177: 64 | B177: 2016-08-02 | D177: GPPL $ | E177: Buy | F177: 169.5 | H177: 77.00 | I177: 198-200 | J177: Loss of Rs.92.5/- | K177: -92.50 | L177: -54.57% | M177: Unsuccessful | N177: 2019-02-26
A178: 65 | B178: 2016-08-04 | D178: WONDERLA HOLIDAYS LTD | E178: Accu | F178: 400 | H178: 305.00 | I178: 475.00 | J178: Loss of Rs.95/- | K178: -95.00 | L178: -23.75% | M178: Unsuccessful | N178: 2019-05-21
A179: 66 | B179: 2016-08-11 | D179: CAMLINFINE | E179: Accu | F179: 86.50 | H179: 130 | I179: 130.00 | J179: Profit of Rs.43.50/- | K179: 43.50 | L179: 50.29% | M179: Successful | N179: 2017-12-22
A180: 67 | B180: 2016-08-18 | D180: GRANULES | E180: Accu | F180: 133.5 | H180: 126.50 | I180: 178.00 | J180: Exit | K180: -7.00 | L180: -5.24% | M180: Unsuccessful | N180: 2016-09-02
A181: 68 | B181: 2016-08-31 | D181: VA TECH WABAG | E181: Accu | F181: 560.00 | H181: 725 | I181: 725.00 | J181: Target Achieved | K181: 165.00 | L181: 29.46% | M181: Successful | N181: 2016-03-27
A182: 69 | B182: 2016-09-01 | D182: SKIPPER LIMITED | E182: Accu | F182: 160.50 | H182: 210 | I182: 210.00 | J182: Target Achieved | K182: 49.50 | L182: 30.84% | M182: Successful | N182: 2017-05-16
A183: 70 | B183: 2016-10-03 | D183: IFBIND | E183: Accu | F183: 430.00 | H183: 596 | I183: 575.00 | J183: Profit of Rs.166/- | K183: 166.00 | L183: 38.60% | M183: Successful | N183: 2017-02-03
A184: 71 | B184: 2016-10-14 | D184: ASIANTILES | E184: Accu | F184: 280.00 | H184: 345 | I184: 345.00 | J184: Target Achieved | K184: =H184-F184 -> 65.00 | L184: =K184/F184 -> 23.21% | M184: Successful | N184: 2017-03-20
A185: 72 | B185: 2016-10-14 | D185: DEEPIND | E185: Accu | F185: 245.00 | H185: 325.5 | I185: 330.00 | J185: Profit of Rs.80.5/- | K185: 80.50 | L185: =K185/F185 -> 32.86% | M185: Successful | N185: 2017-02-03
A186: 73 | B186: 2016-10-17 | D186: DCBBANK | E186: Accu | F186: 125.00 | H186: 160 | I186: 160.00 | J186: Target Achieved | K186: 35.00 | L186: 28.00% | M186: Successful | N186: 2017-03-09
A187: 74 | B187: 2016-10-17 | D187: ORIENTREF | E187: Accu | F187: 114.00 | H187: 145 | I187: 145.00 | J187: Target Achieved | K187: 31.00 | L187: =K187/F187 -> 27.19% | M187: Successful | N187: 2017-05-04
A188: 75 | B188: 2016-10-17 | D188: GANECOS | E188: Accu | F188: 212.00 | H188: 280 | I188: 276.00 | J188: Profit of Rs.68/- | K188: 68.00 | L188: =K188/F188 -> 32.08% | M188: Successful | N188: 2017-05-03
A189: 76 | B189: 2016-11-04 | D189: NBCC | E189: Accu | F189: 155.00 | H189: 210 | I189: 210.00 | J189: Profit of Rs.55/- | K189: 55.00 | L189: =K189/F189 -> 35.48% | M189: Successful | N189: 2017-07-28
A190: 77 | B190: 2016-12-06 | D190: PRECAM | E190: Accu | F190: 150.5 | H190: 72.50 | I190: 174.00 | J190: Loss of Rs.78/- | K190: -78.00 | L190: -51.83% | M190: Unsuccessful | N190: 2018-08-21
A191: 78 | B191: 2016-12-08 | D191: INFRATEL | E191: Accu | F191: 380.00 | H191: 478 | I191: 468.00 | J191: Target Achieved | K191: =H191-F191 -> 98.00 | L191: =K191/F191 -> 25.79% | M191: Successful | N191: 2017-10-17
A192: 79 | B192: 2016-12-30 | D192: GODREJPROP | E192: Accu | F192: 305.00 | H192: 375 | I192: 375.00 | J192: Target Achieved | K192: =H192-F192 -> 70.00 | L192: =K192/F192 -> 22.95% | M192: Successful | N192: 2017-02-02
A193: 80 | B193: 2017-01-04 | D193: DEEPAKNTR | E193: Accu | F193: 99.50 | H193: 158 | I193: 158.00 | J193: Target Achieved | K193: =H193-F193 -> 58.50 | L193: =K193/F193 -> 58.79% | M193: Successful | N193: 2017-06-12
A194: 81 | B194: 2017-01-04 | D194: DEEPAKNTR | E194: Accu | F194: 99.50 | H194: 158 | I194: 158.00 | J194: Target Achieved | K194: 58.50 | L194: 58.79% | M194: Successful | N194: 2017-06-12
A195: 82 | B195: 2017-02-20 | D195: RECLTD | E195: Accu | F195: 140.50 | H195: 220 | I195: 220.00 | J195: Target Achieved | K195: =H195-F195 -> 79.50 | L195: =K195/F195 -> 56.58% | M195: Successful | N195: 2017-05-09
A196: 83 | B196: 2017-02-20 | D196: SUBROS | E196: Accu | F196: 202.50 | H196: 234 | I196: 234.00 | J196: Target Achieved | K196: 31.50 | L196: 15.56% | M196: Successful | N196: 2017-04-11
A197: 84 | B197: 2017-03-24 | D197: VRLLOG | E197: Accu | F197: 300.50 | H197: 417.5 | I197: 420.00 | J197: Profit of Rs.117/- | K197: =H197-F197 -> 117.00 | L197: =K197/F197 -> 38.94% | M197: Successful | N197: 2017-12-01
A198: 85 | B198: 2017-03-24 | D198: FIEMIND | E198: Accu | F198: 850.00 | H198: 1042.5 | I198: 1023.00 | J198: Profit of Rs 192.50/- | K198: 192.50 | L198: 22.65% | M198: Successful | N198: 2017-04-05
A199: 86 | B199: 2017-04-05 | D199: RATNAMANI | E199: Accu | F199: 785.00 | H199: 930 | I199: 920.00 | J199: Profit of Rs.145/- | K199: =H199-F199 -> 145.00 | L199: =K199/F199 -> 18.47% | M199: Successful | N199: 2017-08-29
A200: 87 | B200: 2017-04-06 | D200: ZEEMEDIA | E200: Accu | F200: 40 | H200: 13.10 | I200: 60.00 | J200: Loss of Rs.26.9/- | K200: -26.90 | L200: -67.25% | M200: Unsuccessful | N200: 2018-02-07
A201: 88 | B201: 2017-04-12 | D201: DABUR | E201: Accu | F201: 289.50 | H201: 354 | I201: 360.00 | J201: Profit of Rs.64.5/- | K201: =H201-F201 -> 64.50 | L201: =K201/F201 -> 22.28% | M201: Successful | N201: 2017-11-01
A202: 89 | B202: 2017-04-20 | D202: KPRMILL | E202: Accu | F202: 700.00 | H202: 840 | I202: 840.00 | J202: Profit of Rs.140/- | K202: 140.00 | L202: 20.00% | M202: Successful | N202: 2017-06-07
A203: 90 | B203: 2017-06-01 | D203: ESSELPACK | E203: Accu | F203: 130.00 | H203: 144.25 | I203: 170.00 | J203: Profit of Rs.14.25/- | K203: 14.25 | L203: 10.96% | M203: Successful | N203: 2019-07-29
A204: 91 | B204: 2017-06-15 | D204: KEI | E204: Accu | F204: 214.50 | H204: 262 | I204: 262.00 | J204: Profit of Rs.47.5/- | K204: 47.50 | L204: 22.14% | M204: Successful | N204: 2017-08-30
A205: 92 | B205: 2017-07-17 | D205: MAYURUNIQ | E205: Accu | F205: 370.00 | H205: 447.5 | I205: 450.00 | J205: Target Achieved | K205: 77.50 | L205: 20.95% | M205: Successful | N205: 2017-10-27
A206: 93 | B206: 2017-07-27 | D206: RAMCOCEM | E206: Accu | F206: 657.50 | H206: 825 | I206: 820.00 | J206: Target Achieved | K206: 167.50 | L206: 25.48% | M206: Successful | N206: 2017-12-21
A207: 94 | B207: 2017-08-17 | D207: FINPIPE | E207: Accu | F207: 605.00 | H207: 750 | I207: 750.00 | J207: Profit of Rs.145/- | K207: 145.00 | L207: 23.97% | M207: Successful | N207: 2017-10-19
A208: 95 | B208: 2017-09-01 | D208: SHK | E208: Accu | F208: 255 | H208: 217.25 | I208: 320.00 | J208: Loss of Rs.37.75/- | K208: -37.75 | L208: -15% | M208: Unsuccessful | N208: 2019-07-15
A209: 96 | B209: 2017-09-19 | D209: SKIPPER | E209: Accu | F209: 215.00 | H209: 258 | I209: 258.00 | J209: Target Achieved | K209: 43.00 | L209: 20.00% | M209: Successful | N209: 2017-11-01
A210: 97 | B210: 2017-09-19 | D210: SKIPPER | E210: Accu | F210: 215.00 | H210: 258 | I210: 258.00 | J210: Target Achieved | K210: 43.00 | L210: 20.00% | M210: Successful | N210: 2017-11-01
A211: 98 | B211: 2017-09-20 | D211: CAMLINFINE$ | E211: Accu | F211: 75.00 | H211: 90 | I211: 90.00 | J211: Profit of Rs.15.00/- | K211: =H211-F211 -> 15.00 | L211: =K211/F211 -> 20.00% | M211: Successful | N211: 2017-10-11
A212: 99 | B212: 2017-10-03 | D212: GNA | E212: Accu | F212: 315.00 | H212: 392 | I212: 384.00 | J212: Profit of Rs.77/- | K212: 77.00 | L212: 24.44% | M212: Successful | N212: 2017-10-09
A213: 100 | B213: 2017-10-05 | D213: NOCIL | E213: Accu | F213: 145.00 | H213: 179 | I213: 180.00 | J213: Profit of Rs.34/- | K213: 34.00 | L213: 23.45% | M213: Successful | N213: 2017-10-17
A214: 101 | B214: 2017-10-06 | D214: CENTURYPLY | E214: Accu | F214: 256.00 | H214: 323 | I214: 320.00 | J214: Target Achieved | K214: 67.00 | L214: 26.17% | M214: Successful | N214: 2017-11-28
A215: 102 | B215: 2017-10-09 | D215: EIHOTEL | E215: Accu | F215: 137.50 | H215: 184 | I215: 183.00 | J215: Profit of Rs.46.5/- | K215: 46.50 | L215: 33.82% | M215: Successful | N215: 2018-01-08
A216: 103 | B216: 2017-10-10 | D216: NRBBEARING | E216: Accu | F216: 125.50 | H216: 158 | I216: 155.00 | J216: Profit of Rs.32.5/- | K216: 32.50 | L216: 25.90% | M216: Successful | N216: 2017-11-28
A217: 104 | B217: 2017-10-10 | D217: BOROSIL | E217: Accu | F217: 895.00 | H217: 1122.5 | I217: 1078.00 | J217: Profit of Rs.227.5/- | K217: 227.50 | L217: 25.42% | M217: Successful | N217: 2018-01-17
A218: 105 | B218: 2017-10-12 | D218: CYIENT | E218: Accu | F218: 525.00 | H218: 629 | I218: 629.00 | J218: Target Achieved | K218: 104.00 | L218: 19.81% | M218: Successful | N218: 2018-01-19
A219: 106 | B219: 2017-11-07 | D219: HATSUN | E219: Accu | F219: 740.00 | H219: 892.5 | I219: 900.00 | J219: Profit of Rs.152.5/- | K219: =H219-F219 -> 152.50 | L219: =K219/F219 -> 20.61% | M219: Successful | N219: 2017-11-13
A220: 107 | B220: 2017-12-04 | D220: SANGHIIND | E220: Accu | F220: 118.50 | H220: 143.5 | I220: 145.00 | J220: Profit of Rs.25/- | K220: =H220-F220 -> 25.00 | L220: =K220/F220 -> 21.10% | M220: Successful | N220: 2017-12-28
A221: 108 | B221: 2017-12-21 | D221: KAJARIACER | E221: Accu | F221: 715 | H221: 500.00 | I221: 872.00 | J221: Loss of Rs.215/- | K221: =H221-F221 -> -215.00 | L221: =K221/F221 -> -30.07% | M221: Unsuccessful | N221: 2019-07-24
A222: 109 | B222: 2017-12-29 | D222: GNA | E222: Accu | F222: 435.00 | H222: 542.5 | I222: 539.00 | J222: Target Achieved | K222: 107.50 | L222: 24.71% | M222: Successful | N222: 2018-04-16
A223: 110 | B223: 2017-12-29 | D223: ZENSARTECH | E223: Accu | F223: 885.00 | H223: 1090 | I223: 1084.00 | J223: Target Achieved | K223: 205.00 | L223: 23.16% | M223: Successful | N223: 2018-04-23
A224: 111 | B224: 2018-04-02 | D224: EVERESTIND | E224: Accu | F224: 492.50 | H224: 442 | I224: 613.00 | J224: Loss of Rs.50.50 /- | K224: =H224-F224 -> -50.50 | L224: =K224/F224 -> -10.25% | M224: Unsuccessful | N224: 2019-10-24
A225: 112 | B225: 2018-04-04 | D225: GPPL$ | E225: Accu | F225: 141.5 | H225: 77.00 | I225: 180.00 | J225: Loss of Rs.64.5/- | K225: =H225-F225 -> -64.50 | L225: =K225/F225 -> -45.58% | M225: Unsuccessful | N225: 2019-02-26
A226: 113 | B226: 2018-04-19 | D226: MANPASAND | E226: Accu | F226: 430 | H226: 220.00 | I226: 537.00 | J226: Loss of Rs.210/- | K226: =H226-F226 -> -210.00 | L226: =K226/F226 -> -48.84% | M226: Unsuccessful | N226: 2018-06-01
A227: 114 | B227: 2018-04-30 | D227: HEIDELBERG | E227: Accu | F227: 156 | H227: 196.00 | I227: 196.00 | J227: Profit of Rs.40/- | K227: =H227-F227 -> 40.00 | L227: =K227/F227 -> 26% | M227: Successful | N227: 2019-05-20
A228: 115 | B228: 2018-07-25 | D228: ZEEMEDIA | E228: Accu | F228: 27.5 | H228: 13.10 | I228: 60.00 | J228: Loss of Rs.14.40/- | K228: -14.40 | L228: -52.36% | M228: Unsuccessful | N228: 2018-02-07
A229: 116 | B229: 2018-08-06 | D229: GABRIEL | E229: Accu | F229: 150.00 | H229: 102 | I229: 182.00 | J229: Loss of Rs.48 /- | K229: =H229-F229 -> -48.00 | L229: =K229/F229 -> -32.00% | M229: Unsuccessful | N229: 2019-07-15
A230: 117 | B230: 2018-08-23 | D230: INDIANHUME | E230: Accu | F230: 285.00 | H230: 355 | I230: 364.00 | J230: Profit of Rs.70/- | K230: 70.00 | L230: 24.56% | M230: Successful | N230: 2018-12-21
A231: 118 | B231: 2018-08-29 | D231: GRINDWELL | E231: Accu | F231: 525.00 | H231: 585 | I231: 635.00 | J231: Profit of Rs.60- | K231: =H231-F231 -> 60.00 | L231: =K231/F231 -> 11.43% | M231: Successful | N231: 2019-07-16
A232: 119 | B232: 2018-10-22 | D232: FINPIPE | E232: Accu | F232: 475.00 | H232: 574 | I232: 570.00 | J232: Target Achieved | K232: 99.00 | L232: 20.84% | M232: Successful | N232: 2018-10-30
A233: 120 | B233: 2018-10-24 | D233: GULFOILLUB | E233: Accu | F233: 707.50 | H233: 872 | I233: 872.00 | J233: Target Achieved | K233: 164.50 | L233: 23.25% | M233: Successful | N233: 2019-01-17
A234: 121 | B234: 2018-10-25 | D234: DBCORP | E234: Accu | F234: 164.00 | H234: 204 | I234: 209.00 | J234: Profit of Rs.40/- | K234: 40.00 | L234: 24.39% | M234: Successful | N234: 2019-03-15
A235: 122 | B235: 2018-10-26 | D235: RITES | E235: Accu | F235: 240.00 | H235: 297 | I235: 297.00 | J235: Target Achieved | K235: 57.00 | L235: 23.75% | M235: Successful | N235: 2018-11-13
A236: 123 | B236: 2018-12-05 | D236: BRIGADE | E236: Accu | F236: 202.50 | H236: 255 | I236: 252.00 | J236: Target Achieved | K236: 52.50 | L236: 25.93% | M236: Successful | N236: 2019-03-18
A237: 124 | B237: 2018-12-31 | D237: JKCEMENT | E237: Accu | F237: 710.00 | H237: 866 | I237: 866.00 | J237: Target Achieved | K237: 156.00 | L237: 21.97% | M237: Successful | N237: 2019-03-29
A238: 125 | B238: 2019-02-26 | D238: MARICO | E238: Accu | F238: 340.00 | H238: 398.5 | I238: 411.00 | J238: Profit of Rs.58.50/- | K238: 58.50 | L238: 17.21% | M238: Successful | N238: 2019-10-22
A239: 126 | B239: 2019-04-04 | D239: ITDCEM | E239: Accu | F239: 130.00 | H239: 65 | I239: 158.00 | J239: Loss of Rs.65 /- | K239: -65.00 | L239: -50.00% | M239: Unsuccessful | N239: 2019-09-18
A240: 127 | B240: 2017-10-09 | D240: RECLTD | E240: Accu | F240: 152.5 | H240: 183.50 | I240: 210.00 | J240: Part Profit of Rs.31/- | K240: 31.00 | L240: 20% | M240: Successful | N240: 2017-11-03 | R240: V
A241: 128 | B241: 2017-12-05 | D241: ALLCARGO | E241: Accu | F241: 177.50 | H241: 155.25 | I241: 230.00 | J241: Loss of Rs.22.25/- | K241: =H241-F241 -> -22.25 | L241: =K241/F241 -> -12.54% | M241: Unsuccessful | N241: 2019-11-18 | R241: V
A242: 129 | B242: 2018-10-25 | D242: GODREJCP | E242: Accu | F242: 707.5 | H242: 850.00 | I242: 890.00 | J242: Part Profit of Rs.142.5/- | K242: 142.50 | L242: 20% | M242: Successful | N242: 2018-12-19 | R242: V
... 24 more rows

Sheet Sheet2 (hidden)
A1: SYMBOL | B1: SERIES | C1: OPEN | D1: HIGH | E1: LOW | F1: CLOSE | G1: LAST | H1: PREVCLOSE | I1: TOTTRDQTY | J1: TOTTRDVAL | K1: TIMESTAMP | L1: TOTALTRADES | M1: ISIN | N1: ISIN
A2: 20MICRONS | B2: EQ | C2: 36 | D2: 36.8 | E2: 35.25 | F2: 35.8 | G2: 35.65 | H2: 35.2 | I2: 49077 | J2: 1764577.1 | K2: 2020-01-01 | L2: 370 | M2: INE144J01027
A3: 3IINFOTECH | B3: EQ | C3: 2 | D3: 2.05 | E3: 1.95 | F3: 2 | G3: 2.05 | H3: 1.95 | I3: 800982 | J3: 1595812.95 | K3: 2020-01-01 | L3: 356 | M3: INE748C01020
A4: 3MINDIA | B4: EQ | C4: 21350.7 | D4: 21820.9 | E4: 21348.85 | F4: 21721.95 | G4: 21750 | H4: 21304.7 | I4: 773 | J4: 16728527.5 | K4: 2020-01-01 | L4: 445 | M4: INE470A01017
A5: 3PLAND | B5: EQ | C5: 6 | D5: 6 | E5: 6 | F5: 6 | G5: 6 | H5: 6 | I5: 167 | J5: 1002 | K5: 2020-01-01 | L5: 3 | M5: INE105C01023
A6: 5PAISA | B6: EQ | C6: 192.05 | D6: 211.75 | E6: 192.05 | F6: 205.5 | G6: 206 | H6: 192.5 | I6: 107432 | J6: 22267590.2 | K6: 2020-01-01 | L6: 2576 | M6: INE618L01018
A7: 63MOONS | B7: EQ | C7: 101.1 | D7: 115 | E7: 101.1 | F7: 110.4 | G7: 110.15 | H7: 101.8 | I7: 731910 | J7: 81111723.9 | K7: 2020-01-01 | L7: 13777 | M7: INE111B01023
A8: A2ZINFRA | B8: EQ | C8: 7.65 | D8: 8.1 | E8: 7.5 | F8: 7.75 | G8: 7.65 | H8: 7.55 | I8: 298173 | J8: 2305045.9 | K8: 2020-01-01 | L8: 470 | M8: INE619I01012
A9: AARTIDRUGS | B9: EQ | C9: 579.3 | D9: 598.4 | E9: 575.55 | F9: 591.9 | G9: 592 | H9: 579.3 | I9: 13121 | J9: 7754724.4 | K9: 2020-01-01 | L9: 1183 | M9: INE767A01016
A10: AARTIIND | B10: EQ | C10: 836 | D10: 843 | E10: 831.1 | F10: 837.8 | G10: 838.7 | H10: 830.75 | I10: 87969 | J10: 73651321.35 | K10: 2020-01-01 | L10: 2841 | M10: INE769A01020
A11: AARVEEDEN | B11: EQ | C11: 14 | D11: 14.45 | E11: 13.8 | F11: 13.9 | G11: 14.15 | H11: 14 | I11: 4874 | J11: 68535.8 | K11: 2020-01-01 | L11: 46 | M11: INE273D01019
A12: AAVAS | B12: EQ | C12: 1981.1 | D12: 1998 | E12: 1925 | F12: 1969.2 | G12: 1961 | H12: 1981.1 | I12: 45666 | J12: 89371663.8 | K12: 2020-01-01 | L12: 4459 | M12: INE216P01012
A13: ABAN | B13: EQ | C13: 26 | D13: 26.15 | E13: 25.25 | F13: 25.55 | G13: 25.6 | H13: 25.7 | I13: 36475 | J13: 937716.05 | K13: 2020-01-01 | L13: 746 | M13: INE421A01028
A14: ABB | B14: BE | C14: 1296.95 | D14: 1296.95 | E14: 1275 | F14: 1290 | G14: 1290 | H14: 1285.25 | I14: 6827 | J14: 8763641.95 | K14: 2020-01-01 | L14: 447 | M14: INE117A01022
A15: ABBOTINDIA | B15: EQ | C15: 13170.6 | D15: 13452.15 | E15: 13080 | F15: 13140 | G15: 13119.95 | H15: 13075.5 | I15: 4037 | J15: 53288258.35 | K15: 2020-01-01 | L15: 1399 | M15: INE358A01014
A16: ABCAPITAL | B16: EQ | C16: 103.2 | D16: 103.4 | E16: 101.2 | F16: 101.5 | G16: 101.35 | H16: 102.7 | I16: 982667 | J16: 100300618.8 | K16: 2020-01-01 | L16: 9428 | M16: INE674K01013
A17: ABFRL | B17: EQ | C17: 232.9 | D17: 236.85 | E17: 230.15 | F17: 234.1 | G17: 232.85 | H17: 231.7 | I17: 241005 | J17: 56532884.85 | K17: 2020-01-01 | L17: 4836 | M17: INE647O01011
A18: ABMINTLTD | B18: BE | C18: 14.75 | D18: 14.75 | E18: 14.75 | F18: 14.75 | G18: 14.75 | H18: 14.75 | I18: 105 | J18: 1548.75 | K18: 2020-01-01 | L18: 3 | M18: INE251C01017
A19: ABSLBANETF | B19: EQ | C19: 321.57 | D19: 321.57 | E19: 321.57 | F19: 321.57 | G19: 321.57 | H19: 322.97 | I19: 1 | J19: 321.57 | K19: 2020-01-01 | L19: 1 | M19: INF209KB1O58
A20: ABSLNN50ET | B20: EQ | C20: 286.87 | D20: 286.87 | E20: 286.87 | F20: 286.87 | G20: 286.87 | H20: 286.31 | I20: 6 | J20: 1721.22 | K20: 2020-01-01 | L20: 1 | M20: INF209KB1B87
A21: ACC | B21: EQ | C21: 1452.5 | D21: 1457 | E21: 1438.2 | F21: 1440.1 | G21: 1438.4 | H21: 1445.65 | I21: 321092 | J21: 463817701.1 | K21: 2020-01-01 | L21: 12889 | M21: INE012A01025
A22: ACCELYA | B22: EQ | C22: 1070.7 | D22: 1076.2 | E22: 1032.05 | F22: 1045.25 | G22: 1045 | H22: 1070.7 | I22: 5055 | J22: 5286005.25 | K22: 2020-01-01 | L22: 646 | M22: INE793A01012
A23: ACE | B23: EQ | C23: 75.1 | D23: 75.2 | E23: 71.2 | F23: 72 | G23: 71.6 | H23: 74.25 | I23: 115215 | J23: 8417364.55 | K23: 2020-01-01 | L23: 1794 | M23: INE731H01025
A24: ADANIENT | B24: EQ | C24: 209 | D24: 210.45 | E24: 206.65 | F24: 207.85 | G24: 207.55 | H24: 208.35 | I24: 1553127 | J24: 323377254.4 | K24: 2020-01-01 | L24: 10641 | M24: INE423A01024
A25: ADANIGAS | B25: EQ | C25: 163.4 | D25: 179.7 | E25: 160.4 | F25: 176.85 | G25: 176.85 | H25: 162.7 | I25: 7801084 | J25: 1337658089 | K25: 2020-01-01 | L25: 51079 | M25: INE399L01023
A26: ADANIGREEN | B26: EQ | C26: 169.35 | D26: 174.75 | E26: 168.1 | F26: 174.75 | G26: 174.75 | H26: 166.45 | I26: 5417952 | J26: 939512477 | K26: 2020-01-01 | L26: 35158 | M26: INE364U01010
A27: ADANIPORTS | B27: EQ | C27: 368 | D27: 379.25 | E27: 366 | F27: 377.65 | G27: 377.45 | H27: 366 | I27: 11377167 | J27: 4274459183 | K27: 2020-01-01 | L27: 89107 | M27: INE742F01042
A28: ADANIPOWER | B28: EQ | C28: 61.8 | D28: 64.3 | E28: 61.55 | F28: 63.9 | G28: 63.7 | H28: 61.8 | I28: 16415397 | J28: 1038270719 | K28: 2020-01-01 | L28: 35031 | M28: INE814H01011
A29: ADANITRANS | B29: EQ | C29: 332.95 | D29: 336 | E29: 330 | F29: 333.9 | G29: 335 | H29: 331.4 | I29: 147701 | J29: 49247078.95 | K29: 2020-01-01 | L29: 3178 | M29: INE931S01010
A30: ADFFOODS | B30: EQ | C30: 308 | D30: 308 | E30: 302 | F30: 302.7 | G30: 302 | H30: 306.85 | I30: 12184 | J30: 3701181.25 | K30: 2020-01-01 | L30: 533 | M30: INE982B01019
A31: ADHUNIKIND | B31: EQ | C31: 50 | D31: 51.6 | E31: 47.15 | F31: 49.15 | G31: 49 | H31: 49.2 | I31: 21713 | J31: 1068775.8 | K31: 2020-01-01 | L31: 377 | M31: INE452L01012
A32: ADLABS | B32: BE | C32: 4.6 | D32: 4.6 | E32: 4.5 | F32: 4.6 | G32: 4.6 | H32: 4.4 | I32: 35394 | J32: 162812.3 | K32: 2020-01-01 | L32: 44 | M32: INE172N01012
A33: ADORWELD | B33: EQ | C33: 295.5 | D33: 299 | E33: 293.65 | F33: 295.65 | G33: 295.6 | H33: 294.75 | I33: 5737 | J33: 1701077.9 | K33: 2020-01-01 | L33: 408 | M33: INE045A01017
A34: ADROITINFO | B34: BE | C34: 6.45 | D34: 6.65 | E34: 6.45 | F34: 6.65 | G34: 6.65 | H34: 6.75 | I34: 80 | J34: 526 | K34: 2020-01-01 | L34: 2 | M34: INE737B01033
A35: ADSL | B35: BE | C35: 20.4 | D35: 20.5 | E35: 19.5 | F35: 20.3 | G35: 20.5 | H35: 20.1 | I35: 11276 | J35: 224983.3 | K35: 2020-01-01 | L35: 69 | M35: INE102I01027
A36: ADVANIHOTR | B36: EQ | C36: 53.75 | D36: 53.85 | E36: 51.3 | F36: 53.4 | G36: 53.4 | H36: 53.2 | I36: 10519 | J36: 552030.55 | K36: 2020-01-01 | L36: 203 | M36: INE199C01026
A37: ADVENZYMES | B37: EQ | C37: 165.5 | D37: 166.4 | E37: 164.1 | F37: 164.5 | G37: 164.15 | H37: 165.5 | I37: 12150 | J37: 2003988.65 | K37: 2020-01-01 | L37: 546 | M37: INE837H01020
A38: AEGISCHEM | B38: EQ | C38: 193.9 | D38: 199 | E38: 192.85 | F38: 196.25 | G38: 197.3 | H38: 193.45 | I38: 141773 | J38: 27864259.05 | K38: 2020-01-01 | L38: 4945 | M38: INE208C01025
A39: AFFLE | B39: EQ | C39: 1580 | D39: 1621 | E39: 1576.15 | F39: 1611.4 | G39: 1613.05 | H39: 1581.35 | I39: 99256 | J39: 158939426.9 | K39: 2020-01-01 | L39: 7798 | M39: INE00WC01019
A40: AGARIND | B40: EQ | C40: 81.55 | D40: 90 | E40: 81.5 | F40: 87.9 | G40: 87.1 | H40: 81.25 | I40: 7791 | J40: 675609 | K40: 2020-01-01 | L40: 393 | M40: INE204E01012
A41: AGCNET | B41: EQ | C41: 150.15 | D41: 150.15 | E41: 140.2 | F41: 145.05 | G41: 143 | H41: 144.9 | I41: 4655 | J41: 673960.6 | K41: 2020-01-01 | L41: 160 | M41: INE676A01019
A42: AGRITECH | B42: EQ | C42: 43.1 | D42: 44.9 | E42: 43.05 | F42: 44.2 | G42: 43.8 | H42: 43.4 | I42: 13417 | J42: 588639.25 | K42: 2020-01-01 | L42: 280 | M42: INE449G01018
A43: AGROPHOS | B43: EQ | C43: 72.05 | D43: 72.05 | E43: 72.05 | F43: 72.05 | G43: 72.05 | H43: 80.05 | I43: 2041 | J43: 147054.05 | K43: 2020-01-01 | L43: 86 | M43: INE740V01019
A44: AHLEAST | B44: EQ | C44: 173.4 | D44: 178 | E44: 169 | F44: 170.95 | G44: 170 | H44: 176.9 | I44: 11892 | J44: 2024593 | K44: 2020-01-01 | L44: 188 | M44: INE926K01017
A45: AHLUCONT | B45: EQ | C45: 300.05 | D45: 300.05 | E45: 283.95 | F45: 290.2 | G45: 286 | H45: 299.25 | I45: 3629 | J45: 1052024.8 | K45: 2020-01-01 | L45: 300 | M45: INE758C01029
A46: AHLWEST | B46: EQ | C46: 346.05 | D46: 382.95 | E46: 346.05 | F46: 360.7 | G46: 368.95 | H46: 362.65 | I46: 690 | J46: 248130.25 | K46: 2020-01-01 | L46: 167 | M46: INE915K01010
A47: AIAENG | B47: EQ | C47: 1640.55 | D47: 1649.55 | E47: 1615.1 | F47: 1622.6 | G47: 1620.1 | H47: 1649.5 | I47: 3912 | J47: 6376585.55 | K47: 2020-01-01 | L47: 661 | M47: INE212H01026
A48: AIONJSW | B48: EQ | C48: 14.6 | D48: 15.75 | E48: 14.3 | F48: 15.75 | G48: 15.75 | H48: 14.35 | I48: 257409 | J48: 3985092.05 | K48: 2020-01-01 | L48: 503 | M48: INE743C01021
A49: AIRAN | B49: EQ | C49: 12.2 | D49: 12.9 | E49: 12 | F49: 12.75 | G49: 12.9 | H49: 12.35 | I49: 14145 | J49: 178308.8 | K49: 2020-01-01 | L49: 94 | M49: INE645W01026
A50: AJANTPHARM | B50: EQ | C50: 975 | D50: 987.35 | E50: 971.2 | F50: 978.45 | G50: 979.9 | H50: 974.55 | I50: 29557 | J50: 29007377.2 | K50: 2020-01-01 | L50: 2684 | M50: INE031B01049
A51: AJMERA | B51: EQ | C51: 118.4 | D51: 124.85 | E51: 117.7 | F51: 122.15 | G51: 122.5 | H51: 117.95 | I51: 98593 | J51: 12073813.35 | K51: 2020-01-01 | L51: 2353 | M51: INE298G01027
A52: AKASH | B52: EQ | C52: 64 | D52: 71.5 | E52: 62 | F52: 66.2 | G52: 68 | H52: 65 | I52: 7490 | J52: 513440.05 | K52: 2020-01-01 | L52: 129 | M52: INE737W01013
A53: AKSHARCHEM | B53: EQ | C53: 236.9 | D53: 262.7 | E53: 223.35 | F53: 252.45 | G53: 251.05 | H53: 237.2 | I53: 169153 | J53: 42226679.4 | K53: 2020-01-01 | L53: 5772 | M53: INE542B01011
A54: AKSHOPTFBR | B54: EQ | C54: 6.75 | D54: 6.8 | E54: 6.6 | F54: 6.75 | G54: 6.8 | H54: 6.7 | I54: 181975 | J54: 1222891.5 | K54: 2020-01-01 | L54: 263 | M54: INE523B01011
A55: AKZOINDIA | B55: EQ | C55: 2000 | D55: 2021 | E55: 1972 | F55: 2014.35 | G55: 1995 | H55: 1971.15 | I55: 14405 | J55: 28892161.3 | K55: 2020-01-01 | L55: 3588 | M55: INE133A01011
A56: ALANKIT | B56: EQ | C56: 12.6 | D56: 12.6 | E56: 12.15 | F56: 12.2 | G56: 12.3 | H56: 12.3 | I56: 14740 | J56: 181648.2 | K56: 2020-01-01 | L56: 94 | M56: INE914E01040
A57: ALBERTDAVD | B57: EQ | C57: 409.65 | D57: 424 | E57: 408.15 | F57: 414 | G57: 415 | H57: 408.4 | I57: 13222 | J57: 5505392.4 | K57: 2020-01-01 | L57: 465 | M57: INE155C01010
A58: ALBK | B58: EQ | C58: 18.8 | D58: 18.95 | E58: 18.75 | F58: 18.8 | G58: 18.8 | H58: 18.85 | I58: 910866 | J58: 17136259.75 | K58: 2020-01-01 | L58: 2147 | M58: INE428A01015
A59: ALCHEM | B59: BE | C59: 0.85 | D59: 0.85 | E59: 0.85 | F59: 0.85 | G59: 0.85 | H59: 0.85 | I59: 388 | J59: 329.8 | K59: 2020-01-01 | L59: 7 | M59: INE964B01033
A60: ALEMBICLTD | B60: EQ | C60: 60.75 | D60: 63.55 | E60: 59.5 | F60: 61.15 | G60: 61 | H60: 59.6 | I60: 665343 | J60: 41337436.55 | K60: 2020-01-01 | L60: 5197 | M60: INE426A01027
A61: ALICON | B61: EQ | C61: 370 | D61: 421 | E61: 370 | F61: 395.4 | G61: 395 | H61: 370.15 | I61: 8304 | J61: 3366297.15 | K61: 2020-01-01 | L61: 820 | M61: INE062D01024
A62: ALKALI | B62: EQ | C62: 41.3 | D62: 42.15 | E62: 41 | F62: 42 | G62: 42.15 | H62: 41.25 | I62: 4518 | J62: 188819.6 | K62: 2020-01-01 | L62: 87 | M62: INE773I01017
A63: ALKEM | B63: EQ | C63: 2013.9 | D63: 2100 | E63: 2006.9 | F63: 2082.85 | G63: 2099 | H63: 2013.9 | I63: 94927 | J63: 197392085.9 | K63: 2020-01-01 | L63: 17117 | M63: INE540L01014
A64: ALKYLAMINE | B64: EQ | C64: 1101 | D64: 1134.75 | E64: 1087.8 | F64: 1100.4 | G64: 1099 | H64: 1085 | I64: 24274 | J64: 27018796.75 | K64: 2020-01-01 | L64: 2114 | M64: INE150B01021
A65: ALLCARGO | B65: EQ | C65: 97.3 | D65: 98.5 | E65: 97 | F65: 97.15 | G65: 97 | H65: 97.45 | I65: 47895 | J65: 4679534.75 | K65: 2020-01-01 | L65: 916 | M65: INE418H01029
A66: ALLSEC | B66: EQ | C66: 281.6 | D66: 299.4 | E66: 281.6 | F66: 285.1 | G66: 288 | H66: 286.1 | I66: 807 | J66: 231387.8 | K66: 2020-01-01 | L66: 268 | M66: INE835G01018
A67: ALMONDZ | B67: EQ | C67: 12.35 | D67: 12.35 | E67: 10.5 | F67: 12 | G67: 12 | H67: 11.25 | I67: 610 | J67: 7489.25 | K67: 2020-01-01 | L67: 4 | M67: INE326B01027
A68: ALOKTEXT | B68: BE | C68: 3.1 | D68: 3.15 | E68: 2.9 | F68: 3.05 | G68: 3.05 | H68: 3.05 | I68: 1271618 | J68: 3775998.1 | K68: 2020-01-01 | L68: 985 | M68: INE270A01011
A69: ALPA | B69: EQ | C69: 16.9 | D69: 16.9 | E69: 16.25 | F69: 16.4 | G69: 16.5 | H69: 16.9 | I69: 14219 | J69: 236003.65 | K69: 2020-01-01 | L69: 137 | M69: INE385I01010
A70: ALPHAGEO | B70: EQ | C70: 173.05 | D70: 175.95 | E70: 170.7 | F70: 173.7 | G70: 174.85 | H70: 172.9 | I70: 3087 | J70: 536625 | K70: 2020-01-01 | L70: 152 | M70: INE137C01018
A71: ALPSINDUS | B71: BE | C71: 2.5 | D71: 2.5 | E71: 2.35 | F71: 2.35 | G71: 2.35 | H71: 2.45 | I71: 26686 | J71: 63384.9 | K71: 2020-01-01 | L71: 66 | M71: INE093B01015
A72: AMARAJABAT | B72: EQ | C72: 728.85 | D72: 732.6 | E72: 718.1 | F72: 720.9 | G72: 720.6 | H72: 724.35 | I72: 405425 | J72: 294023994.9 | K72: 2020-01-01 | L72: 9562 | M72: INE885A01032
A73: AMBER | B73: EQ | C73: 1120 | D73: 1167.7 | E73: 1117.15 | F73: 1149.5 | G73: 1158.15 | H73: 1117.15 | I73: 30349 | J73: 34611225.85 | K73: 2020-01-01 | L73: 2217 | M73: INE371P01015
A74: AMBIKCO | B74: EQ | C74: 887.6 | D74: 888.9 | E74: 858 | F74: 864.35 | G74: 863 | H74: 866.2 | I74: 1509 | J74: 1305049.6 | K74: 2020-01-01 | L74: 198 | M74: INE540G01014
A75: AMBUJACEM | B75: EQ | C75: 197.2 | D75: 197.75 | E75: 195.8 | F75: 197 | G75: 196.95 | H75: 196.25 | I75: 1459556 | J75: 287455479.9 | K75: 2020-01-01 | L75: 9803 | M75: INE079A01024
A76: AMDIND | B76: EQ | C76: 15.25 | D76: 15.9 | E76: 14 | F76: 14.35 | G76: 14.3 | H76: 15.5 | I76: 37714 | J76: 543738.5 | K76: 2020-01-01 | L76: 293 | M76: INE005I01014
A77: AMJLAND | B77: EQ | C77: 20.35 | D77: 20.35 | E77: 19.25 | F77: 20.2 | G77: 20.2 | H77: 19.4 | I77: 3447 | J77: 69504.7 | K77: 2020-01-01 | L77: 29 | M77: INE606A01024
A78: AMRUTANJAN | B78: EQ | C78: 440.35 | D78: 444.5 | E78: 431.2 | F78: 432.5 | G78: 432.25 | H78: 440.3 | I78: 10222 | J78: 4465877 | K78: 2020-01-01 | L78: 792 | M78: INE098F01031
A79: ANANTRAJ | B79: EQ | C79: 34 | D79: 35.3 | E79: 33.6 | F79: 34.75 | G79: 34.75 | H79: 34 | I79: 405879 | J79: 14026806.55 | K79: 2020-01-01 | L79: 3489 | M79: INE242C01024
A80: ANDHRABANK | B80: EQ | C80: 16.8 | D80: 17.15 | E80: 16.8 | F80: 16.85 | G80: 16.95 | H80: 16.7 | I80: 500578 | J80: 8471271 | K80: 2020-01-01 | L80: 1416 | M80: INE434A01013
A81: ANDHRACEMT | B81: EQ | C81: 2 | D81: 2.1 | E81: 1.9 | F81: 2 | G81: 2.1 | H81: 2 | I81: 57251 | J81: 112908.8 | K81: 2020-01-01 | L81: 85 | M81: INE666E01012
A82: ANDHRSUGAR | B82: EQ | C82: 294.2 | D82: 324.7 | E82: 293.9 | F82: 317.1 | G82: 316.05 | H82: 292.65 | I82: 259095 | J82: 81468410.8 | K82: 2020-01-01 | L82: 7120 | M82: INE715B01013
A83: ANIKINDS | B83: EQ | C83: 7.4 | D83: 7.95 | E83: 7.4 | F83: 7.95 | G83: 7.95 | H83: 7.6 | I83: 1500 | J83: 11486 | K83: 2020-01-01 | L83: 23 | M83: INE087B01017
A84: ANKITMETAL | B84: BE | C84: 0.5 | D84: 0.55 | E84: 0.45 | F84: 0.45 | G84: 0.45 | H84: 0.5 | I84: 59089 | J84: 28275 | K84: 2020-01-01 | L84: 71 | M84: INE106I01010
A85: ANSALAPI | B85: EQ | C85: 5.15 | D85: 5.3 | E85: 4.9 | F85: 5 | G85: 4.95 | H85: 5.15 | I85: 74811 | J85: 375559.9 | K85: 2020-01-01 | L85: 74 | M85: INE436A01026
A86: ANSALHSG | B86: BE | C86: 5.3 | D86: 5.45 | E86: 5.05 | F86: 5.1 | G86: 5.1 | H86: 5.3 | I86: 19541 | J86: 100977.1 | K86: 2020-01-01 | L86: 47 | M86: INE880B01015
A87: ANTGRAPHIC | B87: BE | C87: 0.55 | D87: 0.6 | E87: 0.55 | F87: 0.6 | G87: 0.6 | H87: 0.6 | I87: 30534 | J87: 16990.35 | K87: 2020-01-01 | L87: 19 | M87: INE414B01021
A88: ANUP | B88: EQ | C88: 483.1 | D88: 502 | E88: 477.8 | F88: 499.15 | G88: 501.9 | H88: 482.85 | I88: 8497 | J88: 4185813.6 | K88: 2020-01-01 | L88: 542 | M88: INE294Z01018
A89: APARINDS | B89: EQ | C89: 392 | D89: 392 | E89: 389 | F89: 389.85 | G89: 390 | H89: 389.8 | I89: 10997 | J89: 4287150.5 | K89: 2020-01-01 | L89: 222 | M89: INE372A01015
A90: APCL | B90: EQ | C90: 143.15 | D90: 147.9 | E90: 143.1 | F90: 146.55 | G90: 147.9 | H90: 143.55 | I90: 934 | J90: 136473.1 | K90: 2020-01-01 | L90: 57 | M90: INE071F01012
A91: APCOTEXIND | B91: EQ | C91: 159.4 | D91: 161 | E91: 155 | F91: 157.35 | G91: 157.9 | H91: 157.45 | I91: 22144 | J91: 3503093.75 | K91: 2020-01-01 | L91: 814 | M91: INE116A01032
A92: APEX | B92: EQ | C92: 347.5 | D92: 407 | E92: 347.5 | F92: 395.85 | G92: 395 | H92: 345.35 | I92: 4665403 | J92: 1807102484 | K92: 2020-01-01 | L92: 85351 | M92: INE346W01013
A93: APLAPOLLO | B93: EQ | C93: 1892.1 | D93: 1939 | E93: 1872 | F93: 1892.8 | G93: 1885.05 | H93: 1877.7 | I93: 70001 | J93: 133964192.5 | K93: 2020-01-01 | L93: 6743 | M93: INE702C01019
A94: APLLTD | B94: EQ | C94: 575.8 | D94: 575.8 | E94: 547.45 | F94: 550.7 | G94: 551 | H94: 571.3 | I94: 35709 | J94: 19863839.1 | K94: 2020-01-01 | L94: 2370 | M94: INE901L01018
A95: APOLLO | B95: EQ | C95: 74 | D95: 75.55 | E95: 73.15 | F95: 74.85 | G95: 74.8 | H95: 73.55 | I95: 22974 | J95: 1710676.85 | K95: 2020-01-01 | L95: 518 | M95: INE713T01010
A96: APOLLOHOSP | B96: EQ | C96: 1440 | D96: 1442 | E96: 1422.2 | F96: 1426.35 | G96: 1430 | H96: 1442 | I96: 268255 | J96: 383353613.4 | K96: 2020-01-01 | L96: 8723 | M96: INE437A01024
A97: APOLLOPIPE | B97: EQ | C97: 346 | D97: 346.9 | E97: 342.05 | F97: 344.3 | G97: 344 | H97: 345.8 | I97: 4512 | J97: 1555560.4 | K97: 2020-01-01 | L97: 371 | M97: INE126J01016
A98: APOLLOTYRE | B98: EQ | C98: 164.5 | D98: 164.95 | E98: 163 | F98: 163.35 | G98: 163.4 | H98: 163.9 | I98: 642850 | J98: 105236182.9 | K98: 2020-01-01 | L98: 5110 | M98: INE438A01022
A99: APOLSINHOT | B99: EQ | C99: 672.05 | D99: 680 | E99: 658 | F99: 670.5 | G99: 665.05 | H99: 670.4 | I99: 325 | J99: 217637.2 | K99: 2020-01-01 | L99: 44 | M99: INE451F01024
A100: APTECHT | B100: EQ | C100: 162.25 | D100: 167.75 | E100: 161.15 | F100: 164.7 | G100: 164.6 | H100: 161.5 | I100: 360158 | J100: 59456119.9 | K100: 2020-01-01 | L100: 5687 | M100: INE266F01018
A101: ARCHIDPLY | B101: EQ | C101: 27.45 | D101: 28.45 | E101: 27.45 | F101: 28 | G101: 27.9 | H101: 27.45 | I101: 5549 | J101: 154609.35 | K101: 2020-01-01 | L101: 318 | M101: INE877I01016
A102: ARCHIES | B102: EQ | C102: 18.5 | D102: 18.7 | E102: 18.3 | F102: 18.4 | G102: 18.35 | H102: 18.35 | I102: 20035 | J102: 369417.5 | K102: 2020-01-01 | L102: 80 | M102: INE731A01020
A103: ARCOTECH | B103: BE | C103: 2.1 | D103: 2.2 | E103: 2.1 | F103: 2.2 | G103: 2.2 | H103: 2.2 | I103: 9482 | J103: 20300.9 | K103: 2020-01-01 | L103: 33 | M103: INE574I01035
A104: ARIES | B104: EQ | C104: 65.2 | D104: 66 | E104: 64.55 | F104: 65.45 | G104: 65.1 | H104: 65.35 | I104: 12535 | J104: 819831.45 | K104: 2020-01-01 | L104: 423 | M104: INE298I01015
A105: ARIHANT | B105: EQ | C105: 19.05 | D105: 20.75 | E105: 19.05 | F105: 20.25 | G105: 20.4 | H105: 19.85 | I105: 3120 | J105: 63070.25 | K105: 2020-01-01 | L105: 137 | M105: INE413D01011
A106: ARIHANTSUP | B106: EQ | C106: 26.55 | D106: 27.35 | E106: 24.9 | F106: 27.15 | G106: 27.35 | H106: 26.05 | I106: 4562 | J106: 122377.75 | K106: 2020-01-01 | L106: 31 | M106: INE643K01018
A107: ARMANFIN | B107: EQ | C107: 648 | D107: 648 | E107: 625.1 | F107: 637.25 | G107: 642.5 | H107: 634.65 | I107: 3334 | J107: 2129153.85 | K107: 2020-01-01 | L107: 330 | M107: INE109C01017
A108: AROGRANITE | B108: EQ | C108: 38.85 | D108: 39.45 | E108: 36 | F108: 36.65 | G108: 36.75 | H108: 37.5 | I108: 9622 | J108: 350822.05 | K108: 2020-01-01 | L108: 138 | M108: INE210C01013
A109: ARROWGREEN | B109: EQ | C109: 47.55 | D109: 49 | E109: 46.05 | F109: 47.3 | G109: 47 | H109: 49.05 | I109: 6614 | J109: 313313.3 | K109: 2020-01-01 | L109: 219 | M109: INE570D01018
A110: ARROWTEX | B110: EQ | C110: 10.15 | D110: 10.8 | E110: 10.15 | F110: 10.6 | G110: 10.6 | H110: 10.55 | I110: 17149 | J110: 182015.95 | K110: 2020-01-01 | L110: 91 | M110: INE933J01015
A111: ARSHIYA | B111: EQ | C111: 16.3 | D111: 16.55 | E111: 15.1 | F111: 15.7 | G111: 15.6 | H111: 16.2 | I111: 31615 | J111: 496372.9 | K111: 2020-01-01 | L111: 235 | M111: INE968D01022
A112: ARSSINFRA | B112: EQ | C112: 21.1 | D112: 22.75 | E112: 21.1 | F112: 21.3 | G112: 21.8 | H112: 21.8 | I112: 13221 | J112: 284580 | K112: 2020-01-01 | L112: 86 | M112: INE267I01010
A113: ARVIND | B113: EQ | C113: 40.3 | D113: 41.5 | E113: 40.1 | F113: 40.6 | G113: 40.6 | H113: 39.95 | I113: 1547503 | J113: 63191332.4 | K113: 2020-01-01 | L113: 7203 | M113: INE034A01011
A114: ARVINDFASN | B114: EQ | C114: 394.85 | D114: 409.05 | E114: 394.85 | F114: 399.15 | G114: 400 | H114: 393.4 | I114: 30320 | J114: 12173684.35 | K114: 2020-01-01 | L114: 2556 | M114: INE955V01021
A115: ARVSMART | B115: EQ | C115: 87.6 | D115: 87.6 | E115: 85.55 | F115: 85.9 | G115: 85.55 | H115: 85.95 | I115: 13657 | J115: 1174255.55 | K115: 2020-01-01 | L115: 313 | M115: INE034S01021
A116: ASAHIINDIA | B116: EQ | C116: 199.85 | D116: 203.15 | E116: 199 | F116: 200.65 | G116: 200 | H116: 199.55 | I116: 12833 | J116: 2578776.8 | K116: 2020-01-01 | L116: 363 | M116: INE439A01020
A117: ASAHISONG | B117: EQ | C117: 156.95 | D117: 159.5 | E117: 146.15 | F117: 154 | G117: 155.95 | H117: 152.5 | I117: 10989 | J117: 1705149.4 | K117: 2020-01-01 | L117: 673 | M117: INE228I01012
A118: ASAL | B118: EQ | C118: 31.4 | D118: 32.05 | E118: 30.6 | F118: 31.15 | G118: 31.35 | H118: 31 | I118: 11382 | J118: 355033.15 | K118: 2020-01-01 | L118: 78 | M118: INE900C01027
A119: ASHAPURMIN | B119: EQ | C119: 27.8 | D119: 28.45 | E119: 26.85 | F119: 28.1 | G119: 28.3 | H119: 27.1 | I119: 29542 | J119: 827661.4 | K119: 2020-01-01 | L119: 178 | M119: INE348A01023
A120: ASHIANA | B120: EQ | C120: 102.05 | D120: 103.5 | E120: 97.65 | F120: 99.7 | G120: 99.9 | H120: 102 | I120: 75553 | J120: 7474357.6 | K120: 2020-01-01 | L120: 1017 | M120: INE365D01021
A121: ASHIMASYN | B121: EQ | C121: 6.2 | D121: 6.7 | E121: 6.15 | F121: 6.2 | G121: 6.4 | H121: 6.15 | I121: 20214 | J121: 128463.8 | K121: 2020-01-01 | L121: 134 | M121: INE440A01010
A122: ASHOKA | B122: EQ | C122: 102.7 | D122: 104.7 | E122: 102.05 | F122: 103.1 | G122: 103 | H122: 102.45 | I122: 412580 | J122: 42699693.7 | K122: 2020-01-01 | L122: 5964 | M122: INE442H01029
A123: ASHOKLEY | B123: EQ | C123: 81.95 | D123: 81.95 | E123: 80.8 | F123: 81.05 | G123: 81 | H123: 81.5 | I123: 7797743 | J123: 633516451.4 | K123: 2020-01-01 | L123: 22282 | M123: INE208A01029
A124: ASIANHOTNR | B124: EQ | C124: 97.9 | D124: 101.75 | E124: 97.9 | F124: 97.95 | G124: 97.95 | H124: 97.95 | I124: 1326 | J124: 131615.95 | K124: 2020-01-01 | L124: 441 | M124: INE363A01022
A125: ASIANPAINT | B125: EQ | C125: 1790.2 | D125: 1802.55 | E125: 1783.2 | F125: 1793.2 | G125: 1784.25 | H125: 1784.95 | I125: 397285 | J125: 712846264.9 | K125: 2020-01-01 | L125: 15386 | M125: INE021A01026
A126: ASIANTILES | B126: EQ | C126: 217.75 | D126: 224.6 | E126: 217.7 | F126: 219.35 | G126: 219.4 | H126: 219.15 | I126: 24722 | J126: 5480444.65 | K126: 2020-01-01 | L126: 2940 | M126: INE022I01019
A127: ASPINWALL | B127: EQ | C127: 141.45 | D127: 142 | E127: 138.9 | F127: 142 | G127: 142 | H127: 138.95 | I127: 145 | J127: 20252.05 | K127: 2020-01-01 | L127: 9 | M127: INE991I01015
A128: ASTEC | B128: EQ | C128: 464 | D128: 464 | E128: 432.95 | F128: 437.15 | G128: 437 | H128: 455.35 | I128: 4487 | J128: 1995975.05 | K128: 2020-01-01 | L128: 513 | M128: INE563J01010
A129: ASTERDM | B129: EQ | C129: 160.7 | D129: 170.95 | E129: 160.7 | F129: 162.7 | G129: 161.6 | H129: 160.75 | I129: 446861 | J129: 74010834.8 | K129: 2020-01-01 | L129: 9981 | M129: INE914M01019
A130: ASTRAL | B130: EQ | C130: 1175.5 | D130: 1178.5 | E130: 1156 | F130: 1166.85 | G130: 1165 | H130: 1176.9 | I130: 12034 | J130: 14059081.8 | K130: 2020-01-01 | L130: 1092 | M130: INE006I01046
A131: ASTRAMICRO | B131: EQ | C131: 83.25 | D131: 84.4 | E131: 82.15 | F131: 82.7 | G131: 82.4 | H131: 83 | I131: 90467 | J131: 7532016.1 | K131: 2020-01-01 | L131: 2050 | M131: INE386C01029
A132: ASTRAZEN | B132: EQ | C132: 2634.8 | D132: 2659.9 | E132: 2616.05 | F132: 2618.8 | G132: 2620 | H132: 2616.6 | I132: 14045 | J132: 36951323.3 | K132: 2020-01-01 | L132: 2902 | M132: INE203A01020
A133: ASTRON | B133: EQ | C133: 42.55 | D133: 42.55 | E133: 38.55 | F133: 39.55 | G133: 40 | H133: 40.55 | I133: 406222 | J133: 16557845.5 | K133: 2020-01-01 | L133: 1404 | M133: INE646X01014
A134: ATFL | B134: EQ | C134: 631.3 | D134: 651.15 | E134: 630 | F134: 649.65 | G134: 650.9 | H134: 629.25 | I134: 5342 | J134: 3451674.35 | K134: 2020-01-01 | L134: 821 | M134: INE209A01019
A135: ATLANTA | B135: EQ | C135: 5.95 | D135: 5.95 | E135: 5.75 | F135: 5.8 | G135: 5.8 | H135: 6 | I135: 4264 | J135: 25005.45 | K135: 2020-01-01 | L135: 40 | M135: INE285H01022
A136: ATLASCYCLE | B136: BE | C136: 51.6 | D136: 51.6 | E136: 51.5 | F136: 51.6 | G136: 51.6 | H136: 49.15 | I136: 3560 | J136: 183691.5 | K136: 2020-01-01 | L136: 34 | M136: INE446A01025
A137: ATUL | B137: EQ | C137: 4099.9 | D137: 4100 | E137: 4052.1 | F137: 4060.8 | G137: 4055 | H137: 4050.8 | I137: 1661 | J137: 6761593.95 | K137: 2020-01-01 | L137: 551 | M137: INE100A01010
A138: ATULAUTO | B138: EQ | C138: 248.05 | D138: 256 | E138: 247.8 | F138: 254.8 | G138: 254 | H138: 252.3 | I138: 24491 | J138: 6211622.9 | K138: 2020-01-01 | L138: 716 | M138: INE951D01028
A139: AUBANK | B139: EQ | C139: 804 | D139: 809.85 | E139: 792 | F139: 797.7 | G139: 792 | H139: 803.1 | I139: 89721 | J139: 71646732 | K139: 2020-01-01 | L139: 7416 | M139: INE949L01017
A140: AURIONPRO | B140: EQ | C140: 57.5 | D140: 61.8 | E140: 54 | F140: 61.35 | G140: 61.45 | H140: 57.4 | I140: 24821 | J140: 1495732.45 | K140: 2020-01-01 | L140: 379 | M140: INE132H01018
A141: AUROPHARMA | B141: EQ | C141: 459.6 | D141: 463.5 | E141: 456.85 | F141: 458.1 | G141: 458.7 | H141: 456.85 | I141: 1081955 | J141: 497117830.1 | K141: 2020-01-01 | L141: 15524 | M141: INE406A01037
A142: AUSOMENT | B142: BE | C142: 36.85 | D142: 36.9 | E142: 36.85 | F142: 36.9 | G142: 36.9 | H142: 35.55 | I142: 4 | J142: 147.5 | K142: 2020-01-01 | L142: 2 | M142: INE218C01016
A143: AUTOAXLES | B143: EQ | C143: 832.15 | D143: 840.3 | E143: 816.65 | F143: 819.6 | G143: 820.45 | H143: 835.05 | I143: 4915 | J143: 4055106.9 | K143: 2020-01-01 | L143: 609 | M143: INE449A01011
A144: AUTOIND | B144: BE | C144: 25 | D144: 25 | E144: 24.5 | F144: 24.75 | G144: 25 | H144: 25 | I144: 15144 | J144: 375208.05 | K144: 2020-01-01 | L144: 71 | M144: INE718H01014
A145: AUTOLITIND | B145: EQ | C145: 21.35 | D145: 21.85 | E145: 21.1 | F145: 21.45 | G145: 21.6 | H145: 21.5 | I145: 2289 | J145: 49294.75 | K145: 2020-01-01 | L145: 58 | M145: INE448A01013
A146: AVADHSUGAR | B146: EQ | C146: 277.95 | D146: 309.8 | E146: 276.9 | F146: 304.85 | G146: 307.25 | H146: 277.55 | I146: 647022 | J146: 191668867.2 | K146: 2020-01-01 | L146: 14662 | M146: INE349W01017
A147: AVANTIFEED | B147: EQ | C147: 592 | D147: 612.5 | E147: 590.2 | F147: 607.45 | G147: 607 | H147: 584 | I147: 2387460 | J147: 1444970068 | K147: 2020-01-01 | L147: 48872 | M147: INE871C01038
A148: AVTNPL | B148: EQ | C148: 30.95 | D148: 31.95 | E148: 30.6 | F148: 31.5 | G148: 31.25 | H148: 31 | I148: 45416 | J148: 1434327.25 | K148: 2020-01-01 | L148: 507 | M148: INE488D01021
A149: AXISBANK | B149: EQ | C149: 754.9 | D149: 759.95 | E149: 747.2 | F149: 748.7 | G149: 748.75 | H149: 754.1 | I149: 4917748 | J149: 3697221320 | K149: 2020-01-01 | L149: 80824 | M149: INE238A01034
A150: AXISCADES | B150: EQ | C150: 53.4 | D150: 54.6 | E150: 52.35 | F150: 53.25 | G150: 53.85 | H150: 53 | I150: 50326 | J150: 2697443.9 | K150: 2020-01-01 | L150: 717 | M150: INE555B01013
A151: AXISGOLD | B151: EQ | C151: 3437.1 | D151: 3488 | E151: 3420 | F151: 3473.8 | G151: 3483.95 | H151: 3438.1 | I151: 346 | J151: 1196619.05 | K151: 2020-01-01 | L151: 121 | M151: INF846K01347
A152: AXISNIFTY | B152: EQ | C152: 1261.88 | D152: 1261.88 | E152: 1250 | F152: 1250.82 | G152: 1251.4 | H152: 1260.96 | I152: 31 | J152: 39004.09 | K152: 2020-01-01 | L152: 9 | M152: INF846K01ZL0
A153: AYMSYNTEX | B153: EQ | C153: 30.25 | D153: 30.45 | E153: 29 | F153: 29.1 | G153: 29 | H153: 29.7 | I153: 4809 | J153: 141144.85 | K153: 2020-01-01 | L153: 93 | M153: INE193B01039
A154: BAGFILMS | B154: BE | C154: 1.95 | D154: 1.95 | E154: 1.85 | F154: 1.9 | G154: 1.9 | H154: 1.9 | I154: 68160 | J154: 131518.7 | K154: 2020-01-01 | L154: 53 | M154: INE116D01028
A155: BAJAJ-AUTO | B155: EQ | C155: 3183 | D155: 3193.75 | E155: 3142.1 | F155: 3150.1 | G155: 3151 | H155: 3185 | I155: 320021 | J155: 1014398663 | K155: 2020-01-01 | L155: 16092 | M155: INE917I01010
A156: BAJAJCON | B156: EQ | C156: 236.1 | D156: 243 | E156: 236.1 | F156: 239.35 | G156: 239 | H156: 236.1 | I156: 85650 | J156: 20533677 | K156: 2020-01-01 | L156: 1622 | M156: INE933K01021
A157: BAJAJELEC | B157: EQ | C157: 362.05 | D157: 366.95 | E157: 357.05 | F157: 360.05 | G157: 357.5 | H157: 358.15 | I157: 149446 | J157: 54032722.6 | K157: 2020-01-01 | L157: 4350 | M157: INE193E01025
A158: BAJAJFINSV | B158: EQ | C158: 9420 | D158: 9432.45 | E158: 9351.95 | F158: 9378.45 | G158: 9371.35 | H158: 9393.35 | I158: 63668 | J158: 597605431.1 | K158: 2020-01-01 | L158: 7532 | M158: INE918I01018
A159: BAJAJHIND | B159: EQ | C159: 6.6 | D159: 7.4 | E159: 6.55 | F159: 7.15 | G159: 7.2 | H159: 6.55 | I159: 6899066 | J159: 48937484 | K159: 2020-01-01 | L159: 6561 | M159: INE306A01021
A160: BAJAJHLDNG | B160: EQ | C160: 3409.5 | D160: 3447.1 | E160: 3358 | F160: 3376.7 | G160: 3373 | H160: 3406.6 | I160: 12825 | J160: 43429905.8 | K160: 2020-01-01 | L160: 2377 | M160: INE118A01012
A161: BAJFINANCE | B161: EQ | C161: 4237.8 | D161: 4252 | E161: 4221 | F161: 4231.3 | G161: 4231 | H161: 4234.75 | I161: 407042 | J161: 1723964912 | K161: 2020-01-01 | L161: 22951 | M161: INE296A01024
A162: BALAJITELE | B162: EQ | C162: 52.45 | D162: 52.45 | E162: 50.1 | F162: 50.85 | G162: 50.95 | H162: 51.65 | I162: 21983 | J162: 1120259.25 | K162: 2020-01-01 | L162: 522 | M162: INE794B01026
A163: BALAMINES | B163: EQ | C163: 404.7 | D163: 420 | E163: 399 | F163: 415.85 | G163: 413 | H163: 399.3 | I163: 124076 | J163: 51185933.7 | K163: 2020-01-01 | L163: 6374 | M163: INE050E01027
A164: BALAXI | B164: EQ | C164: 83 | D164: 84 | E164: 74.05 | F164: 78.7 | G164: 79.9 | H164: 81.2 | I164: 949 | J164: 75061.9 | K164: 2020-01-01 | L164: 42 | M164: INE618N01014
A165: BALKRISHNA | B165: EQ | C165: 20.5 | D165: 21.35 | E165: 20.5 | F165: 20.7 | G165: 20.75 | H165: 20.35 | I165: 35014 | J165: 732780.9 | K165: 2020-01-01 | L165: 302 | M165: INE875R01011
A166: BALKRISIND | B166: EQ | C166: 991.85 | D166: 997 | E166: 985 | F166: 987.25 | G166: 986.7 | H166: 990.55 | I166: 276090 | J166: 273530940.3 | K166: 2020-01-01 | L166: 5895 | M166: INE787D01026
A167: BALLARPUR | B167: BE | C167: 0.45 | D167: 0.45 | E167: 0.4 | F167: 0.4 | G167: 0.45 | H167: 0.45 | I167: 617903 | J167: 261617.45 | K167: 2020-01-01 | L167: 133 | M167: INE294A01037
A168: BALMLAWRIE | B168: EQ | C168: 124.9 | D168: 125.45 | E168: 123.6 | F168: 123.85 | G168: 123.75 | H168: 124.85 | I168: 61213 | J168: 7620395.95 | K168: 2020-01-01 | L168: 1166 | M168: INE164A01016
A169: BALPHARMA | B169: EQ | C169: 41.1 | D169: 42.9 | E169: 39.75 | F169: 42.2 | G169: 42.4 | H169: 41.2 | I169: 13307 | J169: 557915.9 | K169: 2020-01-01 | L169: 207 | M169: INE083D01012
A170: BALRAMCHIN | B170: EQ | C170: 184.2 | D170: 188.15 | E170: 181.7 | F170: 187.2 | G170: 187.2 | H170: 183.4 | I170: 2157359 | J170: 401102689.6 | K170: 2020-01-01 | L170: 16200 | M170: INE119A01028
A171: BANARBEADS | B171: EQ | C171: 29.05 | D171: 30.25 | E171: 29 | F171: 30.2 | G171: 30.25 | H171: 29.3 | I171: 280 | J171: 8455.55 | K171: 2020-01-01 | L171: 6 | M171: INE655B01011
A172: BANARISUG | B172: EQ | C172: 1199 | D172: 1268.05 | E172: 1199 | F172: 1239.85 | G172: 1244 | H172: 1175.75 | I172: 2998 | J172: 3708644.7 | K172: 2020-01-01 | L172: 384 | M172: INE459A01010
A173: BANCOINDIA | B173: EQ | C173: 106 | D173: 109.95 | E173: 104.5 | F173: 107.35 | G173: 108.65 | H173: 107.9 | I173: 36364 | J173: 3922874.55 | K173: 2020-01-01 | L173: 1343 | M173: INE213C01025
A174: BANDHANBNK | B174: EQ | C174: 510.8 | D174: 511.75 | E174: 501 | F174: 503 | G174: 503.05 | H174: 508.25 | I174: 520264 | J174: 262982002.1 | K174: 2020-01-01 | L174: 13964 | M174: INE545U01014
A175: BANG | B175: EQ | C175: 16.8 | D175: 17.3 | E175: 16.5 | F175: 16.55 | G175: 16.5 | H175: 16.8 | I175: 3570 | J175: 60461.2 | K175: 2020-01-01 | L175: 63 | M175: INE863I01016
A176: BANKBARODA | B176: EQ | C176: 102.25 | D176: 102.7 | E176: 101.3 | F176: 101.9 | G176: 102 | H176: 101.9 | I176: 12896434 | J176: 1314508928 | K176: 2020-01-01 | L176: 27102 | M176: INE028A01039
A177: BANKBEES | B177: EQ | C177: 329.2 | D177: 330.1 | E177: 327.4 | F177: 328.31 | G177: 327.4 | H177: 329 | I177: 18548 | J177: 6090243.57 | K177: 2020-01-01 | L177: 1318 | M177: INF204KB15I9
A178: BANKINDIA | B178: EQ | C178: 70.1 | D178: 71.1 | E178: 69.6 | F178: 70.45 | G178: 70.2 | H178: 70.4 | I178: 1611534 | J178: 113476855.2 | K178: 2020-01-01 | L178: 5708 | M178: INE084A01016
A179: BANSWRAS | B179: BE | C179: 106.2 | D179: 111.5 | E179: 106 | F179: 111.5 | G179: 111.5 | H179: 106.2 | I179: 13857 | J179: 1538201.45 | K179: 2020-01-01 | L179: 100 | M179: INE629D01012
A180: BARTRONICS | B180: BE | C180: 1.25 | D180: 1.35 | E180: 1.25 | F180: 1.3 | G180: 1.35 | H180: 1.3 | I180: 1335 | J180: 1745.1 | K180: 2020-01-01 | L180: 26 | M180: INE855F01034
A181: BASF | B181: EQ | C181: 985.05 | D181: 1014.25 | E181: 985 | F181: 1008 | G181: 1008 | H181: 988.25 | I181: 11728 | J181: 11787382 | K181: 2020-01-01 | L181: 2962 | M181: INE373A01013
A182: BASML | B182: EQ | C182: 112.7 | D182: 122.95 | E182: 112.7 | F182: 120.25 | G182: 122.95 | H182: 115.25 | I182: 673 | J182: 80542.3 | K182: 2020-01-01 | L182: 49 | M182: INE186H01014
A183: BATAINDIA | B183: EQ | C183: 1751.55 | D183: 1764.7 | E183: 1743.5 | F183: 1745.3 | G183: 1746.2 | H183: 1751.55 | I183: 214199 | J183: 375330091.8 | K183: 2020-01-01 | L183: 9131 | M183: INE176A01028
A184: BAYERCROP | B184: EQ | C184: 3574.95 | D184: 3635 | E184: 3574.95 | F184: 3618.1 | G184: 3625 | H184: 3562.8 | I184: 2603 | J184: 9421878.75 | K184: 2020-01-01 | L184: 1465 | M184: INE462A01022
A185: BBL | B185: EQ | C185: 824.5 | D185: 829 | E185: 818 | F185: 824.05 | G185: 828 | H185: 816.65 | I185: 3691 | J185: 3040444.15 | K185: 2020-01-01 | L185: 237 | M185: INE464A01028
A186: BBTC | B186: EQ | C186: 1036.85 | D186: 1043.95 | E186: 1022.95 | F186: 1029.2 | G186: 1032 | H186: 1038.95 | I186: 44974 | J186: 46382048.55 | K186: 2020-01-01 | L186: 2667 | M186: INE050A01025
A187: BCG | B187: BE | C187: 6.75 | D187: 6.75 | E187: 6.3 | F187: 6.7 | G187: 6.7 | H187: 6.55 | I187: 283152 | J187: 1889335.9 | K187: 2020-01-01 | L187: 271 | M187: INE425B01027
A188: BCP | B188: EQ | C188: 16.4 | D188: 16.4 | E188: 15 | F188: 15 | G188: 15 | H188: 15.75 | I188: 175206 | J188: 2692061.7 | K188: 2020-01-01 | L188: 365 | M188: INE905P01028
A189: BDL | B189: EQ | C189: 295 | D189: 302 | E189: 291.85 | F189: 297.85 | G189: 297.65 | H189: 294.45 | I189: 31747 | J189: 9466836.6 | K189: 2020-01-01 | L189: 2019 | M189: INE171Z01018
A190: BEARDSELL | B190: EQ | C190: 7.95 | D190: 8.3 | E190: 7.1 | F190: 8.15 | G190: 8.15 | H190: 7.8 | I190: 664 | J190: 5028.55 | K190: 2020-01-01 | L190: 42 | M190: INE520H01022
A191: BEDMUTHA | B191: BE | C191: 16.75 | D191: 17.4 | E191: 16.5 | F191: 17 | G191: 17 | H191: 16.75 | I191: 675 | J191: 11529.9 | K191: 2020-01-01 | L191: 10 | M191: INE844K01012
A192: BEL | B192: EQ | C192: 100.3 | D192: 100.95 | E192: 99.4 | F192: 100.15 | G192: 100.3 | H192: 100.05 | I192: 5146098 | J192: 515300690.9 | K192: 2020-01-01 | L192: 12979 | M192: INE263A01024
A193: BEML | B193: EQ | C193: 984.25 | D193: 997 | E193: 975 | F193: 990.85 | G193: 988 | H193: 984 | I193: 260469 | J193: 256819318.1 | K193: 2020-01-01 | L193: 8311 | M193: INE258A01016
A194: BEPL | B194: EQ | C194: 51.4 | D194: 53.35 | E194: 50 | F194: 51.55 | G194: 51.25 | H194: 52 | I194: 884123 | J194: 45940010.1 | K194: 2020-01-01 | L194: 7481 | M194: INE922A01025
A195: BERGEPAINT | B195: EQ | C195: 515.55 | D195: 521.65 | E195: 515.3 | F195: 517.45 | G195: 516.65 | H195: 515.55 | I195: 606573 | J195: 314210748.6 | K195: 2020-01-01 | L195: 12361 | M195: INE463A01038
A196: BFINVEST | B196: EQ | C196: 320.2 | D196: 324.3 | E196: 316.4 | F196: 317.2 | G196: 318 | H196: 319.45 | I196: 59111 | J196: 18881428.1 | K196: 2020-01-01 | L196: 2042 | M196: INE878K01010
A197: BFUTILITIE | B197: EQ | C197: 316.2 | D197: 322.5 | E197: 315.5 | F197: 318.35 | G197: 318 | H197: 316.25 | I197: 209631 | J197: 66768082.25 | K197: 2020-01-01 | L197: 4642 | M197: INE243D01012
A198: BGLOBAL | B198: BE | C198: 1.65 | D198: 1.7 | E198: 1.65 | F198: 1.7 | G198: 1.7 | H198: 1.7 | I198: 1533 | J198: 2534.45 | K198: 2020-01-01 | L198: 9 | M198: INE224M01013
A199: BGRENERGY | B199: EQ | C199: 35.55 | D199: 37.25 | E199: 35.55 | F199: 36.2 | G199: 36.15 | H199: 35.5 | I199: 180662 | J199: 6602582.55 | K199: 2020-01-01 | L199: 1191 | M199: INE661I01014
A200: BHAGERIA | B200: EQ | C200: 115.6 | D200: 121.9 | E200: 112.6 | F200: 116.85 | G200: 117 | H200: 116.85 | I200: 55163 | J200: 6490327.55 | K200: 2020-01-01 | L200: 1200 | M200: INE354C01027
... 1489 more rows

Sheet Sheet1 (hidden)

Sheet Sheet3 (hidden)

Sheet Sheet4 (hidden)

Sheet Sheet5 (hidden)
